Workbook

Sheet ES(30)
B2: Excel Business Statistical Analysis:
B8: Introduction to Continuous Probability Distributions
B12: Excel Business Statistics 30
B17: Excel Statistical Analysis 24: Build Discrete Probability Distribution, Expected Value, S. Deviation
B18: =LEN(B17) -> 100
C19: =LEN(C18) -> 0
H23: Microsoft 365 Excel

Sheet ES(31)
B2: Excel Business Statistical Analysis:
B8: Uniform Distribution
B12: Excel Business Statistics 31
B17: Excel Statistical Analysis 24: Build Discrete Probability Distribution, Expected Value, S. Deviation
B18: =LEN(B17) -> 100
C19: =LEN(C18) -> 0
H23: Microsoft 365 Excel

Sheet ES(32)
B2: Excel Business Statistical Analysis: Normal Bell Probability Distribution
B12: Excel Business Statistics 32
B17: Excel Statistical Analysis 32: Bell Curve Functions: NORM.DIST, NORM.S.DIST, NORM.INV, NORM.S.INV
B18: =LEN(B17) -> 97
C19: =LEN(C18) -> 0
H23: Microsoft 365 Excel

Sheet ES(33)
B2: Charting Bell Curve
B12: Excel Business Statistics 33
B17: Excel Statistical Analysis 24: Build Discrete Probability Distribution, Expected Value, S. Deviation
B18: =LEN(B17) -> 100
C19: =LEN(C18) -> 0
H23: Microsoft 365 Excel

Sheet ES(34)
B2: Excel Business Statistical Analysis:
B8: Solving Problems Using the Bell Curve and NORM.DIST function
B12: Excel Business Statistics 34
B17: Excel Statistical Analysis 24: Build Discrete Probability Distribution, Expected Value, S. Deviation
B18: =LEN(B17) -> 100
C19: =LEN(C18) -> 0
H23: Microsoft 365 Excel

Sheet ES(35)
B2: Excel Business Statistical Analysis:
B8: Exponential Probability Distribution and the EXPON.DIST Function
B12: Excel Business Statistics 35
B17: Excel Statistical Analysis 24: Build Discrete Probability Distribution, Expected Value, S. Deviation
B18: =LEN(B17) -> 100
C19: =LEN(C18) -> 0
H23: Microsoft 365 Excel

Sheet Detailed Topic List

Sheet Keyboards
A1: Primary Key | B1: Action | C1: Keyboard Short Cut | D1: Category
A2: 1 | B2: Move the Active Worksheet up or down | C2: Ctrl + Page Up/Page Down | D2: Navigation
A3: 2 | B3: Put content in Cell and move selected Cell down | C3: Enter | D3: Entering Data in a Cell
A4: 3 | B4: Put content in Cell and keep Cell selected | C4: Ctrl + Enter | D4: Entering Data in a Cell
A5: 4 | B5: Undo | C5: Ctrl + Z | D5: Basic
A6: 5 | B6: Copy | C6: Ctrl + C | D6: Basic
A7: 6 | B7: Paste | C7: Ctrl + V | D7: Basic
A8: 7 | B8: Cut | C8: Ctrl + X | D8: Basic
A9: 8 | B9: Bold | C9: Ctrl + B | D9: Basic
A10: 9 | B10: Put Cell in Edit Mode | C10: F2 | D10: Formula Edit Mode Keys
A11: 10 | B11: Arrow to point to a formula Cell Reference | C11: Arrow Keys | D11: Formula Edit Mode Keys
A12: 11 | B12: SUM function | C12: Alt + = | D12: Formula Edit Mode Keys
A13: 12 | B13: Delete Cell content | C13: Delete | D13: Basic
A14: 13 | B14: Lock Cell Reference (make Absolute) | C14: F4 | D14: Formula Edit Mode Keys
A15: 14 | B15: Put content in Cell and move selected Cell to right | C15: Tab | D15: Entering Data in a Cell
A16: 15 | B16: Put content in Cell and move selected Cell to left | C16: Shift + Tab | D16: Entering Data in a Cell
A17: 16 | B17: Jump to bottom of data set (Current Range) | C17: Ctrl + Arrow | D17: Navigation
A18: 17 | B18: Select to bottom of data set (Current Range) | C18: Ctrl + Shift + Enter | D18: Formula Edit Mode Keys
A19: 18 | B19: Put content in Cell and move selected Cell up | C19: Shift + Enter | D19: Entering Data in a Cell
A20: 19 | B20: Jump Back to Active Cell | C20: Ctrl + Backspace | D20: Formula Edit Mode Keys
A21: 20 | B21: Open Create PivotTable dialog box | C21: Alt, N, V | D21: PivotTable
A22: 21 | B22: Format Chart Element with Task Pane | C22: Ctrl + 1 | D22: Chart
A23: 22 | B23: Open Format Cells dialog box | C23: Ctrl + 1 | D23: Format Cells
A24: 23 | B24: Jump to Cell A1 | C24: Ctrl + Home | D24: Navigation
A25: 24 | B25: Jump to last Cell used | C25: Ctrl + End | D25: Navigation
A26: 25 | B26: Open Control Panel | C26: Window + Pause/Break | D26: Window Key
A27: 26 | B27: Show Desktop | C27: Window + D or Window + M | D27: Window Key
A28: 27 | B28: Select Whole Table (Select Current Region) | C28: Ctrl + * (on Number Pad) or Ctrl + Shift + 8 | D28: Selection
A29: 28 | B29: Select Ranges not next to each other (noncontiguous ranges) | C29: Ctrl + Mouse Click | D29: Selection
A30: 29 | B30: Open Print Options and Print Preview view | C30: Ctrl + P | D30: Basic
A31: 30 | B31: Close Print Options and Print Preview view | C31: Esc | D31: Basic
A32: 31 | B32: New Workbook File | C32: Ctrl + N | D32: Basic
A33: 32 | B33: Save As Dialog Box | C33: F12 | D33: Basic
A34: 33 | B34: Find and Replace | C34: Ctrl + H | D34: Basic
A35: 34

Sheet Notes
A1: See handwritten notes in PDF download at web site

Sheet Topics
B2: Chapter 6
B4: Discrete Probability Distributions
B7: Video 30 | C7: Introduction to Continuous Probability Distributions
B8: Video 31 | C8: Uniform Probability Distribution
B9: Video 32 | C9: Probabilities for Normal (Bell) Probability Distribution
B10: Video 33 | C10: Normal (Bell) Probability Distribution Area Chart, X and Z Values
B11: Video 34 | C11: Answering Probability Questions With NORM.DIST Function
B12: Video 35 | C12: Exponential Probability Distribution & EXPON.DIST function

Sheet Ch05
A1: A flight from Oakland to Seattle occurs 6 times per day. The probability that any 1 flight is late is 10%.
A2: What is the probability that exactly 2 planes are late? Less than 2 are late? What is the mean and standard deviation?
A3: Binomial Experiment?
A4: 1 | B4: Fixed # of Identical Trials = n | E4: Yes | G4: ="Binomial Distribution, n = "&E9&", p = "&E10 -> Binomial Distribution, n = 6, p = 0.1
A5: 2 | B5: Each trial only results in S or F | E5: Yes
A6: 3 | B6: p remains the same for each trial | E6: Yes
A7: 4 | B7: All events are independent | E7: Yes
A9: n = # of Fixed Trials =# flights | E9: 6
A10: p = Prob of Success = | E10: 0.1
A11: ="Random Discrete Variable = x = Planes Late in "&E9&" Tries" -> Random Discrete Variable = x = Planes Late in 6 Tries | E11: 3 | F11: 1
A12: =C16 -> P(1<=x<=3) = 0.4673 | E12: =_xlfn.BINOM.DIST.RANGE(E9,E10,F11,E11) -> 0.467289
A13: Mean = µ = E(x) = Expected Value = | E13: =E9*E10 -> 0.6
A14: Standard Deviation = s = | E14: =E13*(1-E10) -> 0.54
A16: X | B16: P(x) = f(x) | C16: ="P("&F11&"<=x<="&E11&") = "&ROUND(E12,4) -> P(1<=x<=3) = 0.4673 | E16: P(x) = f(x) | F16: P(x) = f(x) | G16: SUM | H16: X low | I16: X upper
A17: =_xlfn.SEQUENCE(E9+1,,0) -> 0 | B17: =_xlfn.BINOM.DIST.RANGE(E9,E10,_xlfn.ANCHORARRAY(A17)) -> 0.531441 | C17: =IF((_xlfn.ANCHORARRAY(A17)>=F11)*(_xlfn.ANCHORARRAY(A17)<=E11),_xlfn.ANCHORARRAY(B17),"") ->  | E17: ="P(x = "&H17&")" -> P(x = 2) | F17: =_xlfn.BINOM.DIST.RANGE(E9,E10,H17:H21,I17:I21) -> 0.098415 | G17: =B19 -> 0.098415 | H17: 2 | I17: 2
A18: 1 | B18: 0.354294 | C18: 0.354294 | E18: ="P(x <= "&H17&")" -> P(x <= 2) | F18: 0.98415 | G18: =SUM(B17:B19) -> 0.98415 | H18: 0 | I18: 2
A19: 2 | B19: 0.098415 | C19: 0.098415 | E19: ="P(x < "&H17&")" -> P(x < 2) | F19: 0.885735 | G19: =SUM(B17:B18) -> 0.885735 | H19: 0 | I19: 1
A20: 3 | B20: 0.01458 | C20: 0.01458 | E20: ="P(x >= "&H17&")" -> P(x >= 2) | F20: 0.114265 | G20: =SUM(B19:B23) -> 0.114265 | H20: 2 | I20: 6
A21: 4 | B21: 0.001215 | E21: ="P(x > "&H17&")" -> P(x > 2) | F21: 0.01585 | G21: =SUM(B20:B23) -> 0.01585 | H21: 3 | I21: 6
A22: 5 | B22: 5.4e-05
A23: 6 | B23: 1e-06
A24: Total | B24: =SUM(B17:B23) -> 1

Sheet U(1)
C1: Test Score Category | D1: Frequency
A2: 0 | B2: 10 | C2: =A2&" up to "&B2 -> 0 up to 10 | D2: 1
A3: =B2 -> 10 | B3: =B2+10 -> 20 | C3: 10 up to 20 | D3: 2
A4: 20 | B4: 30 | C4: 20 up to 30 | D4: 3
A5: 30 | B5: 40 | C5: 30 up to 40 | D5: 10
A6: 40 | B6: 50 | C6: 40 up to 50 | D6: 12
A7: 50 | B7: 60 | C7: 50 up to 60 | D7: 15
A8: 60 | B8: 70 | C8: 60 up to 70 | D8: 18
A9: 70 | B9: 80 | C9: 70 up to 80 | D9: 22
A10: 80 | B10: 90 | C10: 80 up to 90 | D10: 15
A11: 90 | B11: 100 | C11: 90 up to 100 | D11: 2
D12: =SUM(D2:D11) -> 100
C19: Test Score Category | D19: Frequency
A20: 0 | B20: 10 | C20: =A20&" up to "&B20 -> 0 up to 10 | D20: 10
A21: =B20 -> 10 | B21: =B20+10 -> 20 | C21: 10 up to 20 | D21: 10
A22: 20 | B22: 30 | C22: 20 up to 30 | D22: 10
A23: 30 | B23: 40 | C23: 30 up to 40 | D23: 10
A24: 40 | B24: 50 | C24: 40 up to 50 | D24: 10
A25: 50 | B25: 60 | C25: 50 up to 60 | D25: 10
A26: 60 | B26: 70 | C26: 60 up to 70 | D26: 10
A27: 70 | B27: 80 | C27: 70 up to 80 | D27: 10
A28: 80 | B28: 90 | C28: 80 up to 90 | D28: 10
A29: 90 | B29: 100 | C29: 90 up to 100 | D29: 10
D30: =SUM(D20:D29) -> 100

Sheet U(2)
A1: Wait Times for Customer Service (minutes)
A2: 5
A3: 5 | D3: Wait Times | E3: Frequency | F3: Histogram w Conditional Formatting | G3: Relative Frequency
A4: 5 | D4: =_xlfn.SEQUENCE(51,,0) -> 0 | E4: =COUNTIFS(A2:A1195,_xlfn.ANCHORARRAY(D4)) -> 0 | F4: =_xlfn.ANCHORARRAY(E4) -> 0 | G4: =_xlfn.ANCHORARRAY(E4)/E55 -> 0
A5: 14 | D5: 1 | E5: 0 | F5: 0 | G5: 0
A6: 14 | D6: 2 | E6: 0 | F6: 0 | G6: 0
A7: 14 | D7: 3 | E7: 0 | F7: 0 | G7: 0
A8: 23 | D8: 4 | E8: 0 | F8: 0 | G8: 0
A9: 6 | D9: 5 | E9: 57 | F9: 57 | G9: 0.04773869347
A10: 6 | D10: 6 | E10: 56 | F10: 56 | G10: 0.04690117253
A11: 6 | D11: 7 | E11: 53 | F11: 53 | G11: 0.04438860972
A12: 16 | D12: 8 | E12: 55 | F12: 55 | G12: 0.04606365159
A13: 16 | D13: 9 | E13: 56 | F13: 56 | G13: 0.04690117253
A14: 16 | D14: 10 | E14: 57 | F14: 57 | G14: 0.04773869347
A15: 17 | D15: 11 | E15: 56 | F15: 56 | G15: 0.04690117253
A16: 17 | D16: 12 | E16: 58 | F16: 58 | G16: 0.04857621441
A17: 17 | D17: 13 | E17: 57 | F17: 57 | G17: 0.04773869347
A18: 17 | D18: 14 | E18: 58 | F18: 58 | G18: 0.04857621441
A19: 16 | D19: 15 | E19: 61 | F19: 61 | G19: 0.05108877722
A20: 16 | D20: 16 | E20: 57 | F20: 57 | G20: 0.04773869347
A21: 16 | D21: 17 | E21: 55 | F21: 55 | G21: 0.04606365159
A22: 16 | D22: 18 | E22: 56 | F22: 56 | G22: 0.04690117253
A23: 6 | D23: 19 | E23: 59 | F23: 59 | G23: 0.04941373534
A24: 6 | D24: 20 | E24: 57 | F24: 57 | G24: 0.04773869347
A25: 6 | D25: 21 | E25: 55 | F25: 55 | G25: 0.04606365159
A26: 6 | D26: 22 | E26: 60 | F26: 60 | G26: 0.05025125628
A27: 6 | D27: 23 | E27: 57 | F27: 57 | G27: 0.04773869347
A28: 6 | D28: 24 | E28: 57 | F28: 57 | G28: 0.04773869347
A29: 6 | D29: 25 | E29: 57 | F29: 57 | G29: 0.04773869347
A30: 6 | D30: 26 | E30: 0 | F30: 0 | G30: 0
A31: 6 | D31: 27 | E31: 0 | F31: 0 | G31: 0
A32: 6 | D32: 28 | E32: 0 | F32: 0 | G32: 0
A33: 25 | D33: 29 | E33: 0 | F33: 0 | G33: 0
A34: 25 | D34: 30 | E34: 0 | F34: 0 | G34: 0
A35: 25 | D35: 31 | E35: 0 | F35: 0 | G35: 0
A36: 25 | D36: 32 | E36: 0 | F36: 0 | G36: 0
A37: 25 | D37: 33 | E37: 0 | F37: 0 | G37: 0
A38: 25 | D38: 34 | E38: 0 | F38: 0 | G38: 0
A39: 23 | D39: 35 | E39: 0 | F39: 0 | G39: 0
A40: 23 | D40: 36 | E40: 0 | F40: 0 | G40: 0
A41: 23 | D41: 37 | E41: 0 | F41: 0 | G41: 0
A42: 23 | D42: 38 | E42: 0 | F42: 0 | G42: 0
A43: 23 | D43: 39 | E43: 0 | F43: 0 | G43: 0
A44: 23 | D44: 40 | E44: 0 | F44: 0 | G44: 0
A45: 23 | D45: 41 | E45: 0 | F45: 0 | G45: 0
A46: 23 | D46: 42 | E46: 0 | F46: 0 | G46: 0
A47: 23 | D47: 43 | E47: 0 | F47: 0 | G47: 0
A48: 14 | D48: 44 | E48: 0 | F48: 0 | G48: 0
A49: 14 | D49: 45 | E49: 0 | F49: 0 | G49: 0
A50: 14 | D50: 46 | E50: 0 | F50: 0 | G50: 0
A51: 14 | D51: 47 | E51: 0 | F51: 0 | G51: 0
A52: 14 | D52: 48 | E52: 0 | F52: 0 | G52: 0
A53: 14 | D53: 49 | E53: 0 | F53: 0 | G53: 0
A54: 8 | D54: 50 | E54: 0 | F54: 0 | G54: 0
A55: 8 | E55: =SUM(_xlfn.ANCHORARRAY(E4)) -> 1194
A56: 8
A57: 8
A58: 8
A59: 8
A60: 8
A61: 8
A62: 8
A63: 5
A64: 5
A65: 11
A66: 11
A67: 11
A68: 11
A69: 11
A70: 11
A71: 11
A72: 11
A73: 11
A74: 11
A75: 5
A76: 5
A77: 5
A78: 5
A79: 5
A80: 5
A81: 5
A82: 5
A83: 5
A84: 5
A85: 5
A86: 5
A87: 5
A88: 5
A89: 5
A90: 5
A91: 5
A92: 5
A93: 5
A94: 5
A95: 5
A96: 5
A97: 5
A98: 5
A99: 5
A100: 5
A101: 5
A102: 5
A103: 5
A104: 5
A105: 5
A106: 5
A107: 5
A108: 5
A109: 5
A110: 5
A111: 5
A112: 5
A113: 5
A114: 5
A115: 5
A116: 5
A117: 5
A118: 5
A119: 5
A120: 5
A121: 5
A122: 5
A123: 5
A124: 5
A125: 5
A126: 5
A127: 6
A128: 6
A129: 6
A130: 6
A131: 6
A132: 6
A133: 6
A134: 6
A135: 6
A136: 6
A137: 6
A138: 6
A139: 6
A140: 6
A141: 6
A142: 6
A143: 6
A144: 6
A145: 6
A146: 6
A147: 21
A148: 21
A149: 21
A150: 21
A151: 21
A152: 21
A153: 21
A154: 6
A155: 6
A156: 6
A157: 6
A158: 6
A159: 6
A160: 6
A161: 6
A162: 6
A163: 6
A164: 6
A165: 6
A166: 6
A167: 6
A168: 6
A169: 6
A170: 6
A171: 6
A172: 6
A173: 6
A174: 6
A175: 6
A176: 6
A177: 7
A178: 7
A179: 7
A180: 7
A181: 7
A182: 7
A183: 7
A184: 7
A185: 7
A186: 7
A187: 7
A188: 7
A189: 7
A190: 7
A191: 7
A192: 7
A193: 7
A194: 7
A195: 7
A196: 7
A197: 7
A198: 7
A199: 7
A200: 7
... 995 more rows

Sheet U(3)
A1: ="Suppose the time that you wait on the telephone for a live representative of your phone company to discuss your problem with you is" -> Suppose the time that you wait on the telephone for a live representative of your phone company to discuss your problem with you is
A2: uniformly distributed between 5 and 25 minutes.
A3: What is mean wait time?
A4: What is Standard Deviation? | F4: Area = Probability
A5: Solve for various probabilities. | F5: 1 = All Probability
F6: 1 = Area
A7: Lower = a | C7: mins | F7: Area = width * height
A8: Upper = b | C8: mins | F8: 1 = width * height
A9: X1 | C9: mins | F9: height = 1/width
A10: X2 | C10: mins | F10: height = Uniform Probability Density Function = f(x) = 1/(b-a), for a <= x <= b, 0 elsewhere.
A11: Mean wait time | C11: mins | D11: Mean = (a+ b)/2
A12: Standard Deviation | C12: mins | D12: SD = SQRT((b-a)^2/12) | F12: f(x) = 1/(b-a) | R12: Deductive Proof for SQRT formula:
A13: ="P("&B9&" <= x <= "&B10&")" -> P( <= x <= ) | D13: Simple geometry: width*height | F13: f(x) = height | R13: http://mathforum.org/library/drmath/view/52066.html
A14: Area = 1? | D14: P(x1<=x<=x2 ) = (x2-x1)*1/(b-a)
D15: P(x1<=x<=x2 ) = P(x1<x<x2 )
D16: because lines have no area
A19: Lower = a | B19: 5 | C19: mins | F19: f(x) = 1/(b-a)
A20: Upper = b | B20: 25 | C20: mins | F20: f(x) = height
A21: X1 | B21: 5 | C21: mins | F21: =1/(K24-G24) -> 0.05
A22: X2 | B22: 15 | C22: mins
A23: ="P("&B21&" <= x <= "&B22&")" -> P(5 <= x <= 15)
G24: =S27 -> 5 | H24: =G24+5 -> 10 | I24: =H24+5 -> 15 | J24: 20 | K24: 25 | M24: x = minutes waiting | R24: SD from data points: | S24: =_xlfn.STDEV.S('U(2)'!A2:A1195) -> 6.038350339
R25: Model SD | S25: =SQRT((K24-G24)^2/12) -> 5.773502692
R27: Min: | S27: 5

Sheet U(3an)
A1: ="Suppose the time that you wait on the telephone for a live representative of your phone company to discuss your problem with you is" -> Suppose the time that you wait on the telephone for a live representative of your phone company to discuss your problem with you is
A2: uniformly distributed between 5 and 25 minutes.
A3: What is mean wait time?
A4: What is Standard Deviation? | F4: Area = Probability
A5: Solve for various probabilities. | F5: 1 = All Probability
F6: 1 = Area
A7: Lower = a | B7: 5 | C7: mins | F7: Area = width * height
A8: Upper = b | B8: 25 | C8: mins | F8: 1 = width * height
A9: X1 | B9: 15 | C9: mins | F9: height = 1/width
A10: X2 | B10: 20 | C10: mins | F10: height = Uniform Probability Density Function = f(x) = 1/(b-a), for a <= x <= b, 0 elsewhere.
A11: Mean wait time | B11: =AVERAGE(B7:B8) -> 15 | C11: mins | D11: Mean = (a+ b)/2
A12: Standard Deviation | B12: =SQRT((B8-B7)^2/12) -> 5.773502692 | C12: mins | D12: SD = SQRT((b-a)^2/12) | F12: f(x) = 1/(b-a)
A13: ="P("&B9&" <= x <= "&B10&")" -> P(15 <= x <= 20) | B13: =F14*(J17-I17) -> 0.25 | D13: Simple geometry: width*height | F13: f(x) = height
A14: Area = 1? | B14: =F14*(K17-G17) -> 1 | D14: P(x1<=x<=x2 ) = (x2-x1)*1/(b-a) | F14: =1/(K17-G17) -> 0.05
D15: P(x1<=x<=x2 ) = P(x1<x<x2 )
D16: because lines have no area
G17: =B7 -> 5 | H17: =G17+5 -> 10 | I17: =H17+5 -> 15 | J17: 20 | K17: =B8 -> 25
A19: Lower = a | B19: 5 | C19: mins | F19: f(x) = 1/(b-a)
A20: Upper = b | B20: 25 | C20: mins | F20: f(x) = height
A21: X1 | B21: 5 | C21: mins | F21: =1/(K24-G24) -> 0.05
A22: X2 | B22: 15 | C22: mins
A23: ="P("&B21&" <= x <= "&B22&")" -> P(5 <= x <= 15) | B23: =F21*(I24-G24) -> 0.5
G24: =$B$7 -> 5 | H24: =G24+5 -> 10 | I24: =H24+5 -> 15 | J24: 20 | K24: 25 | M24: x = minutes waiting

Sheet U(4)
A1: Driving Distance for the top 100 golfers on the PGA tour (2003)
A2: Distribution is Uniform
A3: Lower | B3: 284.7 | C3: yards
A4: Upper | B4: 310.6 | C4: yards
A5: Difference = width | C5: yards
A7: Probability Density function of driving distances:
A8: =IF(AND(B3:B4=""),"","F(x) = 1/("&B4&"-"&B3&")"&" = 1/"&B4-B3&CHAR(10)&"for interval "&B3&" <= x <= "&B4&" and 0 elsewhere.") -> F(x) = 1/(310.6-284.7) = 1/25.9 for interval 284.7 <= x <= 310.6 and 0 elsewhere.
A9: height = f(x) = 1/(b-a)
A11: What is probability of one of the golfers driving less than 290 yards? | D11: f(x) = height
A12: X1 | B12: =B3 -> 284.7 | D12: =1/(B4-B3) -> 0.03861003861
A13: X2 | B13: 290
A14: area = width * height = (X2-X1)*1/(b-a) =
A15: ="P(X<"&B13&") = ("&B13&" - "&B12&")*1/("&$B$4&" - "&$B$3&")" -> P(X<290) = (290 - 284.7)*1/(310.6 - 284.7)
E16: =B3 -> 284.7 | G16: =B13 -> 290 | J16: =B4 -> 310.6 | L16: x
A18: What is probability of one of the golfers driving more than 290 yards? | D18: f(x) = height
A19: X1 | B19: 290 | D19: =D12 -> 0.03861003861
A20: X2 | B20: =B4 -> 310.6
A21: area = width * height = (X2-X1)*1/(b-a) =
A22: ="P(X>"&B20&") = ("&B20&" - "&B19&")*1/("&$B$4&" - "&$B$3&")" -> P(X>310.6) = (310.6 - 290)*1/(310.6 - 284.7)
E23: =$E$16 -> 284.7 | G23: =$G$16 -> 290 | J23: =$J$16 -> 310.6 | L23: x
A25: What is probability of one of the golfers driving between 290 and 300? | D25: f(x) = height
A26: X1 | B26: 290 | D26: =D19 -> 0.03861003861
A27: X2 | B27: 300
A28: area = width * height = (X2-X1)*1/(b-a) =
A29: ="P(X>"&B27&") = ("&B27&" - "&B26&")*1/("&$B$4&" - "&$B$3&")" -> P(X>300) = (300 - 290)*1/(310.6 - 284.7)
E30: =$E$16 -> 284.7 | G30: =$G$16 -> 290 | I30: 300 | L30: x

Sheet U(4an)
A1: Driving Distance for the top 100 golfers on the PGA tour (2003)
A2: Distribution is Uniform
A3: Lower | B3: 284.7 | C3: yards
A4: Upper | B4: 310.6 | C4: yards
A5: Difference = width | B5: =B4-B3 -> 25.9 | C5: yards
A7: Probability Density function of driving distances:
A8: =IF(AND(B3:B4=""),"","F(x) = 1/("&B4&"-"&B3&")"&" = 1/"&B4-B3&CHAR(10)&"for interval "&B3&" <= x <= "&B4&" and 0 elsewhere.") -> F(x) = 1/(310.6-284.7) = 1/25.9 for interval 284.7 <= x <= 310.6 and 0 elsewhere.
A9: height = f(x) = 1/(b-a) | B9: =1/B5 -> 0.03861003861
A11: What is probability of one of the golfers driving less than 290 yards? | D11: f(x) = height
A12: X1 | B12: =B3 -> 284.7 | D12: =1/(B4-B3) -> 0.03861003861
A13: X2 | B13: 290
A14: area = width * height = (X2-X1)*1/(b-a) = | B14: =D12*(G16-E16) -> 0.2046332046
A15: ="P(X<"&B13&") = ("&B13&" - "&B12&")*1/("&$B$4&" - "&$B$3&")" -> P(X<290) = (290 - 284.7)*1/(310.6 - 284.7)
E16: =B3 -> 284.7 | G16: =B13 -> 290 | J16: =B4 -> 310.6 | L16: x
A18: What is probability of one of the golfers driving more than 290 yards? | D18: f(x) = height
A19: X1 | B19: 290 | D19: =D12 -> 0.03861003861
A20: X2 | B20: =B4 -> 310.6
A21: area = width * height = (X2-X1)*1/(b-a) = | B21: =D19*(J23-G23) -> 0.7953667954
A22: ="P(X>"&B20&") = ("&B20&" - "&B19&")*1/("&$B$4&" - "&$B$3&")" -> P(X>310.6) = (310.6 - 290)*1/(310.6 - 284.7)
E23: =$E$16 -> 284.7 | G23: =$G$16 -> 290 | J23: =$J$16 -> 310.6 | L23: x
A25: What is probability of one of the golfers driving between 290 and 300? | D25: f(x) = height
A26: X1 | B26: 290 | D26: =D19 -> 0.03861003861
A27: X2 | B27: 300
A28: area = width * height = (X2-X1)*1/(b-a) = | B28: =D26*(I30-G30) -> 0.3861003861
A29: ="P(X>"&B27&") = ("&B27&" - "&B26&")*1/("&$B$4&" - "&$B$3&")" -> P(X>300) = (300 - 290)*1/(310.6 - 284.7)
E30: =$E$16 -> 284.7 | G30: =$G$16 -> 290 | I30: 300 | L30: x

Sheet PopTestData
A1: Test scores from population data | C1: Lower | D1: Upper | E1: Category | F1: Frequency | G1: Distribution | H1: Relative Frequency Frequency
A2: 0 | C2: 0 | D2: =C2+10 -> 10 | E2: =C2&" up to "&D2 -> 0 up to 10 | F2: =COUNTIFS($A$2:$A$755,">="&C2,$A$2:$A$755,"<"&D2) -> 2 | G2: =F2 -> 2 | H2: =F2/$F$13 -> 0.003984063745 | J2: Mean | K2: =AVERAGE(A2:A503) -> 74.3625498 | M2: Chart Labels:
A3: 5 | C3: =D2 -> 10 | D3: =C3+10 -> 20 | E3: =C3&" up to "&D3 -> 10 up to 20 | F3: 1 | G3: =F3 -> 1 | H3: 0.001992031873 | J3: Median | K3: =MEDIAN(A2:A503) -> 75 | M3: Title | N3: Professor looks at all test score for a particular test (this is population data), and observes:
A4: 79 | C4: =D3 -> 20 | D4: 30 | E4: 20 up to 30 | F4: 1 | G4: 1 | H4: 0.001992031873 | J4: Mode | K4: =_xlfn.MODE.SNGL(A2:A503) -> 75 | M4: X axis | N4: =J2&" = "&ROUND(K2,0) -> Mean = 74
A5: 19 | C5: =D4 -> 30 | D5: 40 | E5: 30 up to 40 | F5: 2 | G5: 2 | H5: 0.003984063745 | J5: SD | K5: =_xlfn.STDEV.P(A2:A503) -> 10.13514417 | M5: Text Box: | N5: =J3&" = "&ROUND(K3,0) -> Median = 75
A6: 29 | C6: 40 | D6: 50 | E6: 40 up to 50 | F6: 4 | G6: 4 | H6: 0.00796812749 | J6: skew | K6: =SKEW(A2:A503) -> -2.006858122 | N6: =J4&" = "&ROUND(K4,0) -> Mode = 75
A7: 35 | C7: 50 | D7: 60 | E7: 50 up to 60 | F7: 13 | G7: 13 | H7: 0.02589641434 | N7: =J5&" = "&ROUND(K5,0) -> SD = 10
A8: 39 | C8: 60 | D8: 70 | E8: 60 up to 70 | F8: 98 | G8: 98 | H8: 0.1952191235 | N8: =N4&CHAR(10)&N5&CHAR(10)&N6&CHAR(10)&N7 -> Mean = 74 Median = 75 Mode = 75 SD = 10
A9: 43 | C9: 70 | D9: 80 | E9: 70 up to 80 | F9: 260 | G9: 260 | H9: 0.5179282869 | N9: X = Score
A10: 47 | C10: 80 | D10: 90 | E10: 80 up to 90 | F10: 99 | G10: 99 | H10: 0.1972111554
A11: 48 | C11: 90 | D11: 100 | E11: 90 up to 100 | F11: 18 | G11: 18 | H11: 0.03585657371
A12: 49 | C12: 100 | D12: 110 | E12: 100 up to 110 | F12: 4 | G12: 4 | H12: 0.00796812749
A13: 53 | E13: Total | F13: =SUM(F2:F12) -> 502 | H13: =SUM(H2:H12) -> 1
A14: 54
A15: 54
A16: 56
A17: 56
A18: 57
A19: 57
A20: 58
A21: 58
A22: 58
A23: 58
A24: 59
A25: 59
A26: 60
A27: 61
A28: 61
A29: 61
A30: 62
A31: 62
A32: 62
A33: 63
A34: 63
A35: 63
A36: 63
A37: 63
A38: 64
A39: 64
A40: 64
A41: 64
A42: 64
A43: 64
A44: 64
A45: 65
A46: 65
A47: 65
A48: 65
A49: 65
A50: 65
A51: 65
A52: 65
A53: 65
A54: 65
A55: 65
A56: 65
A57: 65
A58: 66
A59: 66
A60: 66
A61: 66
A62: 66
A63: 66
A64: 66
A65: 66
A66: 66
A67: 66
A68: 66
A69: 67
A70: 67
A71: 67
A72: 67
A73: 67
A74: 67
A75: 67
A76: 67
A77: 67
A78: 67
A79: 67
A80: 67
A81: 67
A82: 67
A83: 67
A84: 67
A85: 67
A86: 67
A87: 67
A88: 67
A89: 68
A90: 68
A91: 68
A92: 68
A93: 68
A94: 68
A95: 68
A96: 68
A97: 68
A98: 68
A99: 68
A100: 68
A101: 68
A102: 68
A103: 68
A104: 68
A105: 68
A106: 68
A107: 69
A108: 69
A109: 69
A110: 69
A111: 69
A112: 69
A113: 69
A114: 69
A115: 69
A116: 69
A117: 69
A118: 69
A119: 69
A120: 69
A121: 69
A122: 69
A123: 69
A124: 70
A125: 70
A126: 70
A127: 70
A128: 70
A129: 70
A130: 70
A131: 70
A132: 70
A133: 70
A134: 70
A135: 70
A136: 70
A137: 70
A138: 70
A139: 70
A140: 70
A141: 70
A142: 71
A143: 71
A144: 71
A145: 71
A146: 71
A147: 71
A148: 71
A149: 71
A150: 71
A151: 71
A152: 71
A153: 71
A154: 71
A155: 71
A156: 71
A157: 71
A158: 72
A159: 72
A160: 72
A161: 72
A162: 72
A163: 72
A164: 72
A165: 72
A166: 72
A167: 72
A168: 72
A169: 72
A170: 72
A171: 72
A172: 72
A173: 73
A174: 73
A175: 73
A176: 73
A177: 73
A178: 73
A179: 73
A180: 73
A181: 73
A182: 73
A183: 73
A184: 73
A185: 73
A186: 73
A187: 73
A188: 73
A189: 73
A190: 73
A191: 73
A192: 73
A193: 73
A194: 73
A195: 73
A196: 73
A197: 73
A198: 73
A199: 73
A200: 73
... 303 more rows

Sheet NormalAndStandardNormal
A1: ="Ketchup Bottle lists that it contains "&B4&" oz." -> Ketchup Bottle lists that it contains 20 oz. | J1: =A1&CHAR(10)&A2 -> Ketchup Bottle lists that it contains 20 oz. Past Historical Data shows that the machine fills with a standard deviation of 0.2 oz.
A2: ="Past Historical Data shows that the machine fills with a standard deviation of "&B5&" oz." -> Past Historical Data shows that the machine fills with a standard deviation of 0.2 oz.
A4: Pop. Mean = µ | B4: 20 | C4: oz.
A5: Pop. SD = s | B5: 0.2 | C5: oz.
A6: x = oz. Ketchup in Bottle | B6: =B4-B5*2 -> 19.6 | C6: oz.
A7: ="P(x <= "&B6&" "&C6&") =" -> P(x <= 19.6 oz.) = | B7: =_xlfn.NORM.DIST(B6,B4,B5,1) -> 0.02275013195
A28: x | B28: P(x) = Area = Probability | C28: z | D28: =A7&ROUND(B7,4) -> P(x <= 19.6 oz.) =0.0228
A29: 18.4 | B29: =_xlfn.NORM.DIST(A29,$B$4,$B$5,0) -> 2.526135542e-14 | C29: =(A29-$B$4)/$B$5 -> -8 | D29: =IF(A29<=$B$6,B29,"") -> 2.526135542e-14
A30: =A29+0.01 -> 18.41 | B30: 3.763843645e-14 | C30: -7.95 | D30: 3.763843645e-14
A31: =A30+0.01 -> 18.42 | B31: 5.593978107e-14 | C31: -7.9 | D31: 5.593978107e-14
A32: 18.43 | B32: 8.293239635e-14 | C32: -7.85 | D32: 8.293239635e-14
A33: 18.44 | B33: 1.226427643e-13 | C33: -7.8 | D33: 1.226427643e-13
A34: 18.45 | B34: 1.809147226e-13 | C34: -7.75 | D34: 1.809147226e-13
A35: 18.46 | B35: 2.662074186e-13 | C35: -7.7 | D35: 2.662074186e-13
A36: 18.47 | B36: 3.907335126e-13 | C36: -7.65 | D36: 3.907335126e-13
A37: 18.48 | B37: 5.720782451e-13 | C37: -7.6 | D37: 5.720782451e-13
A38: 18.49 | B38: 8.354961785e-13 | C38: -7.55 | D38: 8.354961785e-13
A39: 18.5 | B39: 1.217160267e-12 | C39: -7.5 | D39: 1.217160267e-12
A40: 18.51 | B40: 1.768745424e-12 | C40: -7.45 | D40: 1.768745424e-12
A41: 18.52 | B41: 2.563876818e-12 | C41: -7.4 | D41: 2.563876818e-12
A42: 18.53 | B42: 3.70717635e-12 | C42: -7.35 | D42: 3.70717635e-12
A43: 18.54 | B43: 5.346918936e-12 | C43: -7.3 | D43: 5.346918936e-12
A44: 18.55 | B44: 7.692689753e-12 | C44: -7.25 | D44: 7.692689753e-12
A45: 18.56 | B45: 1.103994982e-11 | C45: -7.2 | D45: 1.103994982e-11
A46: 18.57 | B46: =_xlfn.NORM.DIST(A46,$B$4,$B$5,0) -> 1.580411731e-11 | C46: =(A46-$B$4)/$B$5 -> -7.15 | D46: =IF(A46<=$B$6,B46,"") -> 1.580411731e-11
A47: 18.58 | B47: 2.256771839e-11 | C47: -7.1 | D47: 2.256771839e-11
A48: 18.59 | B48: 3.214543645e-11 | C48: -7.05 | D48: 3.214543645e-11
A49: 18.6 | B49: 4.567360204e-11 | C49: -7 | D49: 4.567360204e-11
A50: 18.61 | B50: 6.473295969e-11 | C50: -6.95 | D50: 6.473295969e-11
A51: 18.62 | B51: 9.151661085e-11 | C51: -6.9 | D51: 9.151661085e-11
A52: 18.63 | B52: 1.290591073e-10 | C52: -6.85 | D52: 1.290591073e-10
A53: 18.64 | B53: 1.815480751e-10 | C53: -6.8 | D53: 1.815480751e-10
A54: 18.65 | B54: 2.547468979e-10 | C54: -6.75 | D54: 2.547468979e-10
A55: 18.66 | B55: 3.565664062e-10 | C55: -6.7 | D55: 3.565664062e-10
A56: 18.67 | B56: 4.978358953e-10 | C56: -6.65 | D56: 4.978358953e-10
A57: 18.68 | B57: 6.933399971e-10 | C57: -6.6 | D57: 6.933399971e-10
A58: 18.69 | B58: 9.63209074e-10 | C58: -6.55 | D58: 9.63209074e-10
A59: 18.7 | B59: 1.334778307e-09 | C59: -6.5 | D59: 1.334778307e-09
A60: 18.71 | B60: 1.845066308e-09 | C60: -6.45 | D60: 1.845066308e-09
A61: 18.72 | B61: 2.544070141e-09 | C61: -6.4 | D61: 2.544070141e-09
A62: 18.73 | B62: 3.499132974e-09 | C62: -6.35 | D62: 3.499132974e-09
A63: 18.74 | B63: 4.800716685e-09 | C63: -6.3 | D63: 4.800716685e-09
A64: 18.75 | B64: 6.570009091e-09 | C64: -6.25 | D64: 6.570009091e-09
A65: 18.76 | B65: 8.96891954e-09 | C65: -6.2 | D65: 8.96891954e-09
A66: 18.77 | B66: 1.221317413e-08 | C66: -6.15 | D66: 1.221317413e-08
A67: 18.78 | B67: 1.658942122e-08 | C67: -6.1 | D67: 1.658942122e-08
A68: 18.79 | B68: 2.247750916e-08 | C68: -6.05 | D68: 2.247750916e-08
A69: 18.8 | B69: 3.037941425e-08 | C69: -6 | D69: 3.037941425e-08
A70: 18.81 | B70: 4.095669202e-08 | C70: -5.95 | D70: 4.095669202e-08
A71: 18.82 | B71: 5.507881812e-08 | C71: -5.9 | D71: 5.507881812e-08
A72: 18.83 | B72: 7.388539793e-08 | C72: -5.85 | D72: 7.388539793e-08
A73: 18.84 | B73: 9.886598203e-08 | C73: -5.8 | D73: 9.886598203e-08
A74: 18.85 | B74: 1.319621602e-07 | C74: -5.75 | D74: 1.319621602e-07
A75: 18.86 | B75: 1.756977547e-07 | C75: -5.7 | D75: 1.756977547e-07
A76: 18.87 | B76: 2.333443399e-07 | C76: -5.65 | D76: 2.333443399e-07
A77: 18.88 | B77: 3.09131025e-07 | C77: -5.6 | D77: 3.09131025e-07
A78: 18.89 | B78: 4.085095189e-07 | C78: -5.55 | D78: 4.085095189e-07
A79: 18.9 | B79: 5.384880021e-07 | C79: -5.5 | D79: 5.384880021e-07
A80: 18.91 | B80: 7.080503565e-07 | C80: -5.45 | D80: 7.080503565e-07
A81: 18.92 | B81: 9.286809223e-07 | C81: -5.4 | D81: 9.286809223e-07
A82: 18.93 | B82: 1.215019271e-06 | C82: -5.35 | D82: 1.215019271e-06
A83: 18.94 | B83: 1.585674608e-06 | C83: -5.3 | D83: 1.585674608e-06
A84: 18.95 | B84: 2.064235494e-06 | C84: -5.25 | D84: 2.064235494e-06
A85: 18.96 | B85: 2.680517672e-06 | C85: -5.2 | D85: 2.680517672e-06
A86: 18.97 | B86: 3.472101177e-06 | C86: -5.15 | D86: 3.472101177e-06
A87: 18.98 | B87: 4.486217581e-06 | C87: -5.1 | D87: 4.486217581e-06
A88: 18.99 | B88: 5.782059518e-06 | C88: -5.05 | D88: 5.782059518e-06
A89: 19 | B89: 7.433597574e-06 | C89: -5 | D89: 7.433597574e-06
A90: 19.01 | B90: 9.533004516e-06 | C90: -4.95 | D90: 9.533004516e-06
A91: 19.02 | B91: 1.219480373e-05 | C91: -4.9 | D91: 1.219480373e-05
A92: 19.03 | B92: 1.55608779e-05 | C92: -4.85 | D92: 1.55608779e-05
A93: 19.04 | B93: 1.980649546e-05 | C93: -4.8 | D93: 1.980649546e-05
A94: 19.05 | B94: 2.514753644e-05 | C94: =(A94-$B$4)/$B$5 -> -4.75 | D94: =IF(A94<=$B$6,B94,"") -> 2.514753644e-05
A95: =A94+0.01 -> 19.06 | B95: 3.184912589e-05 | C95: -4.7 | D95: 3.184912589e-05
A96: 19.07 | B96: 4.023591228e-05 | C96: -4.65 | D96: 4.023591228e-05
A97: 19.08 | B97: 5.070426033e-05 | C97: -4.6 | D97: 5.070426033e-05
A98: 19.09 | B98: 6.373666191e-05 | C98: -4.55 | D98: 6.373666191e-05
A99: 19.1 | B99: 7.991870553e-05 | C99: -4.5 | D99: 7.991870553e-05
A100: 19.11 | B100: 9.995898353e-05 | C100: -4.45 | D100: 9.995898353e-05
A101: 19.12 | B101: 0.0001247123565 | C101: -4.4 | D101: 0.0001247123565
A102: 19.13 | B102: 0.0001552070353 | C102: -4.35 | D102: 0.0001552070353
A103: 19.14 | B103: 0.0001926759837 | C103: -4.3 | D103: 0.0001926759837
A104: 19.15 | B104: 0.0002385931827 | C104: -4.25 | D104: 0.0002385931827
A105: 19.16 | B105: 0.0002947153388 | C105: -4.2 | D105: 0.0002947153388
A106: 19.17 | B106: 0.0003631296515 | C106: -4.15 | D106: 0.0003631296515
A107: 19.18 | B107: 0.0004463082859 | C107: -4.1 | D107: 0.0004463082859
A108: 19.19 | B108: 0.0005471702172 | C108: -4.05 | D108: 0.0005471702172
A109: 19.2 | B109: 0.0006691511288 | C109: -4 | D109: 0.0006691511288
A110: 19.21 | B110: =_xlfn.NORM.DIST(A110,$B$4,$B$5,0) -> 0.0008162820438 | C110: -3.95 | D110: 0.0008162820438
A111: 19.22 | B111: 0.000993277357 | C111: -3.9 | D111: 0.000993277357
A112: 19.23 | B112: 0.001205632901 | C112: -3.85 | D112: 0.001205632901
A113: 19.24 | B113: 0.001459734629 | C113: -3.8 | D113: 0.001459734629
A114: 19.25 | B114: 0.001762978412 | C114: -3.75 | D114: 0.001762978412
A115: 19.26 | B115: 0.002123901353 | C115: -3.7 | D115: 0.002123901353
A116: 19.27 | B116: 0.002552324872 | C116: -3.65 | D116: 0.002552324872
A117: 19.28 | B117: 0.003059509651 | C117: -3.6 | D117: 0.003059509651
A118: 19.29 | B118: 0.003658322314 | C118: -3.55 | D118: 0.003658322314
A119: 19.3 | B119: 0.004363413475 | C119: -3.5 | D119: 0.004363413475
A120: 19.31 | B120: 0.005191406478 | C120: -3.45 | D120: 0.005191406478
A121: 19.32 | B121: 0.006161095842 | C121: -3.4 | D121: 0.006161095842
A122: 19.33 | B122: 0.007293654023 | C122: -3.35 | D122: 0.007293654023
A123: 19.34 | B123: 0.008612844695 | C123: -3.3 | D123: 0.008612844695
A124: 19.35 | B124: 0.01014524029 | C124: -3.25 | D124: 0.01014524029
A125: 19.36 | B125: 0.01192044101 | C125: -3.2 | D125: 0.01192044101
A126: 19.37 | B126: 0.01397129207 | C126: -3.15 | D126: 0.01397129207
A127: 19.38 | B127: 0.01633409528 | C127: -3.1 | D127: 0.01633409528
A128: 19.39 | B128: 0.01904881049 | C128: -3.05 | D128: 0.01904881049
A129: 19.4 | B129: 0.02215924206 | C129: -3 | D129: 0.02215924206
A130: 19.41 | B130: 0.02571320462 | C130: -2.95 | D130: 0.02571320462
A131: 19.42 | B131: 0.0297626621 | C131: -2.9 | D131: 0.0297626621
A132: 19.43 | B132: 0.03436383345 | C132: -2.85 | D132: 0.03436383345
A133: 19.44 | B133: 0.03957725791 | C133: -2.8 | D133: 0.03957725791
A134: 19.45 | B134: 0.04546781251 | C134: -2.75 | D134: 0.04546781251
A135: 19.46 | B135: 0.05210467407 | C135: -2.7 | D135: 0.05210467407
A136: 19.47 | B136: 0.05956121804 | C136: -2.65 | D136: 0.05956121804
A137: 19.48 | B137: 0.06791484617 | C137: -2.6 | D137: 0.06791484617
A138: 19.49 | B138: 0.07724673567 | C138: -2.55 | D138: 0.07724673567
A139: 19.5 | B139: 0.08764150247 | C139: -2.5 | D139: 0.08764150247
A140: 19.51 | B140: 0.09918677196 | C140: -2.45 | D140: 0.09918677196
A141: 19.52 | B141: 0.1119726515 | C141: -2.4 | D141: 0.1119726515
A142: 19.53 | B142: 0.1260910996 | C142: -2.35 | D142: 0.1260910996
A143: 19.54 | B143: 0.1416351887 | C143: -2.3 | D143: 0.1416351887
A144: 19.55 | B144: 0.1586982592 | C144: -2.25 | D144: 0.1586982592
A145: 19.56 | B145: 0.1773729642 | C145: -2.2 | D145: 0.1773729642
A146: 19.57 | B146: 0.1977502079 | C146: -2.15 | D146: 0.1977502079
A147: 19.58 | B147: 0.2199179799 | C147: -2.1 | D147: 0.2199179799
A148: 19.59 | B148: 0.2439600929 | C148: -2.05 | D148: 0.2439600929
A149: 19.6 | B149: 0.2699548326 | C149: -2
A150: 19.61 | B150: 0.2979735303 | C150: -1.95
A151: 19.62 | B151: 0.3280790739 | C151: -1.9
A152: 19.63 | B152: 0.3603243717 | C152: -1.85
A153: 19.64 | B153: 0.3947507915 | C153: -1.8
A154: 19.65 | B154: 0.4313865941 | C154: -1.75
A155: 19.66 | B155: 0.4702453869 | C155: -1.7
A156: 19.67 | B156: 0.5113246228 | C156: -1.65
A157: 19.68 | B157: 0.5546041734 | C157: -1.6
A158: 19.69 | B158: 0.6000450035 | C158: =(A158-$B$4)/$B$5 -> -1.55 | D158: =IF(A158<=$B$6,B158,"") -> 
A159: =A158+0.01 -> 19.7 | B159: 0.6475879783 | C159: -1.5
A160: 19.71 | B160: 0.6971528322 | C160: -1.45
A161: 19.72 | B161: 0.7486373282 | C161: -1.4
A162: 19.73 | B162: 0.8019166367 | C162: -1.35
A163: 19.74 | B163: 0.8568429602 | C163: -1.3
A164: 19.75 | B164: 0.9132454269 | C164: -1.25
A165: 19.76 | B165: 0.9709302749 | C165: -1.2
A166: 19.77 | B166: 1.029681344 | C166: -1.15
A167: 19.78 | B167: 1.089260885 | C167: -1.1
A168: 19.79 | B168: 1.149410703 | C168: -1.05
A169: 19.8 | B169: 1.209853623 | C169: -1
A170: 19.81 | B170: 1.270295282 | C170: -0.95
A171: 19.82 | B171: 1.330426249 | C171: -0.9
A172: 19.83 | B172: 1.389924431 | C172: -0.85
A173: 19.84 | B173: 1.448457764 | C173: -0.8
A174: 19.85 | B174: =_xlfn.NORM.DIST(A174,$B$4,$B$5,0) -> 1.505687161 | C174: -0.75
A175: 19.86 | B175: 1.561269667 | C175: -0.7
A176: 19.87 | B176: 1.614861798 | C176: -0.65
A177: 19.88 | B177: 1.666123014 | C177: -0.6
A178: 19.89 | B178: 1.714719275 | C178: -0.55
A179: 19.9 | B179: 1.760326634 | C179: -0.5
A180: 19.91 | B180: 1.802634812 | C180: -0.45
A181: 19.92 | B181: 1.841350702 | C181: -0.4
A182: 19.93 | B182: 1.876201735 | C182: -0.35
A183: 19.94 | B183: 1.906939077 | C183: -0.3
A184: 19.95 | B184: 1.933340584 | C184: -0.25
A185: 19.96 | B185: 1.95521347 | C185: -0.2
A186: 19.97 | B186: 1.972396655 | C186: -0.15
A187: 19.98 | B187: 1.984762737 | C187: -0.1
A188: 19.99 | B188: 1.99221957 | C188: -0.05
A189: 20 | B189: 1.994711402 | C189: 1.243449788e-12
A190: 20.01 | B190: 1.99221957 | C190: 0.05
A191: 20.02 | B191: 1.984762737 | C191: 0.1
A192: 20.03 | B192: 1.972396655 | C192: 0.15
A193: 20.04 | B193: 1.95521347 | C193: 0.2
A194: 20.05 | B194: 1.933340584 | C194: 0.25
A195: 20.06 | B195: 1.906939077 | C195: 0.3
A196: 20.07 | B196: 1.876201735 | C196: 0.35
A197: 20.08 | B197: 1.841350702 | C197: 0.4
A198: 20.09 | B198: 1.802634812 | C198: 0.45
A199: 20.1 | B199: 1.760326634 | C199: 0.5
A200: 20.11 | B200: 1.714719275 | C200: 0.55
A201: 20.12 | B201: 1.666123014 | C201: 0.6
A202: 20.13 | B202: 1.614861798 | C202: 0.65
A203: 20.14 | B203: 1.561269667 | C203: 0.7
A204: 20.15 | B204: 1.505687161 | C204: 0.75
A205: 20.16 | B205: 1.448457764 | C205: 0.8
A206: 20.17 | B206: 1.389924431 | C206: 0.85
A207: 20.18 | B207: 1.330426249 | C207: 0.9
A208: 20.19 | B208: 1.270295282 | C208: 0.95
A209: 20.2 | B209: 1.209853623 | C209: 1
A210: 20.21 | B210: 1.149410703 | C210: 1.05
A211: 20.22 | B211: 1.089260885 | C211: 1.1
A212: 20.23 | B212: 1.029681344 | C212: 1.15
A213: 20.24 | B213: 0.9709302749 | C213: 1.2
A214: 20.25 | B214: 0.9132454269 | C214: 1.25
A215: 20.26 | B215: 0.8568429602 | C215: 1.3
A216: 20.27 | B216: 0.8019166367 | C216: 1.35
A217: 20.28 | B217: 0.7486373282 | C217: 1.4
A218: 20.29 | B218: 0.6971528322 | C218: 1.45
A219: 20.3 | B219: 0.6475879783 | C219: 1.5
A220: 20.31 | B220: 0.6000450035 | C220: 1.55
A221: 20.32 | B221: 0.5546041734 | C221: 1.6
... 128 more rows

Sheet Normal <=
A1: Professor's past test score distribution is normally distributed | H1: =A1&CHAR(10)&A2&" = "&B2&CHAR(10)&A3&" = "&B3 -> Professor's past test score distribution is normally distributed Mean = µ = 74 SD = s = 10
A2: Mean = µ | B2: 74
A3: SD = s | B3: 10
A4: x | B4: 64
A5: Operator | B5: <=
A6: ="P("&A4&B5&B4&")" -> P(x<=64)
A7: z
A8: ="P("&A7&B5&B7&")" -> P(z<=)
A27: x | B27: P(x) | C27: z | D27: =A6&" = "&ROUND(_xlfn.NORM.DIST(B4,B2,B3,1),4) -> P(x<=64) = 0.1587
A28: 34 | B28: =_xlfn.NORM.DIST(A28,$B$2,$B$3,0) -> 1.338302258e-05 | C28: =(A28-$B$2)/$B$3 -> -4 | D28: =IF(A28<=$B$4,B28,"") -> 1.338302258e-05
A29: 35 | B29: 1.986554714e-05 | C29: =(A29-$B$2)/$B$3 -> -3.9 | D29: 1.986554714e-05
A30: 36 | B30: 2.919469258e-05 | C30: -3.8 | D30: 2.919469258e-05
A31: 37 | B31: 4.247802706e-05 | C31: -3.7 | D31: 4.247802706e-05
A32: 38 | B32: 6.119019301e-05 | C32: -3.6 | D32: 6.119019301e-05
A33: 39 | B33: 8.72682695e-05 | C33: -3.5 | D33: 8.72682695e-05
A34: 40 | B34: 0.0001232219168 | C34: -3.4 | D34: 0.0001232219168
A35: 41 | B35: 0.0001722568939 | C35: -3.3 | D35: 0.0001722568939
A36: 42 | B36: 0.0002384088201 | C36: -3.2 | D36: 0.0002384088201
A37: 43 | B37: 0.0003266819056 | C37: -3.1 | D37: 0.0003266819056
A38: 44 | B38: 0.0004431848412 | C38: -3 | D38: 0.0004431848412
A39: 45 | B39: 0.000595253242 | C39: -2.9 | D39: 0.000595253242
A40: 46 | B40: 0.0007915451583 | C40: -2.8 | D40: 0.0007915451583
A41: 47 | B41: 0.001042093481 | C41: -2.7 | D41: 0.001042093481
A42: 48 | B42: 0.001358296923 | C42: -2.6 | D42: 0.001358296923
A43: 49 | B43: 0.001752830049 | C43: -2.5 | D43: 0.001752830049
A44: 50 | B44: 0.002239453029 | C44: -2.4 | D44: 0.002239453029
A45: 51 | B45: 0.002832703774 | C45: -2.3 | D45: 0.002832703774
A46: 52 | B46: 0.003547459285 | C46: -2.2 | D46: 0.003547459285
A47: 53 | B47: 0.004398359598 | C47: -2.1 | D47: 0.004398359598
A48: 54 | B48: 0.005399096651 | C48: -2 | D48: 0.005399096651
A49: 55 | B49: 0.006561581477 | C49: -1.9 | D49: 0.006561581477
A50: 56 | B50: 0.00789501583 | C50: -1.8 | D50: 0.00789501583
A51: 57 | B51: 0.009404907738 | C51: -1.7 | D51: 0.009404907738
A52: 58 | B52: 0.01109208347 | C52: -1.6 | D52: 0.01109208347
A53: 59 | B53: 0.01295175957 | C53: -1.5 | D53: 0.01295175957
A54: 60 | B54: 0.01497274656 | C54: -1.4 | D54: 0.01497274656
A55: 61 | B55: 0.0171368592 | C55: -1.3 | D55: 0.0171368592
A56: 62 | B56: 0.0194186055 | C56: -1.2 | D56: 0.0194186055
A57: 63 | B57: 0.0217852177 | C57: -1.1 | D57: 0.0217852177
A58: 64 | B58: 0.02419707245 | C58: -1 | D58: 0.02419707245
A59: 65 | B59: 0.02660852499 | C59: -0.9
A60: 66 | B60: =_xlfn.NORM.DIST(A60,$B$2,$B$3,0) -> 0.02896915528 | C60: -0.8 | D60: =IF(A60<=$B$4,B60,"") -> 
A61: 67 | B61: 0.03122539334 | C61: -0.7
A62: 68 | B62: 0.03332246029 | C62: -0.6
A63: 69 | B63: 0.03520653268 | C63: -0.5
A64: 70 | B64: 0.03682701403 | C64: -0.4
A65: 71 | B65: 0.03813878155 | C65: -0.3
A66: 72 | B66: 0.0391042694 | C66: -0.2
A67: 73 | B67: 0.03969525475 | C67: -0.1
A68: 74 | B68: 0.03989422804 | C68: 0
A69: 75 | B69: 0.03969525475 | C69: 0.1
A70: 76 | B70: 0.0391042694 | C70: 0.2
A71: 77 | B71: 0.03813878155 | C71: 0.3
A72: 78 | B72: 0.03682701403 | C72: 0.4
A73: 79 | B73: 0.03520653268 | C73: 0.5
A74: 80 | B74: 0.03332246029 | C74: 0.6
A75: 81 | B75: 0.03122539334 | C75: 0.7
A76: 82 | B76: 0.02896915528 | C76: 0.8
A77: 83 | B77: 0.02660852499 | C77: 0.9
A78: 84 | B78: 0.02419707245 | C78: 1
A79: 85 | B79: 0.0217852177 | C79: 1.1
A80: 86 | B80: 0.0194186055 | C80: 1.2
A81: 87 | B81: 0.0171368592 | C81: 1.3
A82: 88 | B82: 0.01497274656 | C82: 1.4
A83: 89 | B83: 0.01295175957 | C83: 1.5
A84: 90 | B84: 0.01109208347 | C84: 1.6
A85: 91 | B85: 0.009404907738 | C85: 1.7
A86: 92 | B86: 0.00789501583 | C86: 1.8
A87: 93 | B87: 0.006561581477 | C87: 1.9
A88: 94 | B88: 0.005399096651 | C88: 2
A89: 95 | B89: 0.004398359598 | C89: 2.1
A90: 96 | B90: 0.003547459285 | C90: 2.2
A91: 97 | B91: 0.002832703774 | C91: 2.3
A92: 98 | B92: =_xlfn.NORM.DIST(A92,$B$2,$B$3,0) -> 0.002239453029 | C92: 2.4 | D92: =IF(A92<=$B$4,B92,"") -> 
A93: 99 | B93: 0.001752830049 | C93: =(A93-$B$2)/$B$3 -> 2.5
A94: 100 | B94: 0.001358296923 | C94: 2.6
A95: 101 | B95: 0.001042093481 | C95: 2.7
A96: 102 | B96: 0.0007915451583 | C96: 2.8
A97: 103 | B97: 0.000595253242 | C97: 2.9
A98: 104 | B98: 0.0004431848412 | C98: 3
A99: 105 | B99: 0.0003266819056 | C99: 3.1
A100: 106 | B100: 0.0002384088201 | C100: 3.2
A101: 107 | B101: 0.0001722568939 | C101: 3.3
A102: 108 | B102: 0.0001232219168 | C102: 3.4
A103: 109 | B103: 8.72682695e-05 | C103: 3.5
A104: 110 | B104: 6.119019301e-05 | C104: 3.6
A105: 111 | B105: 4.247802706e-05 | C105: 3.7
A106: 112 | B106: 2.919469258e-05 | C106: 3.8
A107: 113 | B107: 1.986554714e-05 | C107: 3.9
A108: 114 | B108: 1.338302258e-05 | C108: 4

Sheet Normal < =
A1: Professor's past test score distribution is normally distributed | H1: =A1&CHAR(10)&A2&" = "&B2&CHAR(10)&A3&" = "&B3 -> Professor's past test score distribution is normally distributed Mean = µ = 74 SD = s = 10
A2: Mean = µ | B2: 74
A3: SD = s | B3: 10
A4: x | B4: 64
A5: Operator | B5: <=
A6: ="P("&A4&B5&B4&")" -> P(x<=64) | B6: =_xlfn.NORM.DIST(B4,B2,B3,1) -> 0.1586552539 | C6: =" "&_xlfn.FORMULATEXT(B6) -> =NORM.DIST(B4,B2,B3,1)
A7: z | B7: =(B4-B2)/B3 -> -1 | C7: =" "&_xlfn.FORMULATEXT(B7) -> =(B4-B2)/B3
A8: ="P("&A7&B5&B7&")" -> P(z<=-1) | B8: =_xlfn.NORM.S.DIST(B7,1) -> 0.1586552539 | C8: =" "&_xlfn.FORMULATEXT(B8) -> =NORM.S.DIST(B7,1)
A27: x | B27: P(x) | C27: z | D27: =A6&" = "&ROUND(B6,4) -> P(x<=64) = 0.1587
A28: 34 | B28: =_xlfn.NORM.DIST(A28,$B$2,$B$3,0) -> 1.338302258e-05 | C28: =(A28-$B$2)/$B$3 -> -4 | D28: =IF(A28<=$B$4,B28,"") -> 1.338302258e-05
A29: 35 | B29: 1.986554714e-05 | C29: =(A29-$B$2)/$B$3 -> -3.9 | D29: 1.986554714e-05
A30: 36 | B30: 2.919469258e-05 | C30: -3.8 | D30: 2.919469258e-05
A31: 37 | B31: 4.247802706e-05 | C31: -3.7 | D31: 4.247802706e-05
A32: 38 | B32: 6.119019301e-05 | C32: -3.6 | D32: 6.119019301e-05
A33: 39 | B33: 8.72682695e-05 | C33: -3.5 | D33: 8.72682695e-05
A34: 40 | B34: 0.0001232219168 | C34: -3.4 | D34: 0.0001232219168
A35: 41 | B35: 0.0001722568939 | C35: -3.3 | D35: 0.0001722568939
A36: 42 | B36: 0.0002384088201 | C36: -3.2 | D36: 0.0002384088201
A37: 43 | B37: 0.0003266819056 | C37: -3.1 | D37: 0.0003266819056
A38: 44 | B38: 0.0004431848412 | C38: -3 | D38: 0.0004431848412
A39: 45 | B39: 0.000595253242 | C39: -2.9 | D39: 0.000595253242
A40: 46 | B40: 0.0007915451583 | C40: -2.8 | D40: 0.0007915451583
A41: 47 | B41: 0.001042093481 | C41: -2.7 | D41: 0.001042093481
A42: 48 | B42: 0.001358296923 | C42: -2.6 | D42: 0.001358296923
A43: 49 | B43: 0.001752830049 | C43: -2.5 | D43: 0.001752830049
A44: 50 | B44: 0.002239453029 | C44: -2.4 | D44: 0.002239453029
A45: 51 | B45: 0.002832703774 | C45: -2.3 | D45: 0.002832703774
A46: 52 | B46: 0.003547459285 | C46: -2.2 | D46: 0.003547459285
A47: 53 | B47: 0.004398359598 | C47: -2.1 | D47: 0.004398359598
A48: 54 | B48: 0.005399096651 | C48: -2 | D48: 0.005399096651
A49: 55 | B49: 0.006561581477 | C49: -1.9 | D49: 0.006561581477
A50: 56 | B50: 0.00789501583 | C50: -1.8 | D50: 0.00789501583
A51: 57 | B51: 0.009404907738 | C51: -1.7 | D51: 0.009404907738
A52: 58 | B52: 0.01109208347 | C52: -1.6 | D52: 0.01109208347
A53: 59 | B53: 0.01295175957 | C53: -1.5 | D53: 0.01295175957
A54: 60 | B54: 0.01497274656 | C54: -1.4 | D54: 0.01497274656
A55: 61 | B55: 0.0171368592 | C55: -1.3 | D55: 0.0171368592
A56: 62 | B56: 0.0194186055 | C56: -1.2 | D56: 0.0194186055
A57: 63 | B57: 0.0217852177 | C57: -1.1 | D57: 0.0217852177
A58: 64 | B58: 0.02419707245 | C58: -1 | D58: 0.02419707245
A59: 65 | B59: 0.02660852499 | C59: -0.9
A60: 66 | B60: 0.02896915528 | C60: -0.8
A61: 67 | B61: 0.03122539334 | C61: -0.7
A62: 68 | B62: 0.03332246029 | C62: -0.6
A63: 69 | B63: 0.03520653268 | C63: -0.5
A64: 70 | B64: 0.03682701403 | C64: -0.4
A65: 71 | B65: 0.03813878155 | C65: -0.3
A66: 72 | B66: 0.0391042694 | C66: -0.2
A67: 73 | B67: 0.03969525475 | C67: -0.1
A68: 74 | B68: 0.03989422804 | C68: 0
A69: 75 | B69: 0.03969525475 | C69: 0.1
A70: 76 | B70: 0.0391042694 | C70: 0.2
A71: 77 | B71: 0.03813878155 | C71: 0.3
A72: 78 | B72: 0.03682701403 | C72: 0.4
A73: 79 | B73: 0.03520653268 | C73: 0.5
A74: 80 | B74: 0.03332246029 | C74: 0.6
A75: 81 | B75: 0.03122539334 | C75: 0.7
A76: 82 | B76: 0.02896915528 | C76: 0.8
A77: 83 | B77: 0.02660852499 | C77: 0.9
A78: 84 | B78: 0.02419707245 | C78: 1
A79: 85 | B79: 0.0217852177 | C79: 1.1
A80: 86 | B80: 0.0194186055 | C80: 1.2
A81: 87 | B81: 0.0171368592 | C81: 1.3
A82: 88 | B82: 0.01497274656 | C82: 1.4
A83: 89 | B83: 0.01295175957 | C83: 1.5
A84: 90 | B84: 0.01109208347 | C84: 1.6
A85: 91 | B85: 0.009404907738 | C85: 1.7
A86: 92 | B86: 0.00789501583 | C86: 1.8
A87: 93 | B87: 0.006561581477 | C87: 1.9
A88: 94 | B88: 0.005399096651 | C88: 2
A89: 95 | B89: 0.004398359598 | C89: 2.1
A90: 96 | B90: 0.003547459285 | C90: 2.2
A91: 97 | B91: 0.002832703774 | C91: 2.3
A92: 98 | B92: =_xlfn.NORM.DIST(A92,$B$2,$B$3,0) -> 0.002239453029 | C92: 2.4 | D92: =IF(A92<=$B$4,B92,"") -> 
A93: 99 | B93: 0.001752830049 | C93: =(A93-$B$2)/$B$3 -> 2.5
A94: 100 | B94: 0.001358296923 | C94: 2.6
A95: 101 | B95: 0.001042093481 | C95: 2.7
A96: 102 | B96: 0.0007915451583 | C96: 2.8
A97: 103 | B97: 0.000595253242 | C97: 2.9
A98: 104 | B98: 0.0004431848412 | C98: 3
A99: 105 | B99: 0.0003266819056 | C99: 3.1
A100: 106 | B100: 0.0002384088201 | C100: 3.2
A101: 107 | B101: 0.0001722568939 | C101: 3.3
A102: 108 | B102: 0.0001232219168 | C102: 3.4
A103: 109 | B103: 8.72682695e-05 | C103: 3.5
A104: 110 | B104: 6.119019301e-05 | C104: 3.6
A105: 111 | B105: 4.247802706e-05 | C105: 3.7
A106: 112 | B106: 2.919469258e-05 | C106: 3.8
A107: 113 | B107: 1.986554714e-05 | C107: 3.9
A108: 114 | B108: 1.338302258e-05 | C108: 4

Sheet Normal >=
A1: Professor's past test score distribution is normally distributed | H1: =A1&CHAR(10)&A2&" = "&B2&CHAR(10)&A3&" = "&B3 -> Professor's past test score distribution is normally distributed Mean = µ = 74 SD = s = 10
A2: Mean = µ | B2: 74
A3: SD = s | B3: 10
A4: x | B4: 80
A5: Operator | B5: >=
A6: ="P("&A4&B5&B4&")" -> P(x>=80)
A7: z
A8: ="P("&A7&B5&B7&")" -> P(z>=)
A27: x | B27: P(x) | C27: z | D27: =A6&" = "&ROUND(1-_xlfn.NORM.DIST(B4,B2,B3,1),4) -> P(x>=80) = 0.2743
A28: 34 | B28: =_xlfn.NORM.DIST(A28,$B$2,$B$3,0) -> 1.338302258e-05 | C28: =(A28-$B$2)/$B$3 -> -4 | D28: =IF(A28>=$B$4,B28,"") -> 
A29: 35 | B29: 1.986554714e-05 | C29: -3.9
A30: 36 | B30: 2.919469258e-05 | C30: -3.8
A31: 37 | B31: 4.247802706e-05 | C31: -3.7
A32: 38 | B32: 6.119019301e-05 | C32: -3.6
A33: 39 | B33: 8.72682695e-05 | C33: -3.5
A34: 40 | B34: 0.0001232219168 | C34: -3.4
A35: 41 | B35: 0.0001722568939 | C35: -3.3
A36: 42 | B36: 0.0002384088201 | C36: -3.2
A37: 43 | B37: 0.0003266819056 | C37: -3.1
A38: 44 | B38: 0.0004431848412 | C38: -3
A39: 45 | B39: 0.000595253242 | C39: -2.9
A40: 46 | B40: 0.0007915451583 | C40: -2.8
A41: 47 | B41: 0.001042093481 | C41: -2.7
A42: 48 | B42: 0.001358296923 | C42: -2.6
A43: 49 | B43: 0.001752830049 | C43: -2.5
A44: 50 | B44: 0.002239453029 | C44: -2.4
A45: 51 | B45: 0.002832703774 | C45: -2.3
A46: 52 | B46: 0.003547459285 | C46: -2.2
A47: 53 | B47: 0.004398359598 | C47: -2.1
A48: 54 | B48: 0.005399096651 | C48: -2
A49: 55 | B49: 0.006561581477 | C49: -1.9
A50: 56 | B50: 0.00789501583 | C50: -1.8
A51: 57 | B51: 0.009404907738 | C51: -1.7
A52: 58 | B52: 0.01109208347 | C52: -1.6
A53: 59 | B53: 0.01295175957 | C53: -1.5
A54: 60 | B54: 0.01497274656 | C54: -1.4
A55: 61 | B55: 0.0171368592 | C55: -1.3
A56: 62 | B56: 0.0194186055 | C56: -1.2
A57: 63 | B57: 0.0217852177 | C57: -1.1
A58: 64 | B58: 0.02419707245 | C58: -1
A59: 65 | B59: 0.02660852499 | C59: -0.9
A60: 66 | B60: =_xlfn.NORM.DIST(A60,$B$2,$B$3,0) -> 0.02896915528 | C60: =(A60-$B$2)/$B$3 -> -0.8 | D60: =IF(A60>=$B$4,B60,"") -> 
A61: 67 | B61: 0.03122539334 | C61: -0.7
A62: 68 | B62: 0.03332246029 | C62: -0.6
A63: 69 | B63: 0.03520653268 | C63: -0.5
A64: 70 | B64: 0.03682701403 | C64: -0.4
A65: 71 | B65: 0.03813878155 | C65: -0.3
A66: 72 | B66: 0.0391042694 | C66: -0.2
A67: 73 | B67: 0.03969525475 | C67: -0.1
A68: 74 | B68: 0.03989422804 | C68: 0
A69: 75 | B69: 0.03969525475 | C69: 0.1
A70: 76 | B70: 0.0391042694 | C70: 0.2
A71: 77 | B71: 0.03813878155 | C71: 0.3
A72: 78 | B72: 0.03682701403 | C72: 0.4
A73: 79 | B73: 0.03520653268 | C73: 0.5
A74: 80 | B74: 0.03332246029 | C74: 0.6 | D74: 0.03332246029
A75: 81 | B75: 0.03122539334 | C75: 0.7 | D75: 0.03122539334
A76: 82 | B76: 0.02896915528 | C76: 0.8 | D76: 0.02896915528
A77: 83 | B77: 0.02660852499 | C77: 0.9 | D77: 0.02660852499
A78: 84 | B78: 0.02419707245 | C78: 1 | D78: 0.02419707245
A79: 85 | B79: 0.0217852177 | C79: 1.1 | D79: 0.0217852177
A80: 86 | B80: 0.0194186055 | C80: 1.2 | D80: 0.0194186055
A81: 87 | B81: 0.0171368592 | C81: 1.3 | D81: 0.0171368592
A82: 88 | B82: 0.01497274656 | C82: 1.4 | D82: 0.01497274656
A83: 89 | B83: 0.01295175957 | C83: 1.5 | D83: 0.01295175957
A84: 90 | B84: 0.01109208347 | C84: 1.6 | D84: 0.01109208347
A85: 91 | B85: 0.009404907738 | C85: 1.7 | D85: 0.009404907738
A86: 92 | B86: 0.00789501583 | C86: 1.8 | D86: 0.00789501583
A87: 93 | B87: 0.006561581477 | C87: 1.9 | D87: 0.006561581477
A88: 94 | B88: 0.005399096651 | C88: 2 | D88: 0.005399096651
A89: 95 | B89: 0.004398359598 | C89: 2.1 | D89: 0.004398359598
A90: 96 | B90: 0.003547459285 | C90: 2.2 | D90: 0.003547459285
A91: 97 | B91: 0.002832703774 | C91: 2.3 | D91: 0.002832703774
A92: 98 | B92: =_xlfn.NORM.DIST(A92,$B$2,$B$3,0) -> 0.002239453029 | C92: =(A92-$B$2)/$B$3 -> 2.4 | D92: =IF(A92>=$B$4,B92,"") -> 0.002239453029
A93: 99 | B93: 0.001752830049 | C93: 2.5 | D93: 0.001752830049
A94: 100 | B94: 0.001358296923 | C94: 2.6 | D94: 0.001358296923
A95: 101 | B95: 0.001042093481 | C95: 2.7 | D95: 0.001042093481
A96: 102 | B96: 0.0007915451583 | C96: 2.8 | D96: 0.0007915451583
A97: 103 | B97: 0.000595253242 | C97: 2.9 | D97: 0.000595253242
A98: 104 | B98: 0.0004431848412 | C98: 3 | D98: 0.0004431848412
A99: 105 | B99: 0.0003266819056 | C99: 3.1 | D99: 0.0003266819056
A100: 106 | B100: 0.0002384088201 | C100: 3.2 | D100: 0.0002384088201
A101: 107 | B101: 0.0001722568939 | C101: 3.3 | D101: 0.0001722568939
A102: 108 | B102: 0.0001232219168 | C102: 3.4 | D102: 0.0001232219168
A103: 109 | B103: 8.72682695e-05 | C103: 3.5 | D103: 8.72682695e-05
A104: 110 | B104: 6.119019301e-05 | C104: 3.6 | D104: 6.119019301e-05
A105: 111 | B105: 4.247802706e-05 | C105: 3.7 | D105: 4.247802706e-05
A106: 112 | B106: 2.919469258e-05 | C106: 3.8 | D106: 2.919469258e-05
A107: 113 | B107: 1.986554714e-05 | C107: 3.9 | D107: 1.986554714e-05
A108: 114 | B108: 1.338302258e-05 | C108: 4 | D108: 1.338302258e-05

Sheet Normal > =
A1: Professor's past test score distribution is normally distributed | H1: =A1&CHAR(10)&A2&" = "&B2&CHAR(10)&A3&" = "&B3 -> Professor's past test score distribution is normally distributed Mean = µ = 74 SD = s = 10
A2: Mean = µ | B2: 74
A3: SD = s | B3: 10
A4: x | B4: 80
A5: Operator | B5: >=
A6: ="P("&A4&B5&B4&")" -> P(x>=80) | B6: =1-_xlfn.NORM.DIST(B4,B2,B3,1) -> 0.2742531178 | C6: =" "&_xlfn.FORMULATEXT(B6) -> =1-NORM.DIST(B4,B2,B3,1)
A7: z | B7: =(B4-B2)/B3 -> 0.6 | C7: =(B4-B2)/B3
A8: ="P("&A7&B5&B7&")" -> P(z>=0.6) | B8: =1-_xlfn.NORM.S.DIST(B7,1) -> 0.2742531178 | C8: =1-NORM.S.DIST(B7,1)
A27: x | B27: P(x) | C27: z | D27: =A6&" = "&ROUND(B6,4) -> P(x>=80) = 0.2743
A28: 34 | B28: =_xlfn.NORM.DIST(A28,$B$2,$B$3,0) -> 1.338302258e-05 | C28: =(A28-$B$2)/$B$3 -> -4 | D28: =IF(A28>=$B$4,B28,"") -> 
A29: 35 | B29: 1.986554714e-05 | C29: -3.9
A30: 36 | B30: 2.919469258e-05 | C30: -3.8
A31: 37 | B31: 4.247802706e-05 | C31: -3.7
A32: 38 | B32: 6.119019301e-05 | C32: -3.6
A33: 39 | B33: 8.72682695e-05 | C33: -3.5
A34: 40 | B34: 0.0001232219168 | C34: -3.4
A35: 41 | B35: 0.0001722568939 | C35: -3.3
A36: 42 | B36: 0.0002384088201 | C36: -3.2
A37: 43 | B37: 0.0003266819056 | C37: -3.1
A38: 44 | B38: 0.0004431848412 | C38: -3
A39: 45 | B39: 0.000595253242 | C39: -2.9
A40: 46 | B40: 0.0007915451583 | C40: -2.8
A41: 47 | B41: 0.001042093481 | C41: -2.7
A42: 48 | B42: 0.001358296923 | C42: -2.6
A43: 49 | B43: 0.001752830049 | C43: -2.5
A44: 50 | B44: 0.002239453029 | C44: -2.4
A45: 51 | B45: 0.002832703774 | C45: -2.3
A46: 52 | B46: 0.003547459285 | C46: -2.2
A47: 53 | B47: 0.004398359598 | C47: -2.1
A48: 54 | B48: 0.005399096651 | C48: -2
A49: 55 | B49: 0.006561581477 | C49: -1.9
A50: 56 | B50: 0.00789501583 | C50: -1.8
A51: 57 | B51: 0.009404907738 | C51: -1.7
A52: 58 | B52: 0.01109208347 | C52: -1.6
A53: 59 | B53: 0.01295175957 | C53: -1.5
A54: 60 | B54: 0.01497274656 | C54: -1.4
A55: 61 | B55: 0.0171368592 | C55: -1.3
A56: 62 | B56: 0.0194186055 | C56: -1.2
A57: 63 | B57: 0.0217852177 | C57: -1.1
A58: 64 | B58: 0.02419707245 | C58: -1
A59: 65 | B59: 0.02660852499 | C59: -0.9
A60: 66 | B60: 0.02896915528 | C60: -0.8
A61: 67 | B61: 0.03122539334 | C61: -0.7
A62: 68 | B62: 0.03332246029 | C62: -0.6
A63: 69 | B63: 0.03520653268 | C63: -0.5
A64: 70 | B64: 0.03682701403 | C64: -0.4
A65: 71 | B65: 0.03813878155 | C65: -0.3
A66: 72 | B66: 0.0391042694 | C66: -0.2
A67: 73 | B67: 0.03969525475 | C67: -0.1
A68: 74 | B68: 0.03989422804 | C68: 0
A69: 75 | B69: 0.03969525475 | C69: 0.1
A70: 76 | B70: 0.0391042694 | C70: 0.2
A71: 77 | B71: 0.03813878155 | C71: 0.3
A72: 78 | B72: 0.03682701403 | C72: 0.4
A73: 79 | B73: 0.03520653268 | C73: 0.5
A74: 80 | B74: 0.03332246029 | C74: 0.6 | D74: 0.03332246029
A75: 81 | B75: 0.03122539334 | C75: 0.7 | D75: 0.03122539334
A76: 82 | B76: 0.02896915528 | C76: 0.8 | D76: 0.02896915528
A77: 83 | B77: 0.02660852499 | C77: 0.9 | D77: 0.02660852499
A78: 84 | B78: 0.02419707245 | C78: 1 | D78: 0.02419707245
A79: 85 | B79: 0.0217852177 | C79: 1.1 | D79: 0.0217852177
A80: 86 | B80: 0.0194186055 | C80: 1.2 | D80: 0.0194186055
A81: 87 | B81: 0.0171368592 | C81: 1.3 | D81: 0.0171368592
A82: 88 | B82: 0.01497274656 | C82: 1.4 | D82: 0.01497274656
A83: 89 | B83: 0.01295175957 | C83: 1.5 | D83: 0.01295175957
A84: 90 | B84: 0.01109208347 | C84: 1.6 | D84: 0.01109208347
A85: 91 | B85: 0.009404907738 | C85: 1.7 | D85: 0.009404907738
A86: 92 | B86: 0.00789501583 | C86: 1.8 | D86: 0.00789501583
A87: 93 | B87: 0.006561581477 | C87: 1.9 | D87: 0.006561581477
A88: 94 | B88: 0.005399096651 | C88: 2 | D88: 0.005399096651
A89: 95 | B89: 0.004398359598 | C89: 2.1 | D89: 0.004398359598
A90: 96 | B90: 0.003547459285 | C90: 2.2 | D90: 0.003547459285
A91: 97 | B91: 0.002832703774 | C91: 2.3 | D91: 0.002832703774
A92: 98 | B92: =_xlfn.NORM.DIST(A92,$B$2,$B$3,0) -> 0.002239453029 | C92: =(A92-$B$2)/$B$3 -> 2.4 | D92: =IF(A92>=$B$4,B92,"") -> 0.002239453029
A93: 99 | B93: 0.001752830049 | C93: 2.5 | D93: 0.001752830049
A94: 100 | B94: 0.001358296923 | C94: 2.6 | D94: 0.001358296923
A95: 101 | B95: 0.001042093481 | C95: 2.7 | D95: 0.001042093481
A96: 102 | B96: 0.0007915451583 | C96: 2.8 | D96: 0.0007915451583
A97: 103 | B97: 0.000595253242 | C97: 2.9 | D97: 0.000595253242
A98: 104 | B98: 0.0004431848412 | C98: 3 | D98: 0.0004431848412
A99: 105 | B99: 0.0003266819056 | C99: 3.1 | D99: 0.0003266819056
A100: 106 | B100: 0.0002384088201 | C100: 3.2 | D100: 0.0002384088201
A101: 107 | B101: 0.0001722568939 | C101: 3.3 | D101: 0.0001722568939
A102: 108 | B102: 0.0001232219168 | C102: 3.4 | D102: 0.0001232219168
A103: 109 | B103: 8.72682695e-05 | C103: 3.5 | D103: 8.72682695e-05
A104: 110 | B104: 6.119019301e-05 | C104: 3.6 | D104: 6.119019301e-05
A105: 111 | B105: 4.247802706e-05 | C105: 3.7 | D105: 4.247802706e-05
A106: 112 | B106: 2.919469258e-05 | C106: 3.8 | D106: 2.919469258e-05
A107: 113 | B107: 1.986554714e-05 | C107: 3.9 | D107: 1.986554714e-05
A108: 114 | B108: 1.338302258e-05 | C108: 4 | D108: 1.338302258e-05

Sheet Normal Between
A1: Professor's past test score distribution is normally distributed | H1: =A1&CHAR(10)&A2&" = "&B2&CHAR(10)&A3&" = "&B3 -> Professor's past test score distribution is normally distributed Mean = µ = 74 SD = s = 10
A2: Mean = µ | B2: 74
A3: SD = s | B3: 10
A4: x lower | B4: 75
A5: x upper | B5: 90
A6: Operator | B6: between
A7: ="P("&B4&" <= "&LEFT(A4,1)&" <= "&B5&")" -> P(75 <= x <= 90)
A8: z lower
A9: z upper
A10: ="P("&B8&" <= "&LEFT(A8,1)&" <= "&B9&")" -> P( <= z <= )
A27: x | B27: P(x) | C27: z | D27: =A7&" = "&ROUND(_xlfn.NORM.DIST(B5,B2,B3,1)-_xlfn.NORM.DIST(B4,B2,B3,1),4) -> P(75 <= x <= 90) = 0.4054
A28: 34 | B28: =_xlfn.NORM.DIST(A28,$B$2,$B$3,0) -> 1.338302258e-05 | C28: =(A28-$B$2)/$B$3 -> -4 | D28: =IF(AND(A28>=$B$4,A28<=$B$5),B28,"") -> 
A29: 35 | B29: 1.986554714e-05 | C29: =(A29-$B$2)/$B$3 -> -3.9
A30: 36 | B30: 2.919469258e-05 | C30: -3.8
A31: 37 | B31: 4.247802706e-05 | C31: -3.7
A32: 38 | B32: 6.119019301e-05 | C32: -3.6
A33: 39 | B33: 8.72682695e-05 | C33: -3.5
A34: 40 | B34: 0.0001232219168 | C34: -3.4
A35: 41 | B35: 0.0001722568939 | C35: -3.3
A36: 42 | B36: 0.0002384088201 | C36: -3.2
A37: 43 | B37: 0.0003266819056 | C37: -3.1
A38: 44 | B38: 0.0004431848412 | C38: -3
A39: 45 | B39: 0.000595253242 | C39: -2.9
A40: 46 | B40: 0.0007915451583 | C40: -2.8
A41: 47 | B41: 0.001042093481 | C41: -2.7
A42: 48 | B42: 0.001358296923 | C42: -2.6
A43: 49 | B43: 0.001752830049 | C43: -2.5
A44: 50 | B44: 0.002239453029 | C44: -2.4
A45: 51 | B45: 0.002832703774 | C45: -2.3
A46: 52 | B46: 0.003547459285 | C46: -2.2
A47: 53 | B47: 0.004398359598 | C47: -2.1
A48: 54 | B48: 0.005399096651 | C48: -2
A49: 55 | B49: 0.006561581477 | C49: -1.9
A50: 56 | B50: 0.00789501583 | C50: -1.8
A51: 57 | B51: 0.009404907738 | C51: -1.7
A52: 58 | B52: 0.01109208347 | C52: -1.6
A53: 59 | B53: 0.01295175957 | C53: -1.5
A54: 60 | B54: 0.01497274656 | C54: -1.4
A55: 61 | B55: 0.0171368592 | C55: -1.3
A56: 62 | B56: 0.0194186055 | C56: -1.2
A57: 63 | B57: 0.0217852177 | C57: -1.1
A58: 64 | B58: 0.02419707245 | C58: -1
A59: 65 | B59: 0.02660852499 | C59: -0.9
A60: 66 | B60: =_xlfn.NORM.DIST(A60,$B$2,$B$3,0) -> 0.02896915528 | C60: -0.8 | D60: =IF(AND(A60>=$B$4,A60<=$B$5),B60,"") -> 
A61: 67 | B61: 0.03122539334 | C61: -0.7
A62: 68 | B62: 0.03332246029 | C62: -0.6
A63: 69 | B63: 0.03520653268 | C63: -0.5
A64: 70 | B64: 0.03682701403 | C64: -0.4
A65: 71 | B65: 0.03813878155 | C65: -0.3
A66: 72 | B66: 0.0391042694 | C66: -0.2
A67: 73 | B67: 0.03969525475 | C67: -0.1
A68: 74 | B68: 0.03989422804 | C68: 0
A69: 75 | B69: 0.03969525475 | C69: 0.1 | D69: 0.03969525475
A70: 76 | B70: 0.0391042694 | C70: 0.2 | D70: 0.0391042694
A71: 77 | B71: 0.03813878155 | C71: 0.3 | D71: 0.03813878155
A72: 78 | B72: 0.03682701403 | C72: 0.4 | D72: 0.03682701403
A73: 79 | B73: 0.03520653268 | C73: 0.5 | D73: 0.03520653268
A74: 80 | B74: 0.03332246029 | C74: 0.6 | D74: 0.03332246029
A75: 81 | B75: 0.03122539334 | C75: 0.7 | D75: 0.03122539334
A76: 82 | B76: 0.02896915528 | C76: 0.8 | D76: 0.02896915528
A77: 83 | B77: 0.02660852499 | C77: 0.9 | D77: 0.02660852499
A78: 84 | B78: 0.02419707245 | C78: 1 | D78: 0.02419707245
A79: 85 | B79: 0.0217852177 | C79: 1.1 | D79: 0.0217852177
A80: 86 | B80: 0.0194186055 | C80: 1.2 | D80: 0.0194186055
A81: 87 | B81: 0.0171368592 | C81: 1.3 | D81: 0.0171368592
A82: 88 | B82: 0.01497274656 | C82: 1.4 | D82: 0.01497274656
A83: 89 | B83: 0.01295175957 | C83: 1.5 | D83: 0.01295175957
A84: 90 | B84: 0.01109208347 | C84: 1.6 | D84: 0.01109208347
A85: 91 | B85: 0.009404907738 | C85: 1.7
A86: 92 | B86: 0.00789501583 | C86: 1.8
A87: 93 | B87: 0.006561581477 | C87: 1.9
A88: 94 | B88: 0.005399096651 | C88: 2
A89: 95 | B89: 0.004398359598 | C89: 2.1
A90: 96 | B90: 0.003547459285 | C90: 2.2
A91: 97 | B91: 0.002832703774 | C91: 2.3
A92: 98 | B92: =_xlfn.NORM.DIST(A92,$B$2,$B$3,0) -> 0.002239453029 | C92: 2.4 | D92: =IF(AND(A92>=$B$4,A92<=$B$5),B92,"") -> 
A93: 99 | B93: 0.001752830049 | C93: =(A93-$B$2)/$B$3 -> 2.5
A94: 100 | B94: 0.001358296923 | C94: 2.6
A95: 101 | B95: 0.001042093481 | C95: 2.7
A96: 102 | B96: 0.0007915451583 | C96: 2.8
A97: 103 | B97: 0.000595253242 | C97: 2.9
A98: 104 | B98: 0.0004431848412 | C98: 3
A99: 105 | B99: 0.0003266819056 | C99: 3.1
A100: 106 | B100: 0.0002384088201 | C100: 3.2
A101: 107 | B101: 0.0001722568939 | C101: 3.3
A102: 108 | B102: 0.0001232219168 | C102: 3.4
A103: 109 | B103: 8.72682695e-05 | C103: 3.5
A104: 110 | B104: 6.119019301e-05 | C104: 3.6
A105: 111 | B105: 4.247802706e-05 | C105: 3.7
A106: 112 | B106: 2.919469258e-05 | C106: 3.8
A107: 113 | B107: 1.986554714e-05 | C107: 3.9
A108: 114 | B108: 1.338302258e-05 | C108: 4

Sheet Normal Between
A1: Professor's past test score distribution is normally distributed | H1: =A1&CHAR(10)&A2&" = "&B2&CHAR(10)&A3&" = "&B3 -> Professor's past test score distribution is normally distributed Mean = µ = 74 SD = s = 10
A2: Mean = µ | B2: 74
A3: SD = s | B3: 10
A4: x lower | B4: 75
A5: x upper | B5: 90
A6: Operator | B6: between
A7: ="P("&B4&" <= "&LEFT(A4,1)&" <= "&B5&")" -> P(75 <= x <= 90) | B7: =_xlfn.NORM.DIST(B5,B2,B3,1)-_xlfn.NORM.DIST(B4,B2,B3,1) -> 0.405372871 | C7: =" "&_xlfn.FORMULATEXT(B7) -> =NORM.DIST(B5,B2,B3,1)-NORM.DIST(B4,B2,B3,1)
A8: z lower | B8: =(B4-$B$2)/$B$3 -> 0.1 | C8: =(B4-$B$2)/$B$3
A9: z upper | B9: =(B5-$B$2)/$B$3 -> 1.6 | C9: =(B5-$B$2)/$B$3
A10: ="P("&B8&" <= "&LEFT(A8,1)&" <= "&B9&")" -> P(0.1 <= z <= 1.6) | B10: =_xlfn.NORM.S.DIST(B9,1)-_xlfn.NORM.S.DIST(B8,1) -> 0.405372871 | C10: =NORM.S.DIST(B9,1)-NORM.S.DIST(B8,1)
A27: x | B27: P(x) | C27: z | D27: =A7&" = "&ROUND(B7,4) -> P(75 <= x <= 90) = 0.4054
A28: 34 | B28: =_xlfn.NORM.DIST(A28,$B$2,$B$3,0) -> 1.338302258e-05 | C28: =(A28-$B$2)/$B$3 -> -4 | D28: =IF(AND(A28>=$B$4,A28<=$B$5),B28,"") -> 
A29: 35 | B29: 1.986554714e-05 | C29: =(A29-$B$2)/$B$3 -> -3.9
A30: 36 | B30: 2.919469258e-05 | C30: -3.8
A31: 37 | B31: 4.247802706e-05 | C31: -3.7
A32: 38 | B32: 6.119019301e-05 | C32: -3.6
A33: 39 | B33: 8.72682695e-05 | C33: -3.5
A34: 40 | B34: 0.0001232219168 | C34: -3.4
A35: 41 | B35: 0.0001722568939 | C35: -3.3
A36: 42 | B36: 0.0002384088201 | C36: -3.2
A37: 43 | B37: 0.0003266819056 | C37: -3.1
A38: 44 | B38: 0.0004431848412 | C38: -3
A39: 45 | B39: 0.000595253242 | C39: -2.9
A40: 46 | B40: 0.0007915451583 | C40: -2.8
A41: 47 | B41: 0.001042093481 | C41: -2.7
A42: 48 | B42: 0.001358296923 | C42: -2.6
A43: 49 | B43: 0.001752830049 | C43: -2.5
A44: 50 | B44: 0.002239453029 | C44: -2.4
A45: 51 | B45: 0.002832703774 | C45: -2.3
A46: 52 | B46: 0.003547459285 | C46: -2.2
A47: 53 | B47: 0.004398359598 | C47: -2.1
A48: 54 | B48: 0.005399096651 | C48: -2
A49: 55 | B49: 0.006561581477 | C49: -1.9
A50: 56 | B50: 0.00789501583 | C50: -1.8
A51: 57 | B51: 0.009404907738 | C51: -1.7
A52: 58 | B52: 0.01109208347 | C52: -1.6
A53: 59 | B53: 0.01295175957 | C53: -1.5
A54: 60 | B54: 0.01497274656 | C54: -1.4
A55: 61 | B55: 0.0171368592 | C55: -1.3
A56: 62 | B56: 0.0194186055 | C56: -1.2
A57: 63 | B57: 0.0217852177 | C57: -1.1
A58: 64 | B58: 0.02419707245 | C58: -1
A59: 65 | B59: 0.02660852499 | C59: -0.9
A60: 66 | B60: 0.02896915528 | C60: -0.8
A61: 67 | B61: 0.03122539334 | C61: -0.7
A62: 68 | B62: 0.03332246029 | C62: -0.6
A63: 69 | B63: 0.03520653268 | C63: -0.5
A64: 70 | B64: 0.03682701403 | C64: -0.4
A65: 71 | B65: 0.03813878155 | C65: -0.3
A66: 72 | B66: 0.0391042694 | C66: -0.2
A67: 73 | B67: 0.03969525475 | C67: -0.1
A68: 74 | B68: 0.03989422804 | C68: 0
A69: 75 | B69: 0.03969525475 | C69: 0.1 | D69: 0.03969525475
A70: 76 | B70: 0.0391042694 | C70: 0.2 | D70: 0.0391042694
A71: 77 | B71: 0.03813878155 | C71: 0.3 | D71: 0.03813878155
A72: 78 | B72: 0.03682701403 | C72: 0.4 | D72: 0.03682701403
A73: 79 | B73: 0.03520653268 | C73: 0.5 | D73: 0.03520653268
A74: 80 | B74: 0.03332246029 | C74: 0.6 | D74: 0.03332246029
A75: 81 | B75: 0.03122539334 | C75: 0.7 | D75: 0.03122539334
A76: 82 | B76: 0.02896915528 | C76: 0.8 | D76: 0.02896915528
A77: 83 | B77: 0.02660852499 | C77: 0.9 | D77: 0.02660852499
A78: 84 | B78: 0.02419707245 | C78: 1 | D78: 0.02419707245
A79: 85 | B79: 0.0217852177 | C79: 1.1 | D79: 0.0217852177
A80: 86 | B80: 0.0194186055 | C80: 1.2 | D80: 0.0194186055
A81: 87 | B81: 0.0171368592 | C81: 1.3 | D81: 0.0171368592
A82: 88 | B82: 0.01497274656 | C82: 1.4 | D82: 0.01497274656
A83: 89 | B83: 0.01295175957 | C83: 1.5 | D83: 0.01295175957
A84: 90 | B84: 0.01109208347 | C84: 1.6 | D84: 0.01109208347
A85: 91 | B85: 0.009404907738 | C85: 1.7
A86: 92 | B86: 0.00789501583 | C86: 1.8
A87: 93 | B87: 0.006561581477 | C87: 1.9
A88: 94 | B88: 0.005399096651 | C88: 2
A89: 95 | B89: 0.004398359598 | C89: 2.1
A90: 96 | B90: 0.003547459285 | C90: 2.2
A91: 97 | B91: 0.002832703774 | C91: 2.3
A92: 98 | B92: =_xlfn.NORM.DIST(A92,$B$2,$B$3,0) -> 0.002239453029 | C92: 2.4 | D92: =IF(AND(A92>=$B$4,A92<=$B$5),B92,"") -> 
A93: 99 | B93: 0.001752830049 | C93: =(A93-$B$2)/$B$3 -> 2.5
A94: 100 | B94: 0.001358296923 | C94: 2.6
A95: 101 | B95: 0.001042093481 | C95: 2.7
A96: 102 | B96: 0.0007915451583 | C96: 2.8
A97: 103 | B97: 0.000595253242 | C97: 2.9
A98: 104 | B98: 0.0004431848412 | C98: 3
A99: 105 | B99: 0.0003266819056 | C99: 3.1
A100: 106 | B100: 0.0002384088201 | C100: 3.2
A101: 107 | B101: 0.0001722568939 | C101: 3.3
A102: 108 | B102: 0.0001232219168 | C102: 3.4
A103: 109 | B103: 8.72682695e-05 | C103: 3.5
A104: 110 | B104: 6.119019301e-05 | C104: 3.6
A105: 111 | B105: 4.247802706e-05 | C105: 3.7
A106: 112 | B106: 2.919469258e-05 | C106: 3.8
A107: 113 | B107: 1.986554714e-05 | C107: 3.9
A108: 114 | B108: 1.338302258e-05 | C108: 4

Sheet Find x
A1: Professor's past test score distribution is normally distributed | H1: =A1&CHAR(10)&A2&" = "&B2&CHAR(10)&A3&" = "&B3 -> Professor's past test score distribution is normally distributed Mean = µ = 74 SD = s = 10
A2: Mean = µ | B2: 74 | H2: ="What is the x or z value that corresponds to the top "&TEXT(B4,"0%")&"?" -> What is the x or z value that corresponds to the top 10%?
A3: SD = s | B3: 10
A4: Probability | B4: 0.1
A5: X value
A6: z value
A27: x | B27: z | C27: P(x) | D27: ="P(x upper) = "&B4 -> P(x upper) = 0.1
A28: 34 | B28: =(A28-$B$2)/$B$3 -> -4 | C28: =_xlfn.NORM.DIST(A28,$B$2,$B$3,0) -> 1.338302258e-05 | D28: =IF(_xlfn.NORM.S.INV(1-$B$4)>=B28,"",C28) ->  | I28: Chart Instructions:
A29: 35 | B29: -3.9 | C29: =_xlfn.NORM.DIST(A29,$B$2,$B$3,0) -> 1.986554714e-05 | I29: 1) Highlight P(x) column of chart heights and create area chart
A30: 36 | B30: -3.8 | C30: =_xlfn.NORM.DIST(A30,$B$2,$B$3,0) -> 2.919469258e-05 | I30: 2) Design Ribbon Tab, Select Data button, Add second column of P(x) with chart heights
A31: 37 | B31: -3.7 | C31: 4.247802706e-05 | I31: 3) Select second column of P(x) in chart, Ctrl + 1, Add to Secondary Axis
A32: 38 | B32: -3.6 | C32: 6.119019301e-05 | I32: 4) Design Ribbon Tab, Edit both Series Horizontal Axis to add x and z.
A33: 39 | B33: -3.5 | C33: 8.72682695e-05 | I33: 5) Click Plus Button, Axis, check Secondary Horizontal Axis
A34: 40 | B34: -3.4 | C34: 0.0001232219168 | I34: 6) Select Top Axis, ctrl 1 to open Task Pane, then go to Series, then in Labels, Specify interval as 10
A35: 41 | B35: -3.3 | C35: 0.0001722568939 | I35: 7) Still in Labels, select Label position Low
A36: 42 | B36: -3.2 | C36: 0.0002384088201 | I36: 8) Above Labels in Tick Marks, Major and Minor: None
A37: 43 | B37: -3.1 | C37: 0.0003266819056 | I37: 9) Adjust size of chart area to allow x-z text box
A38: 44 | B38: -3 | C38: 0.0004431848412 | I38: 10) Insert Ribbon Tab, Text Box
A39: 45 | B39: -2.9 | C39: 0.000595253242
A40: 46 | B40: -2.8 | C40: 0.0007915451583
A41: 47 | B41: -2.7 | C41: 0.001042093481
A42: 48 | B42: -2.6 | C42: 0.001358296923
A43: 49 | B43: -2.5 | C43: 0.001752830049
A44: 50 | B44: -2.4 | C44: 0.002239453029
A45: 51 | B45: -2.3 | C45: 0.002832703774
A46: 52 | B46: -2.2 | C46: 0.003547459285
A47: 53 | B47: -2.1 | C47: 0.004398359598
A48: 54 | B48: -2 | C48: 0.005399096651
A49: 55 | B49: -1.9 | C49: 0.006561581477
A50: 56 | B50: -1.8 | C50: 0.00789501583
A51: 57 | B51: -1.7 | C51: 0.009404907738
A52: 58 | B52: -1.6 | C52: 0.01109208347
A53: 59 | B53: -1.5 | C53: 0.01295175957
A54: 60 | B54: -1.4 | C54: 0.01497274656
A55: 61 | B55: -1.3 | C55: 0.0171368592
A56: 62 | B56: -1.2 | C56: 0.0194186055
A57: 63 | B57: -1.1 | C57: 0.0217852177
A58: 64 | B58: -1 | C58: 0.02419707245
A59: 65 | B59: -0.9 | C59: 0.02660852499
A60: 66 | B60: =(A60-$B$2)/$B$3 -> -0.8 | C60: 0.02896915528 | D60: =IF(_xlfn.NORM.S.INV(1-$B$4)>=B60,"",C60) -> 
A61: 67 | B61: -0.7 | C61: 0.03122539334
A62: 68 | B62: -0.6 | C62: 0.03332246029
A63: 69 | B63: -0.5 | C63: 0.03520653268
A64: 70 | B64: -0.4 | C64: 0.03682701403
A65: 71 | B65: -0.3 | C65: 0.03813878155
A66: 72 | B66: -0.2 | C66: 0.0391042694
A67: 73 | B67: -0.1 | C67: 0.03969525475
A68: 74 | B68: 0 | C68: 0.03989422804
A69: 75 | B69: 0.1 | C69: 0.03969525475
A70: 76 | B70: 0.2 | C70: 0.0391042694
A71: 77 | B71: 0.3 | C71: 0.03813878155
A72: 78 | B72: 0.4 | C72: 0.03682701403
A73: 79 | B73: 0.5 | C73: 0.03520653268
A74: 80 | B74: 0.6 | C74: 0.03332246029
A75: 81 | B75: 0.7 | C75: 0.03122539334
A76: 82 | B76: 0.8 | C76: 0.02896915528
A77: 83 | B77: 0.9 | C77: 0.02660852499
A78: 84 | B78: 1 | C78: 0.02419707245
A79: 85 | B79: 1.1 | C79: 0.0217852177
A80: 86 | B80: 1.2 | C80: 0.0194186055
A81: 87 | B81: 1.3 | C81: 0.0171368592 | D81: 0.0171368592
A82: 88 | B82: 1.4 | C82: 0.01497274656 | D82: 0.01497274656
A83: 89 | B83: 1.5 | C83: 0.01295175957 | D83: 0.01295175957
A84: 90 | B84: 1.6 | C84: 0.01109208347 | D84: 0.01109208347
A85: 91 | B85: 1.7 | C85: 0.009404907738 | D85: 0.009404907738
A86: 92 | B86: 1.8 | C86: 0.00789501583 | D86: 0.00789501583
A87: 93 | B87: 1.9 | C87: 0.006561581477 | D87: 0.006561581477
A88: 94 | B88: 2 | C88: 0.005399096651 | D88: 0.005399096651
A89: 95 | B89: 2.1 | C89: 0.004398359598 | D89: 0.004398359598
A90: 96 | B90: 2.2 | C90: 0.003547459285 | D90: 0.003547459285
A91: 97 | B91: 2.3 | C91: 0.002832703774 | D91: 0.002832703774
A92: 98 | B92: =(A92-$B$2)/$B$3 -> 2.4 | C92: 0.002239453029 | D92: =IF(_xlfn.NORM.S.INV(1-$B$4)>=B92,"",C92) -> 0.002239453029
A93: 99 | B93: 2.5 | C93: 0.001752830049 | D93: 0.001752830049
A94: 100 | B94: 2.6 | C94: =_xlfn.NORM.DIST(A94,$B$2,$B$3,0) -> 0.001358296923 | D94: 0.001358296923
A95: 101 | B95: 2.7 | C95: 0.001042093481 | D95: 0.001042093481
A96: 102 | B96: 2.8 | C96: 0.0007915451583 | D96: 0.0007915451583
A97: 103 | B97: 2.9 | C97: 0.000595253242 | D97: 0.000595253242
A98: 104 | B98: 3 | C98: 0.0004431848412 | D98: 0.0004431848412
A99: 105 | B99: 3.1 | C99: 0.0003266819056 | D99: 0.0003266819056
A100: 106 | B100: 3.2 | C100: 0.0002384088201 | D100: 0.0002384088201
A101: 107 | B101: 3.3 | C101: 0.0001722568939 | D101: 0.0001722568939
A102: 108 | B102: 3.4 | C102: 0.0001232219168 | D102: 0.0001232219168
A103: 109 | B103: 3.5 | C103: 8.72682695e-05 | D103: 8.72682695e-05
A104: 110 | B104: 3.6 | C104: 6.119019301e-05 | D104: 6.119019301e-05
A105: 111 | B105: 3.7 | C105: 4.247802706e-05 | D105: 4.247802706e-05
A106: 112 | B106: 3.8 | C106: 2.919469258e-05 | D106: 2.919469258e-05
A107: 113 | B107: 3.9 | C107: 1.986554714e-05 | D107: 1.986554714e-05
A108: 114 | B108: 4 | C108: 1.338302258e-05 | D108: 1.338302258e-05

Sheet Find x
A1: Professor's past test score distribution is normally distributed | H1: =A1&CHAR(10)&A2&" = "&B2&CHAR(10)&A3&" = "&B3 -> Professor's past test score distribution is normally distributed Mean = µ = 74 SD = s = 10
A2: Mean = µ | B2: 74 | H2: ="What is the x or z value that corresponds to the top "&TEXT(B4,"0%")&"?" -> What is the x or z value that corresponds to the top 10%?
A3: SD = s | B3: 10
A4: Probability | B4: 0.1
A5: X value | B5: =_xlfn.NORM.INV(1-B4,B2,B3) -> 86.81551566 | C5: =" "&_xlfn.FORMULATEXT(B5) -> =NORM.INV(1-B4,B2,B3)
A6: z value | B6: =_xlfn.NORM.S.INV(1-B4) -> 1.281551566 | C6: =NORM.S.INV(1-B4)
A27: x | B27: z | C27: P(x) | D27: ="P(x upper) = "&B4 -> P(x upper) = 0.1
A28: 34 | B28: =(A28-$B$2)/$B$3 -> -4 | C28: =_xlfn.NORM.DIST(A28,$B$2,$B$3,0) -> 1.338302258e-05 | D28: =IF(_xlfn.NORM.S.INV(1-$B$4)>=B28,"",C28) ->  | I28: Chart Instructions:
A29: 35 | B29: -3.9 | C29: =_xlfn.NORM.DIST(A29,$B$2,$B$3,0) -> 1.986554714e-05 | I29: 1) Highlight P(x) column of chart heights and create area chart
A30: 36 | B30: -3.8 | C30: =_xlfn.NORM.DIST(A30,$B$2,$B$3,0) -> 2.919469258e-05 | I30: 2) Design Ribbon Tab, Select Data button, Add second column of P(x) with chart heights
A31: 37 | B31: -3.7 | C31: 4.247802706e-05 | I31: 3) Select second column of P(x) in chart, Ctrl + 1, Add to Secondary Axis
A32: 38 | B32: -3.6 | C32: 6.119019301e-05 | I32: 4) Design Ribbon Tab, Edit both Series Horizontal Axis to add x and z.
A33: 39 | B33: -3.5 | C33: 8.72682695e-05 | I33: 5) Click Plus Button, Axis, check Secondary Horizontal Axis
A34: 40 | B34: -3.4 | C34: 0.0001232219168 | I34: 6) Select Top Axis, ctrl 1 to open Task Pane, then go to Series, then in Labels, Specify interval as 10
A35: 41 | B35: -3.3 | C35: 0.0001722568939 | I35: 7) Still in Labels, select Label position Low
A36: 42 | B36: -3.2 | C36: 0.0002384088201 | I36: 8) Above Labels in Tick Marks, Major and Minor: None
A37: 43 | B37: -3.1 | C37: 0.0003266819056 | I37: 9) Adjust size of chart area to allow x-z text box
A38: 44 | B38: -3 | C38: 0.0004431848412 | I38: 10) Insert Ribbon Tab, Text Box
A39: 45 | B39: -2.9 | C39: 0.000595253242
A40: 46 | B40: -2.8 | C40: 0.0007915451583
A41: 47 | B41: -2.7 | C41: 0.001042093481
A42: 48 | B42: -2.6 | C42: 0.001358296923
A43: 49 | B43: -2.5 | C43: 0.001752830049
A44: 50 | B44: -2.4 | C44: 0.002239453029
A45: 51 | B45: -2.3 | C45: 0.002832703774
A46: 52 | B46: -2.2 | C46: 0.003547459285
A47: 53 | B47: -2.1 | C47: 0.004398359598
A48: 54 | B48: -2 | C48: 0.005399096651
A49: 55 | B49: -1.9 | C49: 0.006561581477
A50: 56 | B50: -1.8 | C50: 0.00789501583
A51: 57 | B51: -1.7 | C51: 0.009404907738
A52: 58 | B52: -1.6 | C52: 0.01109208347
A53: 59 | B53: -1.5 | C53: 0.01295175957
A54: 60 | B54: -1.4 | C54: 0.01497274656
A55: 61 | B55: -1.3 | C55: 0.0171368592
A56: 62 | B56: -1.2 | C56: 0.0194186055
A57: 63 | B57: -1.1 | C57: 0.0217852177
A58: 64 | B58: -1 | C58: 0.02419707245
A59: 65 | B59: -0.9 | C59: 0.02660852499
A60: 66 | B60: -0.8 | C60: 0.02896915528
A61: 67 | B61: -0.7 | C61: 0.03122539334
A62: 68 | B62: -0.6 | C62: 0.03332246029
A63: 69 | B63: -0.5 | C63: 0.03520653268
A64: 70 | B64: -0.4 | C64: 0.03682701403
A65: 71 | B65: -0.3 | C65: 0.03813878155
A66: 72 | B66: -0.2 | C66: 0.0391042694
A67: 73 | B67: -0.1 | C67: 0.03969525475
A68: 74 | B68: 0 | C68: 0.03989422804
A69: 75 | B69: 0.1 | C69: 0.03969525475
A70: 76 | B70: 0.2 | C70: 0.0391042694
A71: 77 | B71: 0.3 | C71: 0.03813878155
A72: 78 | B72: 0.4 | C72: 0.03682701403
A73: 79 | B73: 0.5 | C73: 0.03520653268
A74: 80 | B74: 0.6 | C74: 0.03332246029
A75: 81 | B75: 0.7 | C75: 0.03122539334
A76: 82 | B76: 0.8 | C76: 0.02896915528
A77: 83 | B77: 0.9 | C77: 0.02660852499
A78: 84 | B78: 1 | C78: 0.02419707245
A79: 85 | B79: 1.1 | C79: 0.0217852177
A80: 86 | B80: 1.2 | C80: 0.0194186055
A81: 87 | B81: 1.3 | C81: 0.0171368592 | D81: 0.0171368592
A82: 88 | B82: 1.4 | C82: 0.01497274656 | D82: 0.01497274656
A83: 89 | B83: 1.5 | C83: 0.01295175957 | D83: 0.01295175957
A84: 90 | B84: 1.6 | C84: 0.01109208347 | D84: 0.01109208347
A85: 91 | B85: 1.7 | C85: 0.009404907738 | D85: 0.009404907738
A86: 92 | B86: 1.8 | C86: 0.00789501583 | D86: 0.00789501583
A87: 93 | B87: 1.9 | C87: 0.006561581477 | D87: 0.006561581477
A88: 94 | B88: 2 | C88: 0.005399096651 | D88: 0.005399096651
A89: 95 | B89: 2.1 | C89: 0.004398359598 | D89: 0.004398359598
A90: 96 | B90: 2.2 | C90: 0.003547459285 | D90: 0.003547459285
A91: 97 | B91: 2.3 | C91: 0.002832703774 | D91: 0.002832703774
A92: 98 | B92: =(A92-$B$2)/$B$3 -> 2.4 | C92: 0.002239453029 | D92: =IF(_xlfn.NORM.S.INV(1-$B$4)>=B92,"",C92) -> 0.002239453029
A93: 99 | B93: 2.5 | C93: 0.001752830049 | D93: 0.001752830049
A94: 100 | B94: 2.6 | C94: =_xlfn.NORM.DIST(A94,$B$2,$B$3,0) -> 0.001358296923 | D94: 0.001358296923
A95: 101 | B95: 2.7 | C95: 0.001042093481 | D95: 0.001042093481
A96: 102 | B96: 2.8 | C96: 0.0007915451583 | D96: 0.0007915451583
A97: 103 | B97: 2.9 | C97: 0.000595253242 | D97: 0.000595253242
A98: 104 | B98: 3 | C98: 0.0004431848412 | D98: 0.0004431848412
A99: 105 | B99: 3.1 | C99: 0.0003266819056 | D99: 0.0003266819056
A100: 106 | B100: 3.2 | C100: 0.0002384088201 | D100: 0.0002384088201
A101: 107 | B101: 3.3 | C101: 0.0001722568939 | D101: 0.0001722568939
A102: 108 | B102: 3.4 | C102: 0.0001232219168 | D102: 0.0001232219168
A103: 109 | B103: 3.5 | C103: 8.72682695e-05 | D103: 8.72682695e-05
A104: 110 | B104: 3.6 | C104: 6.119019301e-05 | D104: 6.119019301e-05
A105: 111 | B105: 3.7 | C105: 4.247802706e-05 | D105: 4.247802706e-05
A106: 112 | B106: 3.8 | C106: 2.919469258e-05 | D106: 2.919469258e-05
A107: 113 | B107: 3.9 | C107: 1.986554714e-05 | D107: 1.986554714e-05
A108: 114 | B108: 4 | C108: 1.338302258e-05 | D108: 1.338302258e-05

Sheet Create Area Chart
A1: Professor's past test score distribution is normally distributed | Q1: =A1&CHAR(10)&A2&" = "&B2&CHAR(10)&A3&" = "&B3 -> Professor's past test score distribution is normally distributed Mean = µ = = 74 SD = s = = 10
A2: Mean = µ = | B2: 74
A3: SD = s = | B3: 10
A4: x = Test Score | B4: 69
A5: Operator | B5: <=
A6: ="P(x"&B5&B4&")=" -> P(x<=69)= | B6: =_xlfn.NORM.DIST(B4,B2,B3,1) -> 0.3085375387
A7: z | B7: =(B4-B2)/B3 -> -0.5
A8: ="P(z"&B5&B4&") = " -> P(z<=69) = | B8: =_xlfn.NORM.S.DIST(B7,1) -> 0.3085375387
A10: # SD | C10: 4
A11: Lower x for chart table
A12: Upper x for chart table
A13: Chart Title: | B13: ="Test Scores, "&A2&B2&", "&A3&B3 -> Test Scores, Mean = µ = 74, SD = s = 10
A15: x | B15: P(x) | C15: z | D15: ="P(x"&B5&B4&")="&ROUND(B6,4) -> P(x<=69)=0.3085

Sheet Create Area Chart (an)
A1: Professor's past test score distribution is normally distributed | Q1: =A1&CHAR(10)&A2&" = "&B2&CHAR(10)&A3&" = "&B3 -> Professor's past test score distribution is normally distributed Mean = µ = = 74 SD = s = = 10
A2: Mean = µ = | B2: 74
A3: SD = s = | B3: 10
A4: x = Test Score | B4: 69
A5: Operator | B5: <=
A6: ="P(x"&B5&B4&")=" -> P(x<=69)= | B6: =_xlfn.NORM.DIST(B4,B2,B3,1) -> 0.3085375387
A7: z | B7: =(B4-B2)/B3 -> -0.5
A8: ="P(z"&B5&B4&") = " -> P(z<=69) = | B8: =_xlfn.NORM.S.DIST(B7,1) -> 0.3085375387
A10: # SD | C10: 4
A11: Lower x for chart table | C11: =B2-B3*C10 -> 34
A12: Upper x for chart table | C12: =B2+B3*C10 -> 114
A13: Chart Title: | B13: ="Test Scores, "&A2&B2&", "&A3&B3 -> Test Scores, Mean = µ = 74, SD = s = 10
A15: x | B15: P(x) | C15: z | D15: ="P(x"&B5&B4&")="&ROUND(B6,4) -> P(x<=69)=0.3085
A16: =_xlfn.SEQUENCE(C12-C11+1,,C11) -> 34 | B16: =_xlfn.NORM.DIST(_xlfn.ANCHORARRAY(A16),B2,B3,0) -> 1.338302258e-05 | C16: =(_xlfn.ANCHORARRAY(A16)-B2)/B3 -> -4 | D16: =IF(_xlfn.ANCHORARRAY(A16)<=B4,_xlfn.ANCHORARRAY(B16),"") -> 1.338302258e-05
A17: 35 | B17: 1.986554714e-05 | C17: -3.9 | D17: 1.986554714e-05
A18: 36 | B18: 2.919469258e-05 | C18: -3.8 | D18: 2.919469258e-05
A19: 37 | B19: 4.247802706e-05 | C19: -3.7 | D19: 4.247802706e-05
A20: 38 | B20: 6.119019301e-05 | C20: -3.6 | D20: 6.119019301e-05
A21: 39 | B21: 8.72682695e-05 | C21: -3.5 | D21: 8.72682695e-05
A22: 40 | B22: 0.0001232219168 | C22: -3.4 | D22: 0.0001232219168
A23: 41 | B23: 0.0001722568939 | C23: -3.3 | D23: 0.0001722568939
A24: 42 | B24: 0.0002384088201 | C24: -3.2 | D24: 0.0002384088201
A25: 43 | B25: 0.0003266819056 | C25: -3.1 | D25: 0.0003266819056
A26: 44 | B26: 0.0004431848412 | C26: -3 | D26: 0.0004431848412
A27: 45 | B27: 0.000595253242 | C27: -2.9 | D27: 0.000595253242
A28: 46 | B28: 0.0007915451583 | C28: -2.8 | D28: 0.0007915451583
A29: 47 | B29: 0.001042093481 | C29: -2.7 | D29: 0.001042093481
A30: 48 | B30: 0.001358296923 | C30: -2.6 | D30: 0.001358296923
A31: 49 | B31: 0.001752830049 | C31: -2.5 | D31: 0.001752830049
A32: 50 | B32: 0.002239453029 | C32: -2.4 | D32: 0.002239453029
A33: 51 | B33: 0.002832703774 | C33: -2.3 | D33: 0.002832703774
A34: 52 | B34: 0.003547459285 | C34: -2.2 | D34: 0.003547459285
A35: 53 | B35: 0.004398359598 | C35: -2.1 | D35: 0.004398359598
A36: 54 | B36: 0.005399096651 | C36: -2 | D36: 0.005399096651
A37: 55 | B37: 0.006561581477 | C37: -1.9 | D37: 0.006561581477
A38: 56 | B38: 0.00789501583 | C38: -1.8 | D38: 0.00789501583
A39: 57 | B39: 0.009404907738 | C39: -1.7 | D39: 0.009404907738
A40: 58 | B40: 0.01109208347 | C40: -1.6 | D40: 0.01109208347
A41: 59 | B41: 0.01295175957 | C41: -1.5 | D41: 0.01295175957
A42: 60 | B42: 0.01497274656 | C42: -1.4 | D42: 0.01497274656
A43: 61 | B43: 0.0171368592 | C43: -1.3 | D43: 0.0171368592
A44: 62 | B44: 0.0194186055 | C44: -1.2 | D44: 0.0194186055
A45: 63 | B45: 0.0217852177 | C45: -1.1 | D45: 0.0217852177
A46: 64 | B46: 0.02419707245 | C46: -1 | D46: 0.02419707245
A47: 65 | B47: 0.02660852499 | C47: -0.9 | D47: 0.02660852499
A48: 66 | B48: 0.02896915528 | C48: -0.8 | D48: 0.02896915528
A49: 67 | B49: 0.03122539334 | C49: -0.7 | D49: 0.03122539334
A50: 68 | B50: 0.03332246029 | C50: -0.6 | D50: 0.03332246029
A51: 69 | B51: 0.03520653268 | C51: -0.5 | D51: 0.03520653268
A52: 70 | B52: 0.03682701403 | C52: -0.4
A53: 71 | B53: 0.03813878155 | C53: -0.3
A54: 72 | B54: 0.0391042694 | C54: -0.2
A55: 73 | B55: 0.03969525475 | C55: -0.1
A56: 74 | B56: 0.03989422804 | C56: 0
A57: 75 | B57: 0.03969525475 | C57: 0.1
A58: 76 | B58: 0.0391042694 | C58: 0.2
A59: 77 | B59: 0.03813878155 | C59: 0.3
A60: 78 | B60: 0.03682701403 | C60: 0.4
A61: 79 | B61: 0.03520653268 | C61: 0.5
A62: 80 | B62: 0.03332246029 | C62: 0.6
A63: 81 | B63: 0.03122539334 | C63: 0.7
A64: 82 | B64: 0.02896915528 | C64: 0.8
A65: 83 | B65: 0.02660852499 | C65: 0.9
A66: 84 | B66: 0.02419707245 | C66: 1
A67: 85 | B67: 0.0217852177 | C67: 1.1
A68: 86 | B68: 0.0194186055 | C68: 1.2
A69: 87 | B69: 0.0171368592 | C69: 1.3
A70: 88 | B70: 0.01497274656 | C70: 1.4
A71: 89 | B71: 0.01295175957 | C71: 1.5
A72: 90 | B72: 0.01109208347 | C72: 1.6
A73: 91 | B73: 0.009404907738 | C73: 1.7
A74: 92 | B74: 0.00789501583 | C74: 1.8
A75: 93 | B75: 0.006561581477 | C75: 1.9
A76: 94 | B76: 0.005399096651 | C76: 2
A77: 95 | B77: 0.004398359598 | C77: 2.1
A78: 96 | B78: 0.003547459285 | C78: 2.2
A79: 97 | B79: 0.002832703774 | C79: 2.3
A80: 98 | B80: 0.002239453029 | C80: 2.4
A81: 99 | B81: 0.001752830049 | C81: 2.5
A82: 100 | B82: 0.001358296923 | C82: 2.6
A83: 101 | B83: 0.001042093481 | C83: 2.7
A84: 102 | B84: 0.0007915451583 | C84: 2.8
A85: 103 | B85: 0.000595253242 | C85: 2.9
A86: 104 | B86: 0.0004431848412 | C86: 3
A87: 105 | B87: 0.0003266819056 | C87: 3.1
A88: 106 | B88: 0.0002384088201 | C88: 3.2
A89: 107 | B89: 0.0001722568939 | C89: 3.3
A90: 108 | B90: 0.0001232219168 | C90: 3.4
A91: 109 | B91: 8.72682695e-05 | C91: 3.5
A92: 110 | B92: 6.119019301e-05 | C92: 3.6
A93: 111 | B93: 4.247802706e-05 | C93: 3.7
A94: 112 | B94: 2.919469258e-05 | C94: 3.8
A95: 113 | B95: 1.986554714e-05 | C95: 3.9
A96: 114 | B96: 1.338302258e-05 | C96: 4

Sheet Above Chart
A1: Professor's past test score distribution is normally distributed | Q1: =A1&CHAR(10)&A2&" = "&B2&CHAR(10)&A3&" = "&B3 -> Professor's past test score distribution is normally distributed Mean = µ = = 74 SD = s = = 10
A2: Mean = µ = | B2: 74
A3: SD = s = | B3: 10
A4: x = Test Score | B4: 80
A5: Operator | B5: >=
A6: ="P(x"&B5&B4&")=" -> P(x>=80)= | B6: =1-_xlfn.NORM.DIST(B4,B2,B3,1) -> 0.2742531178
A7: z | B7: =(B4-B2)/B3 -> 0.6
A8: ="P(z"&B5&B4&") = " -> P(z>=80) = | B8: =1-_xlfn.NORM.S.DIST(B7,1) -> 0.2742531178
A10: # SD | C10: 4
A11: Lower x for chart table | C11: =B2-B3*C10 -> 34
A12: Upper x for chart table | C12: =B2+B3*C10 -> 114
A13: Chart Title: | B13: ="Test Scores, "&A2&B2&", "&A3&B3 -> Test Scores, Mean = µ = 74, SD = s = 10
A15: x | B15: P(x) | C15: z | D15: ="P(x"&B5&B4&")="&ROUND(B6,4) -> P(x>=80)=0.2743
A16: =_xlfn.SEQUENCE(C12-C11+1,,C11) -> 34 | B16: =_xlfn.NORM.DIST(_xlfn.ANCHORARRAY(A16),B2,B3,0) -> 1.338302258e-05 | C16: =(_xlfn.ANCHORARRAY(A16)-B2)/B3 -> -4 | D16: =IF(_xlfn.ANCHORARRAY(A16)>=B4,_xlfn.ANCHORARRAY(B16),"") -> 
A17: 35 | B17: 1.986554714e-05 | C17: -3.9
A18: 36 | B18: 2.919469258e-05 | C18: -3.8
A19: 37 | B19: 4.247802706e-05 | C19: -3.7
A20: 38 | B20: 6.119019301e-05 | C20: -3.6
A21: 39 | B21: 8.72682695e-05 | C21: -3.5
A22: 40 | B22: 0.0001232219168 | C22: -3.4
A23: 41 | B23: 0.0001722568939 | C23: -3.3
A24: 42 | B24: 0.0002384088201 | C24: -3.2
A25: 43 | B25: 0.0003266819056 | C25: -3.1
A26: 44 | B26: 0.0004431848412 | C26: -3
A27: 45 | B27: 0.000595253242 | C27: -2.9
A28: 46 | B28: 0.0007915451583 | C28: -2.8
A29: 47 | B29: 0.001042093481 | C29: -2.7
A30: 48 | B30: 0.001358296923 | C30: -2.6
A31: 49 | B31: 0.001752830049 | C31: -2.5
A32: 50 | B32: 0.002239453029 | C32: -2.4
A33: 51 | B33: 0.002832703774 | C33: -2.3
A34: 52 | B34: 0.003547459285 | C34: -2.2
A35: 53 | B35: 0.004398359598 | C35: -2.1
A36: 54 | B36: 0.005399096651 | C36: -2
A37: 55 | B37: 0.006561581477 | C37: -1.9
A38: 56 | B38: 0.00789501583 | C38: -1.8
A39: 57 | B39: 0.009404907738 | C39: -1.7
A40: 58 | B40: 0.01109208347 | C40: -1.6
A41: 59 | B41: 0.01295175957 | C41: -1.5
A42: 60 | B42: 0.01497274656 | C42: -1.4
A43: 61 | B43: 0.0171368592 | C43: -1.3
A44: 62 | B44: 0.0194186055 | C44: -1.2
A45: 63 | B45: 0.0217852177 | C45: -1.1
A46: 64 | B46: 0.02419707245 | C46: -1
A47: 65 | B47: 0.02660852499 | C47: -0.9
A48: 66 | B48: 0.02896915528 | C48: -0.8
A49: 67 | B49: 0.03122539334 | C49: -0.7
A50: 68 | B50: 0.03332246029 | C50: -0.6
A51: 69 | B51: 0.03520653268 | C51: -0.5
A52: 70 | B52: 0.03682701403 | C52: -0.4
A53: 71 | B53: 0.03813878155 | C53: -0.3
A54: 72 | B54: 0.0391042694 | C54: -0.2
A55: 73 | B55: 0.03969525475 | C55: -0.1
A56: 74 | B56: 0.03989422804 | C56: 0
A57: 75 | B57: 0.03969525475 | C57: 0.1
A58: 76 | B58: 0.0391042694 | C58: 0.2
A59: 77 | B59: 0.03813878155 | C59: 0.3
A60: 78 | B60: 0.03682701403 | C60: 0.4
A61: 79 | B61: 0.03520653268 | C61: 0.5
A62: 80 | B62: 0.03332246029 | C62: 0.6 | D62: 0.03332246029
A63: 81 | B63: 0.03122539334 | C63: 0.7 | D63: 0.03122539334
A64: 82 | B64: 0.02896915528 | C64: 0.8 | D64: 0.02896915528
A65: 83 | B65: 0.02660852499 | C65: 0.9 | D65: 0.02660852499
A66: 84 | B66: 0.02419707245 | C66: 1 | D66: 0.02419707245
A67: 85 | B67: 0.0217852177 | C67: 1.1 | D67: 0.0217852177
A68: 86 | B68: 0.0194186055 | C68: 1.2 | D68: 0.0194186055
A69: 87 | B69: 0.0171368592 | C69: 1.3 | D69: 0.0171368592
A70: 88 | B70: 0.01497274656 | C70: 1.4 | D70: 0.01497274656
A71: 89 | B71: 0.01295175957 | C71: 1.5 | D71: 0.01295175957
A72: 90 | B72: 0.01109208347 | C72: 1.6 | D72: 0.01109208347
A73: 91 | B73: 0.009404907738 | C73: 1.7 | D73: 0.009404907738
A74: 92 | B74: 0.00789501583 | C74: 1.8 | D74: 0.00789501583
A75: 93 | B75: 0.006561581477 | C75: 1.9 | D75: 0.006561581477
A76: 94 | B76: 0.005399096651 | C76: 2 | D76: 0.005399096651
A77: 95 | B77: 0.004398359598 | C77: 2.1 | D77: 0.004398359598
A78: 96 | B78: 0.003547459285 | C78: 2.2 | D78: 0.003547459285
A79: 97 | B79: 0.002832703774 | C79: 2.3 | D79: 0.002832703774
A80: 98 | B80: 0.002239453029 | C80: 2.4 | D80: 0.002239453029
A81: 99 | B81: 0.001752830049 | C81: 2.5 | D81: 0.001752830049
A82: 100 | B82: 0.001358296923 | C82: 2.6 | D82: 0.001358296923
A83: 101 | B83: 0.001042093481 | C83: 2.7 | D83: 0.001042093481
A84: 102 | B84: 0.0007915451583 | C84: 2.8 | D84: 0.0007915451583
A85: 103 | B85: 0.000595253242 | C85: 2.9 | D85: 0.000595253242
A86: 104 | B86: 0.0004431848412 | C86: 3 | D86: 0.0004431848412
A87: 105 | B87: 0.0003266819056 | C87: 3.1 | D87: 0.0003266819056
A88: 106 | B88: 0.0002384088201 | C88: 3.2 | D88: 0.0002384088201
A89: 107 | B89: 0.0001722568939 | C89: 3.3 | D89: 0.0001722568939
A90: 108 | B90: 0.0001232219168 | C90: 3.4 | D90: 0.0001232219168
A91: 109 | B91: 8.72682695e-05 | C91: 3.5 | D91: 8.72682695e-05
A92: 110 | B92: 6.119019301e-05 | C92: 3.6 | D92: 6.119019301e-05
A93: 111 | B93: 4.247802706e-05 | C93: 3.7 | D93: 4.247802706e-05
A94: 112 | B94: 2.919469258e-05 | C94: 3.8 | D94: 2.919469258e-05
A95: 113 | B95: 1.986554714e-05 | C95: 3.9 | D95: 1.986554714e-05
A96: 114 | B96: 1.338302258e-05 | C96: 4 | D96: 1.338302258e-05

Sheet Between Chart
A1: Professor's past test score distribution is normally distributed | Q1: =A1&CHAR(10)&A2&" = "&B2&CHAR(10)&A3&" = "&B3 -> Professor's past test score distribution is normally distributed Mean = µ = = 74 SD = s = = 10
A2: Mean = µ = | B2: 74
A3: SD = s = | B3: 10
A4: x = Test Score1 | B4: 60
A5: x = Test Score2 | B5: 80
A6: ="P("&B4&">=x<="&B5&")=" -> P(60>=x<=80)= | B6: =_xlfn.NORM.DIST(B5,B2,B3,1)-_xlfn.NORM.DIST(B4,B2,B3,1) -> 0.644990223
A7: z1 | B7: =(B4-$B$2)/$B$3 -> -1.4
A8: z2 | B8: =(B5-$B$2)/$B$3 -> 0.6
A9: ="P("&B7&">=Z<="&B8&")=" -> P(-1.4>=Z<=0.6)= | B9: =_xlfn.NORM.S.DIST(B8,1)-_xlfn.NORM.S.DIST(B7,1) -> 0.644990223
A11: # SD | C11: 4 | N11: P(x)
A12: Lower x for chart table | C12: =B2-B3*C11 -> 34 | N12: =1/($B$3*SQRT(2*PI()))*EXP(1)^-((A17-$B$2)^2/(2*$B$3^2)) -> 1.338302258e-05
A13: Upper x for chart table | C13: =B2+B3*C11 -> 114 | N13: 1.986554714e-05
A14: Chart Title: | B14: ="Test Scores, "&A2&B2&", "&A3&B3 -> Test Scores, Mean = µ = 74, SD = s = 10 | N14: 2.919469258e-05
N15: 4.247802706e-05
A16: x | B16: P(x) | C16: z | D16: ="P("&B4&">=x<="&B5&")="&ROUND(B6,4) -> P(60>=x<=80)=0.645 | N16: 6.119019301e-05
A17: =_xlfn.SEQUENCE(C13-C12+1,,C12) -> 34 | B17: =_xlfn.NORM.DIST(_xlfn.ANCHORARRAY(A17),B2,B3,0) -> 1.338302258e-05 | C17: =(_xlfn.ANCHORARRAY(A17)-B2)/B3 -> -4 | D17: =IF((_xlfn.ANCHORARRAY(A17)>=B4)*(_xlfn.ANCHORARRAY(A17)<=B5),_xlfn.ANCHORARRAY(B17),"") ->  | N17: 8.72682695e-05
A18: 35 | B18: 1.986554714e-05 | C18: -3.9 | N18: 0.0001232219168
A19: 36 | B19: 2.919469258e-05 | C19: -3.8 | N19: 0.0001722568939
A20: 37 | B20: 4.247802706e-05 | C20: -3.7 | N20: 0.0002384088201
A21: 38 | B21: 6.119019301e-05 | C21: -3.6 | N21: 0.0003266819056
A22: 39 | B22: 8.72682695e-05 | C22: -3.5 | N22: 0.0004431848412
A23: 40 | B23: 0.0001232219168 | C23: -3.4 | N23: 0.000595253242
A24: 41 | B24: 0.0001722568939 | C24: -3.3 | N24: 0.0007915451583
A25: 42 | B25: 0.0002384088201 | C25: -3.2 | N25: 0.001042093481
A26: 43 | B26: 0.0003266819056 | C26: -3.1 | N26: 0.001358296923
A27: 44 | B27: 0.0004431848412 | C27: -3 | N27: 0.001752830049
A28: 45 | B28: 0.000595253242 | C28: -2.9 | N28: 0.002239453029
A29: 46 | B29: 0.0007915451583 | C29: -2.8 | N29: 0.002832703774
A30: 47 | B30: 0.001042093481 | C30: -2.7 | N30: 0.003547459285
A31: 48 | B31: 0.001358296923 | C31: -2.6 | N31: 0.004398359598
A32: 49 | B32: 0.001752830049 | C32: -2.5 | N32: 0.005399096651
A33: 50 | B33: 0.002239453029 | C33: -2.4 | N33: 0.006561581477
A34: 51 | B34: 0.002832703774 | C34: -2.3 | N34: 0.00789501583
A35: 52 | B35: 0.003547459285 | C35: -2.2 | N35: 0.009404907738
A36: 53 | B36: 0.004398359598 | C36: -2.1 | N36: 0.01109208347
A37: 54 | B37: 0.005399096651 | C37: -2 | N37: 0.01295175957
A38: 55 | B38: 0.006561581477 | C38: -1.9 | N38: 0.01497274656
A39: 56 | B39: 0.00789501583 | C39: -1.8 | N39: 0.0171368592
A40: 57 | B40: 0.009404907738 | C40: -1.7 | N40: 0.0194186055
A41: 58 | B41: 0.01109208347 | C41: -1.6 | N41: 0.0217852177
A42: 59 | B42: 0.01295175957 | C42: -1.5 | N42: 0.02419707245
A43: 60 | B43: 0.01497274656 | C43: -1.4 | D43: 0.01497274656 | N43: 0.02660852499
A44: 61 | B44: 0.0171368592 | C44: -1.3 | D44: 0.0171368592 | N44: 0.02896915528
A45: 62 | B45: 0.0194186055 | C45: -1.2 | D45: 0.0194186055 | N45: 0.03122539334
A46: 63 | B46: 0.0217852177 | C46: -1.1 | D46: 0.0217852177 | N46: 0.03332246029
A47: 64 | B47: 0.02419707245 | C47: -1 | D47: 0.02419707245 | N47: 0.03520653268
A48: 65 | B48: 0.02660852499 | C48: -0.9 | D48: 0.02660852499 | N48: 0.03682701403
A49: 66 | B49: 0.02896915528 | C49: -0.8 | D49: 0.02896915528 | N49: 0.03813878155
A50: 67 | B50: 0.03122539334 | C50: -0.7 | D50: 0.03122539334 | N50: 0.0391042694
A51: 68 | B51: 0.03332246029 | C51: -0.6 | D51: 0.03332246029 | N51: 0.03969525475
A52: 69 | B52: 0.03520653268 | C52: -0.5 | D52: 0.03520653268 | N52: 0.03989422804
A53: 70 | B53: 0.03682701403 | C53: -0.4 | D53: 0.03682701403 | N53: 0.03969525475
A54: 71 | B54: 0.03813878155 | C54: -0.3 | D54: 0.03813878155 | N54: 0.0391042694
A55: 72 | B55: 0.0391042694 | C55: -0.2 | D55: 0.0391042694 | N55: 0.03813878155
A56: 73 | B56: 0.03969525475 | C56: -0.1 | D56: 0.03969525475 | N56: 0.03682701403
A57: 74 | B57: 0.03989422804 | C57: 0 | D57: 0.03989422804 | N57: 0.03520653268
A58: 75 | B58: 0.03969525475 | C58: 0.1 | D58: 0.03969525475 | N58: 0.03332246029
A59: 76 | B59: 0.0391042694 | C59: 0.2 | D59: 0.0391042694 | N59: 0.03122539334
A60: 77 | B60: 0.03813878155 | C60: 0.3 | D60: 0.03813878155 | N60: 0.02896915528
A61: 78 | B61: 0.03682701403 | C61: 0.4 | D61: 0.03682701403 | N61: 0.02660852499
A62: 79 | B62: 0.03520653268 | C62: 0.5 | D62: 0.03520653268 | N62: 0.02419707245
A63: 80 | B63: 0.03332246029 | C63: 0.6 | D63: 0.03332246029 | N63: 0.0217852177
A64: 81 | B64: 0.03122539334 | C64: 0.7 | N64: 0.0194186055
A65: 82 | B65: 0.02896915528 | C65: 0.8 | N65: 0.0171368592
A66: 83 | B66: 0.02660852499 | C66: 0.9 | N66: 0.01497274656
A67: 84 | B67: 0.02419707245 | C67: 1 | N67: 0.01295175957
A68: 85 | B68: 0.0217852177 | C68: 1.1 | N68: 0.01109208347
A69: 86 | B69: 0.0194186055 | C69: 1.2 | N69: 0.009404907738
A70: 87 | B70: 0.0171368592 | C70: 1.3 | N70: 0.00789501583
A71: 88 | B71: 0.01497274656 | C71: 1.4 | N71: 0.006561581477
A72: 89 | B72: 0.01295175957 | C72: 1.5 | N72: 0.005399096651
A73: 90 | B73: 0.01109208347 | C73: 1.6 | N73: 0.004398359598
A74: 91 | B74: 0.009404907738 | C74: 1.7 | N74: 0.003547459285
A75: 92 | B75: 0.00789501583 | C75: 1.8 | N75: 0.002832703774
A76: 93 | B76: 0.006561581477 | C76: 1.9 | N76: =1/($B$3*SQRT(2*PI()))*EXP(1)^-((A81-$B$2)^2/(2*$B$3^2)) -> 0.002239453029
A77: 94 | B77: 0.005399096651 | C77: 2 | N77: 0.001752830049
A78: 95 | B78: 0.004398359598 | C78: 2.1 | N78: 0.001358296923
A79: 96 | B79: 0.003547459285 | C79: 2.2 | N79: 0.001042093481
A80: 97 | B80: 0.002832703774 | C80: 2.3 | N80: 0.0007915451583
A81: 98 | B81: 0.002239453029 | C81: 2.4 | N81: 0.000595253242
A82: 99 | B82: 0.001752830049 | C82: 2.5 | N82: 0.0004431848412
A83: 100 | B83: 0.001358296923 | C83: 2.6 | N83: 0.0003266819056
A84: 101 | B84: 0.001042093481 | C84: 2.7 | N84: 0.0002384088201
A85: 102 | B85: 0.0007915451583 | C85: 2.8 | N85: 0.0001722568939
A86: 103 | B86: 0.000595253242 | C86: 2.9 | N86: 0.0001232219168
A87: 104 | B87: 0.0004431848412 | C87: 3 | N87: 8.72682695e-05
A88: 105 | B88: 0.0003266819056 | C88: 3.1 | N88: 6.119019301e-05
A89: 106 | B89: 0.0002384088201 | C89: 3.2 | N89: 4.247802706e-05
A90: 107 | B90: 0.0001722568939 | C90: 3.3 | N90: 2.919469258e-05
A91: 108 | B91: 0.0001232219168 | C91: 3.4 | N91: 1.986554714e-05
A92: 109 | B92: 8.72682695e-05 | C92: 3.5 | N92: 1.338302258e-05
A93: 110 | B93: 6.119019301e-05 | C93: 3.6
A94: 111 | B94: 4.247802706e-05 | C94: 3.7
A95: 112 | B95: 2.919469258e-05 | C95: 3.8
A96: 113 | B96: 1.986554714e-05 | C96: 3.9
A97: 114 | B97: 1.338302258e-05 | C97: 4

Sheet AccountingData
A1: A recent Online Job site published this data about Accounting Jobs:
A2: We are using the Normal model because we know that salary data tends to
A3: be normally distributed, or at least, we feel comfortable using this model for
A4: this type of data even though we do not have the population data for Seattle.
A5: Job Title | B5: Location | C5: Mean Annual Salary | D5: Standard Deviation Annual Salary | R5: -3SD | S5: +3 SD | T5: Normal / Empirical Rule:
A6: Accounting | B6: Seattle, WA | C6: 53000 | D6: 4700 | R6: =C6-D6*3 -> 38900 | S6: =C6+D6*3 -> 67100 | T6: 99% of values lie between +/- 3 SD
A7: Accounting | B7: USA | C7: 66000 | D7: 6200 | R7: =C7-D7*3 -> 47400 | S7: =C7+D7*3 -> 84600
A8: Accounting | B8: Oakland, CA | C8: 58000 | D8: 5600 | R8: =C8-D8*3 -> 41200 | S8: =C8+D8*3 -> 74800
A10: Calculation | B10: =TRANSPOSE(B6:B8) -> Seattle, WA | C10: USA | D10: Oakland, CA
A11: Mean | B11: =C6 -> 53000 | C11: =C7 -> 66000 | D11: =C8 -> 58000
A12: SD | B12: =D6 -> 4700 | C12: =D7 -> 6200 | D12: =D8 -> 5600
A13: x lower | B13: 50000 | C13: 50000 | D13: 50000
A14: x upper | B14: 60000 | C14: 60000 | D14: 60000
A15: Operator | B15: between
A16: ="P("&B13&" <= "&LEFT(A13,1)&" <= "&B14&")" -> P(50000 <= x <= 60000)
A29: Seattle Data Set: | C29: Lower X | D29: 50000 | F29: ="Normal Probability Distribution for Assumed Population Accounting Salary Data in Seattle, Mean = "&DOLLAR(C6,0)&", SD = "&DOLLAR(D6,0) -> Normal Probability Distribution for Assumed Population Accounting Salary Data in Seattle, Mean = $53,000, SD = $4,700
C30: Upper X | D30: 60000
C31: =E33 -> P(50K<=x<=60K) = 0.6702 | D31: =_xlfn.NORM.DIST(D30,C6,D6,1)-_xlfn.NORM.DIST(D29,C6,D6,1) -> 0.6701640277 | G31: =_xlfn.NORM.INV(0.4,53000,4700) -> 51809.26862
A33: X = Accounting Annual Salary in Seattle | B33: X primary axis | C33: z second axis | D33: f(x) | E33: ="P("&TEXT(D29,"0,K")&"<=x<="&TEXT(D30,"0,K")&") = "&ROUND(D31,4) -> P(50K<=x<=60K) = 0.6702
A34: =C6-D6*4 -> 34200 | B34: =IF(ISNUMBER(C34),A34,"") -> 34200 | C34: =IF(INT((A34-$C$6)/$D$6)=(A34-$C$6)/$D$6,(A34-$C$6)/$D$6,"") -> -4 | D34: =_xlfn.NORM.DIST(A34,$C$6,$D$6,0) -> 2.847451612e-08 | E34: =IF(AND(A34>=$D$29,A34<=$D$30),D34,"") ->  | F34: =1/($D$6*SQRT(2*PI()))*EXP(1)^-((1/2)*((A34-$C$6)/$D$6)^2) -> 2.847451612e-08 | G34: =F34=D34 -> TRUE
A35: =A34+100 -> 34300 | B35: =IF(ISNUMBER(C35),A35,"") ->  | D35: 3.099697293e-08 | F35: =1/($D$6*SQRT(2*PI()))*EXP(1)^-((1/2)*((A35-$C$6)/$D$6)^2) -> 3.099697293e-08 | G35: =F35=D35 -> TRUE
A36: =A35+100 -> 34400 | D36: 3.372761355e-08 | F36: 3.372761355e-08 | G36: TRUE
A37: 34500 | D37: 3.668219708e-08 | F37: 3.668219708e-08 | G37: TRUE
A38: 34600 | D38: 3.987754963e-08 | F38: 3.987754963e-08 | G38: TRUE
A39: 34700 | D39: 4.333162604e-08 | F39: 4.333162604e-08 | G39: TRUE
A40: 34800 | D40: 4.706357421e-08 | F40: 4.706357421e-08 | G40: TRUE
A41: 34900 | D41: 5.109380237e-08 | F41: 5.109380237e-08 | G41: TRUE
A42: 35000 | D42: 5.544404905e-08 | F42: 5.544404905e-08 | G42: TRUE
A43: 35100 | D43: 6.013745598e-08 | F43: 6.013745598e-08 | G43: TRUE
A44: 35200 | D44: 6.519864389e-08 | F44: 6.519864389e-08 | G44: TRUE
A45: 35300 | D45: 7.065379127e-08 | F45: 7.065379127e-08 | G45: TRUE
A46: 35400 | D46: 7.65307161e-08 | F46: 7.65307161e-08 | G46: TRUE
A47: 35500 | D47: 8.285896054e-08 | F47: 8.285896054e-08 | G47: TRUE
A48: 35600 | D48: 8.966987869e-08 | F48: 8.966987869e-08 | G48: TRUE
A49: 35700 | D49: 9.699672732e-08 | F49: 9.699672732e-08 | G49: TRUE
A50: 35800 | D50: 1.048747596e-07 | F50: 1.048747596e-07 | G50: TRUE
A51: 35900 | D51: 1.133413217e-07 | F51: 1.133413217e-07 | G51: TRUE
A52: 36000 | D52: 1.224359527e-07 | F52: 1.224359527e-07 | G52: TRUE
A53: 36100 | D53: 1.32200487e-07 | F53: 1.32200487e-07 | G53: TRUE
A54: 36200 | D54: 1.426791596e-07 | F54: 1.426791596e-07 | G54: TRUE
A55: 36300 | D55: 1.539187146e-07 | F55: 1.539187146e-07 | G55: TRUE
A56: 36400 | D56: 1.659685161e-07 | F56: 1.659685161e-07 | G56: TRUE
A57: 36500 | D57: 1.788806613e-07 | F57: 1.788806613e-07 | G57: TRUE
A58: 36600 | D58: 1.927100971e-07 | F58: 1.927100971e-07 | G58: TRUE
A59: 36700 | D59: 2.07514738e-07 | F59: 2.07514738e-07 | G59: TRUE
A60: 36800 | D60: 2.233555869e-07 | F60: 2.233555869e-07 | G60: TRUE
A61: 36900 | D61: 2.402968577e-07 | F61: 2.402968577e-07 | G61: TRUE
A62: 37000 | D62: 2.584060996e-07 | F62: 2.584060996e-07 | G62: TRUE
A63: 37100 | D63: 2.777543235e-07 | F63: 2.777543235e-07 | G63: TRUE
A64: 37200 | D64: 2.98416129e-07 | F64: 2.98416129e-07 | G64: TRUE
A65: 37300 | D65: 3.204698336e-07 | F65: 3.204698336e-07 | G65: TRUE
A66: 37400 | D66: 3.439976018e-07 | F66: 3.439976018e-07 | G66: TRUE
A67: 37500 | D67: 3.690855755e-07 | F67: 3.690855755e-07 | G67: TRUE
A68: 37600 | D68: 3.958240044e-07 | F68: 3.958240044e-07 | G68: TRUE
A69: 37700 | D69: 4.243073757e-07 | F69: 4.243073757e-07 | G69: TRUE
A70: 37800 | D70: 4.546345449e-07 | F70: 4.546345449e-07 | G70: TRUE
A71: 37900 | D71: 4.869088637e-07 | F71: 4.869088637e-07 | G71: TRUE
A72: 38000 | D72: 5.212383085e-07 | F72: 5.212383085e-07 | G72: TRUE
A73: 38100 | D73: 5.577356058e-07 | F73: 5.577356058e-07 | G73: TRUE
A74: 38200 | D74: 5.965183561e-07 | F74: 5.965183561e-07 | G74: TRUE
A75: 38300 | D75: 6.377091548e-07 | F75: 6.377091548e-07 | G75: TRUE
A76: 38400 | D76: 6.814357101e-07 | F76: 6.814357101e-07 | G76: TRUE
A77: 38500 | D77: 7.278309567e-07 | F77: 7.278309567e-07 | G77: TRUE
A78: 38600 | D78: 7.770331655e-07 | F78: 7.770331655e-07 | G78: TRUE
A79: 38700 | D79: 8.29186048e-07 | F79: 8.29186048e-07 | G79: TRUE
A80: 38800 | D80: 8.844388553e-07 | F80: 8.844388553e-07 | G80: TRUE
A81: 38900 | B81: 38900 | C81: -3 | D81: 9.429464706e-07 | F81: 9.429464706e-07 | G81: TRUE
A82: 39000 | D82: 1.004869495e-06 | F82: 1.004869495e-06 | G82: TRUE
A83: 39100 | D83: 1.070374326e-06 | F83: 1.070374326e-06 | G83: TRUE
A84: 39200 | D84: 1.139633225e-06 | F84: 1.139633225e-06 | G84: TRUE
A85: 39300 | D85: 1.21282438e-06 | F85: 1.21282438e-06 | G85: TRUE
A86: 39400 | D86: 1.290131955e-06 | F86: 1.290131955e-06 | G86: TRUE
A87: 39500 | D87: 1.371746132e-06 | F87: 1.371746132e-06 | G87: TRUE
A88: 39600 | D88: 1.457863133e-06 | F88: 1.457863133e-06 | G88: TRUE
A89: 39700 | D89: 1.548685245e-06 | F89: 1.548685245e-06 | G89: TRUE
A90: 39800 | D90: 1.644420815e-06 | F90: 1.644420815e-06 | G90: TRUE
A91: 39900 | D91: 1.745284244e-06 | F91: 1.745284244e-06 | G91: TRUE
A92: 40000 | D92: 1.851495958e-06 | F92: 1.851495958e-06 | G92: TRUE
A93: 40100 | D93: 1.963282368e-06 | F93: 1.963282368e-06 | G93: TRUE
A94: 40200 | D94: 2.080875811e-06 | F94: 2.080875811e-06 | G94: TRUE
A95: 40300 | D95: 2.204514477e-06 | F95: 2.204514477e-06 | G95: TRUE
A96: 40400 | D96: 2.334442312e-06 | F96: 2.334442312e-06 | G96: TRUE
A97: 40500 | D97: 2.470908907e-06 | F97: 2.470908907e-06 | G97: TRUE
A98: 40600 | C98: =IF(INT((A98-$C$6)/$D$6)=(A98-$C$6)/$D$6,(A98-$C$6)/$D$6,"") ->  | D98: =_xlfn.NORM.DIST(A98,$C$6,$D$6,0) -> 2.614169367e-06 | E98: =IF(AND(A98>=$D$29,A98<=$D$30),D98,"") ->  | F98: 2.614169367e-06 | G98: TRUE
A99: 40700 | B99: =IF(ISNUMBER(C99),A99,"") ->  | D99: 2.764484157e-06 | F99: =1/($D$6*SQRT(2*PI()))*EXP(1)^-((1/2)*((A99-$C$6)/$D$6)^2) -> 2.764484157e-06 | G99: =F99=D99 -> TRUE
A100: =A99+100 -> 40800 | D100: 2.922118927e-06 | F100: 2.922118927e-06 | G100: TRUE
A101: 40900 | D101: 3.087344315e-06 | F101: 3.087344315e-06 | G101: TRUE
A102: 41000 | D102: 3.260435731e-06 | F102: 3.260435731e-06 | G102: TRUE
A103: 41100 | D103: 3.441673112e-06 | F103: 3.441673112e-06 | G103: TRUE
A104: 41200 | D104: 3.631340652e-06 | F104: 3.631340652e-06 | G104: TRUE
A105: 41300 | D105: 3.829726517e-06 | F105: 3.829726517e-06 | G105: TRUE
A106: 41400 | D106: 4.037122521e-06 | F106: 4.037122521e-06 | G106: FALSE
A107: 41500 | D107: 4.253823788e-06 | F107: 4.253823788e-06 | G107: TRUE
A108: 41600 | D108: 4.480128379e-06 | F108: 4.480128379e-06 | G108: TRUE
A109: 41700 | D109: 4.716336897e-06 | F109: 4.716336897e-06 | G109: TRUE
A110: 41800 | D110: 4.962752066e-06 | F110: 4.962752066e-06 | G110: TRUE
A111: 41900 | D111: 5.219678277e-06 | F111: 5.219678277e-06 | G111: TRUE
A112: 42000 | D112: 5.487421109e-06 | F112: 5.487421109e-06 | G112: TRUE
A113: 42100 | D113: 5.76628683e-06 | F113: 5.76628683e-06 | G113: TRUE
A114: 42200 | D114: 6.056581855e-06 | F114: 6.056581855e-06 | G114: TRUE
A115: 42300 | D115: 6.358612192e-06 | F115: 6.358612192e-06 | G115: TRUE
A116: 42400 | D116: 6.672682849e-06 | F116: 6.672682849e-06 | G116: TRUE
A117: 42500 | D117: 6.999097221e-06 | F117: 6.999097221e-06 | G117: TRUE
A118: 42600 | D118: 7.338156447e-06 | F118: 7.338156447e-06 | G118: TRUE
A119: 42700 | D119: 7.690158741e-06 | F119: 7.690158741e-06 | G119: TRUE
A120: 42800 | D120: 8.055398697e-06 | F120: 8.055398697e-06 | G120: TRUE
A121: 42900 | D121: 8.434166572e-06 | F121: 8.434166572e-06 | G121: TRUE
A122: 43000 | D122: 8.826747539e-06 | F122: 8.826747539e-06 | G122: TRUE
A123: 43100 | D123: 9.233420921e-06 | F123: 9.233420921e-06 | G123: TRUE
A124: 43200 | D124: 9.654459403e-06 | F124: 9.654459403e-06 | G124: TRUE
A125: 43300 | D125: 1.009012822e-05 | F125: 1.009012822e-05 | G125: TRUE
A126: 43400 | D126: 1.054068432e-05 | F126: 1.054068432e-05 | G126: TRUE
A127: 43500 | D127: 1.100637553e-05 | F127: 1.100637553e-05 | G127: TRUE
A128: 43600 | B128: 43600 | C128: -2 | D128: 1.148743968e-05 | F128: 1.148743968e-05 | G128: TRUE
A129: 43700 | D129: 1.198410372e-05 | F129: 1.198410372e-05 | G129: TRUE
A130: 43800 | D130: 1.249658283e-05 | F130: 1.249658283e-05 | G130: TRUE
A131: 43900 | D131: 1.302507949e-05 | F131: 1.302507949e-05 | G131: TRUE
A132: 44000 | D132: 1.356978262e-05 | F132: 1.356978262e-05 | G132: TRUE
A133: 44100 | D133: 1.41308666e-05 | F133: 1.41308666e-05 | G133: TRUE
A134: 44200 | D134: 1.470849036e-05 | F134: 1.470849036e-05 | G134: FALSE
A135: 44300 | D135: 1.530279645e-05 | F135: 1.530279645e-05 | G135: TRUE
A136: 44400 | D136: 1.59139101e-05 | F136: 1.59139101e-05 | G136: TRUE
A137: 44500 | D137: 1.654193832e-05 | F137: 1.654193832e-05 | G137: TRUE
A138: 44600 | D138: 1.718696892e-05 | F138: 1.718696892e-05 | G138: TRUE
A139: 44700 | D139: 1.784906963e-05 | F139: 1.784906963e-05 | G139: TRUE
A140: 44800 | D140: 1.852828718e-05 | F140: 1.852828718e-05 | G140: FALSE
A141: 44900 | D141: 1.922464642e-05 | F141: 1.922464642e-05 | G141: TRUE
A142: 45000 | D142: 1.993814941e-05 | F142: 1.993814941e-05 | G142: TRUE
A143: 45100 | D143: 2.066877459e-05 | F143: 2.066877459e-05 | G143: TRUE
A144: 45200 | D144: 2.141647594e-05 | F144: 2.141647594e-05 | G144: TRUE
A145: 45300 | D145: 2.218118213e-05 | F145: 2.218118213e-05 | G145: TRUE
A146: 45400 | D146: 2.296279581e-05 | F146: 2.296279581e-05 | G146: TRUE
A147: 45500 | D147: 2.376119277e-05 | F147: 2.376119277e-05 | G147: FALSE
A148: 45600 | D148: 2.45762213e-05 | F148: 2.45762213e-05 | G148: TRUE
A149: 45700 | D149: 2.540770148e-05 | F149: 2.540770148e-05 | G149: TRUE
A150: 45800 | D150: 2.625542453e-05 | F150: 2.625542453e-05 | G150: TRUE
A151: 45900 | D151: 2.711915226e-05 | F151: 2.711915226e-05 | G151: TRUE
A152: 46000 | D152: 2.799861647e-05 | F152: 2.799861647e-05 | G152: TRUE
A153: 46100 | D153: 2.889351852e-05 | F153: 2.889351852e-05 | G153: TRUE
A154: 46200 | D154: 2.980352884e-05 | F154: 2.980352884e-05 | G154: TRUE
A155: 46300 | D155: 3.072828657e-05 | F155: 3.072828657e-05 | G155: TRUE
A156: 46400 | D156: 3.166739923e-05 | F156: 3.166739923e-05 | G156: TRUE
A157: 46500 | D157: 3.26204425e-05 | F157: 3.26204425e-05 | G157: TRUE
A158: 46600 | D158: 3.358695995e-05 | F158: 3.358695995e-05 | G158: TRUE
A159: 46700 | D159: 3.456646297e-05 | F159: 3.456646297e-05 | G159: TRUE
A160: 46800 | D160: 3.555843072e-05 | F160: 3.555843072e-05 | G160: TRUE
A161: 46900 | D161: 3.65623101e-05 | F161: 3.65623101e-05 | G161: TRUE
A162: 47000 | C162: =IF(INT((A162-$C$6)/$D$6)=(A162-$C$6)/$D$6,(A162-$C$6)/$D$6,"") ->  | D162: =_xlfn.NORM.DIST(A162,$C$6,$D$6,0) -> 3.757751587e-05 | E162: =IF(AND(A162>=$D$29,A162<=$D$30),D162,"") ->  | F162: 3.757751587e-05 | G162: FALSE
A163: 47100 | B163: =IF(ISNUMBER(C163),A163,"") ->  | D163: 3.860343083e-05 | F163: =1/($D$6*SQRT(2*PI()))*EXP(1)^-((1/2)*((A163-$C$6)/$D$6)^2) -> 3.860343083e-05 | G163: =F163=D163 -> TRUE
A164: =A163+100 -> 47200 | D164: 3.963940604e-05 | F164: 3.963940604e-05 | G164: TRUE
A165: 47300 | D165: 4.068476114e-05 | F165: 4.068476114e-05 | G165: TRUE
A166: 47400 | D166: 4.173878479e-05 | F166: 4.173878479e-05 | G166: FALSE
A167: 47500 | D167: 4.280073512e-05 | F167: 4.280073512e-05 | G167: TRUE
A168: 47600 | D168: 4.386984033e-05 | F168: 4.386984033e-05 | G168: TRUE
A169: 47700 | D169: 4.494529929e-05 | F169: 4.494529929e-05 | G169: TRUE
A170: 47800 | D170: 4.602628237e-05 | F170: 4.602628237e-05 | G170: TRUE
A171: 47900 | D171: 4.711193217e-05 | F171: 4.711193217e-05 | G171: TRUE
A172: 48000 | D172: 4.820136446e-05 | F172: 4.820136446e-05 | G172: TRUE
A173: 48100 | D173: 4.929366918e-05 | F173: 4.929366918e-05 | G173: TRUE
A174: 48200 | D174: 5.038791147e-05 | F174: 5.038791147e-05 | G174: TRUE
A175: 48300 | B175: 48300 | C175: -1 | D175: 5.148313288e-05 | F175: 5.148313288e-05 | G175: TRUE
A176: 48400 | D176: 5.257835252e-05 | F176: 5.257835252e-05 | G176: TRUE
A177: 48500 | D177: 5.367256846e-05 | F177: 5.367256846e-05 | G177: TRUE
A178: 48600 | D178: 5.476475902e-05 | F178: 5.476475902e-05 | G178: TRUE
A179: 48700 | D179: 5.58538843e-05 | F179: 5.58538843e-05 | G179: TRUE
A180: 48800 | D180: 5.693888768e-05 | F180: 5.693888768e-05 | G180: TRUE
A181: 48900 | D181: 5.801869743e-05 | F181: 5.801869743e-05 | G181: TRUE
A182: 49000 | D182: 5.909222836e-05 | F182: 5.909222836e-05 | G182: TRUE
A183: 49100 | D183: 6.015838355e-05 | F183: 6.015838355e-05 | G183: TRUE
A184: 49200 | D184: 6.121605618e-05 | F184: 6.121605618e-05 | G184: TRUE
A185: 49300 | D185: 6.226413129e-05 | F185: 6.226413129e-05 | G185: TRUE
A186: 49400 | D186: 6.330148774e-05 | F186: 6.330148774e-05 | G186: TRUE
A187: 49500 | D187: 6.432700015e-05 | F187: 6.432700015e-05 | G187: TRUE
A188: 49600 | D188: 6.533954083e-05 | F188: 6.533954083e-05 | G188: TRUE
A189: 49700 | D189: 6.633798186e-05 | F189: 6.633798186e-05 | G189: TRUE
A190: 49800 | D190: 6.732119711e-05 | F190: 6.732119711e-05 | G190: TRUE
A191: 49900 | D191: 6.828806432e-05 | F191: 6.828806432e-05 | G191: TRUE
A192: 50000 | D192: 6.923746724e-05 | E192: 6.923746724e-05 | F192: 6.923746724e-05 | G192: TRUE
A193: 50100 | D193: 7.016829769e-05 | E193: 7.016829769e-05 | F193: 7.016829769e-05 | G193: TRUE
A194: 50200 | D194: 7.107945776e-05 | E194: 7.107945776e-05 | F194: 7.107945776e-05 | G194: TRUE
A195: 50300 | D195: 7.19698619e-05 | E195: 7.19698619e-05 | F195: 7.19698619e-05 | G195: TRUE
A196: 50400 | D196: 7.283843907e-05 | E196: 7.283843907e-05 | F196: 7.283843907e-05 | G196: TRUE
A197: 50500 | D197: 7.36841349e-05 | E197: 7.36841349e-05 | F197: 7.36841349e-05 | G197: TRUE
A198: 50600 | D198: 7.450591375e-05 | E198: 7.450591375e-05 | F198: 7.450591375e-05 | G198: TRUE
A199: 50700 | D199: 7.530276089e-05 | E199: 7.530276089e-05 | F199: 7.530276089e-05 | G199: TRUE
A200: 50800 | D200: 7.607368451e-05 | E200: 7.607368451e-05 | F200: 7.607368451e-05 | G200: TRUE
A201: 50900 | D201: 7.681771783e-05 | E201: 7.681771783e-05 | F201: 7.681771783e-05 | G201: FALSE
A202: 51000 | D202: 7.753392107e-05 | E202: 7.753392107e-05 | F202: 7.753392107e-05 | G202: TRUE
A203: 51100 | D203: 7.822138343e-05 | E203: 7.822138343e-05 | F203: 7.822138343e-05 | G203: TRUE
A204: 51200 | D204: 7.887922505e-05 | E204: 7.887922505e-05 | F204: 7.887922505e-05 | G204: TRUE
A205: 51300 | D205: 7.950659884e-05 | E205: 7.950659884e-05 | F205: 7.950659884e-05 | G205: FALSE
A206: 51400 | D206: 8.010269233e-05 | E206: 8.010269233e-05 | F206: 8.010269233e-05 | G206: TRUE
A207: 51500 | D207: 8.066672941e-05 | E207: 8.066672941e-05 | F207: 8.066672941e-05 | G207: TRUE
A208: 51600 | D208: 8.1197972e-05 | E208: 8.1197972e-05 | F208: 8.1197972e-05 | G208: TRUE
A209: 51700 | D209: 8.169572166e-05 | E209: 8.169572166e-05 | F209: 8.169572166e-05 | G209: TRUE
A210: 51800 | D210: 8.215932116e-05 | E210: 8.215932116e-05 | F210: 8.215932116e-05 | G210: TRUE
A211: 51900 | D211: 8.258815586e-05 | E211: 8.258815586e-05 | F211: 8.258815586e-05 | G211: TRUE
A212: 52000 | D212: 8.298165512e-05 | E212: 8.298165512e-05 | F212: 8.298165512e-05 | G212: TRUE
A213: 52100 | D213: 8.333929355e-05 | E213: 8.333929355e-05 | F213: 8.333929355e-05 | G213: TRUE
A214: 52200 | D214: 8.366059216e-05 | E214: 8.366059216e-05 | F214: 8.366059216e-05 | G214: TRUE
... 196 more rows

Sheet AccountingData (an)
A1: A recent Online Job site published this data about Accounting Jobs:
A2: We are using the Normal model because we know that salary data tends to
A3: be normally distributed, or at least, we feel comfortable using this model for
A4: this type of data even though we do not have the population data for Seattle.
A5: Job Title | B5: Location | C5: Mean Annual Salary | D5: Standard Deviation Annual Salary | R5: -3SD | S5: +3 SD | T5: Normal / Empirical Rule:
A6: Accounting | B6: Seattle, WA | C6: 53000 | D6: 4700 | R6: =C6-D6*3 -> 38900 | S6: =C6+D6*3 -> 67100 | T6: 99% of values lie between +/- 3 SD
A7: Accounting | B7: USA | C7: 66000 | D7: 6200 | R7: =C7-D7*3 -> 47400 | S7: =C7+D7*3 -> 84600
A8: Accounting | B8: Oakland, CA | C8: 58000 | D8: 5600 | R8: =C8-D8*3 -> 41200 | S8: =C8+D8*3 -> 74800
A10: Calculation | B10: =TRANSPOSE(B6:B8) -> Seattle, WA | C10: USA | D10: Oakland, CA
A11: Mean | B11: =C6 -> 53000 | C11: =C7 -> 66000 | D11: =C8 -> 58000
A12: SD | B12: =D6 -> 4700 | C12: =D7 -> 6200 | D12: =D8 -> 5600
A13: x lower | B13: 50000 | C13: 50000 | D13: 50000
A14: x upper | B14: 60000 | C14: 60000 | D14: 60000
A15: Operator | B15: between
A16: ="P("&B13&" <= "&LEFT(A13,1)&" <= "&B14&")" -> P(50000 <= x <= 60000) | B16: =_xlfn.NORM.DIST(B14,B11,B12,1)-_xlfn.NORM.DIST(B13,B11,B12,1) -> 0.6701640277 | C16: =_xlfn.NORM.DIST(C14,C11,C12,1)-_xlfn.NORM.DIST(C13,C11,C12,1) -> 0.1616558401 | D16: 0.5629438435
A29: Seattle Data Set: | C29: Lower X | D29: 50000 | F29: ="Normal Probability Distribution for Assumed Population Accounting Salary Data in Seattle, Mean = "&DOLLAR(C6,0)&", SD = "&DOLLAR(D6,0) -> Normal Probability Distribution for Assumed Population Accounting Salary Data in Seattle, Mean = $53,000, SD = $4,700
C30: Upper X | D30: 60000
C31: =E33 -> P(50K<=x<=60K) = 0.6702 | D31: =_xlfn.NORM.DIST(D30,C6,D6,1)-_xlfn.NORM.DIST(D29,C6,D6,1) -> 0.6701640277 | G31: =_xlfn.NORM.INV(0.4,53000,4700) -> 51809.26862
A33: X = Accounting Annual Salary in Seattle | B33: X primary axis | C33: z second axis | D33: f(x) | E33: ="P("&TEXT(D29,"0,K")&"<=x<="&TEXT(D30,"0,K")&") = "&ROUND(D31,4) -> P(50K<=x<=60K) = 0.6702
A34: =C6-D6*4 -> 34200 | B34: =IF(ISNUMBER(C34),A34,"") -> 34200 | C34: =IF(INT((A34-$C$6)/$D$6)=(A34-$C$6)/$D$6,(A34-$C$6)/$D$6,"") -> -4 | D34: =_xlfn.NORM.DIST(A34,$C$6,$D$6,0) -> 2.847451612e-08 | E34: =IF(AND(A34>=$D$29,A34<=$D$30),D34,"") ->  | F34: =1/($D$6*SQRT(2*PI()))*EXP(1)^-((1/2)*((A34-$C$6)/$D$6)^2) -> 2.847451612e-08 | G34: =F34=D34 -> TRUE
A35: =A34+100 -> 34300 | B35: =IF(ISNUMBER(C35),A35,"") ->  | D35: 3.099697293e-08 | F35: =1/($D$6*SQRT(2*PI()))*EXP(1)^-((1/2)*((A35-$C$6)/$D$6)^2) -> 3.099697293e-08 | G35: =F35=D35 -> TRUE
A36: =A35+100 -> 34400 | D36: 3.372761355e-08 | F36: 3.372761355e-08 | G36: TRUE
A37: 34500 | D37: 3.668219708e-08 | F37: 3.668219708e-08 | G37: TRUE
A38: 34600 | D38: 3.987754963e-08 | F38: 3.987754963e-08 | G38: TRUE
A39: 34700 | D39: 4.333162604e-08 | F39: 4.333162604e-08 | G39: TRUE
A40: 34800 | D40: 4.706357421e-08 | F40: 4.706357421e-08 | G40: TRUE
A41: 34900 | D41: 5.109380237e-08 | F41: 5.109380237e-08 | G41: TRUE
A42: 35000 | D42: 5.544404905e-08 | F42: 5.544404905e-08 | G42: TRUE
A43: 35100 | D43: 6.013745598e-08 | F43: 6.013745598e-08 | G43: TRUE
A44: 35200 | D44: 6.519864389e-08 | F44: 6.519864389e-08 | G44: TRUE
A45: 35300 | D45: 7.065379127e-08 | F45: 7.065379127e-08 | G45: TRUE
A46: 35400 | D46: 7.65307161e-08 | F46: 7.65307161e-08 | G46: TRUE
A47: 35500 | D47: 8.285896054e-08 | F47: 8.285896054e-08 | G47: TRUE
A48: 35600 | D48: 8.966987869e-08 | F48: 8.966987869e-08 | G48: TRUE
A49: 35700 | D49: 9.699672732e-08 | F49: 9.699672732e-08 | G49: TRUE
A50: 35800 | D50: 1.048747596e-07 | F50: 1.048747596e-07 | G50: TRUE
A51: 35900 | D51: 1.133413217e-07 | F51: 1.133413217e-07 | G51: TRUE
A52: 36000 | D52: 1.224359527e-07 | F52: 1.224359527e-07 | G52: TRUE
A53: 36100 | D53: 1.32200487e-07 | F53: 1.32200487e-07 | G53: TRUE
A54: 36200 | D54: 1.426791596e-07 | F54: 1.426791596e-07 | G54: TRUE
A55: 36300 | D55: 1.539187146e-07 | F55: 1.539187146e-07 | G55: TRUE
A56: 36400 | D56: 1.659685161e-07 | F56: 1.659685161e-07 | G56: TRUE
A57: 36500 | D57: 1.788806613e-07 | F57: 1.788806613e-07 | G57: TRUE
A58: 36600 | D58: 1.927100971e-07 | F58: 1.927100971e-07 | G58: TRUE
A59: 36700 | D59: 2.07514738e-07 | F59: 2.07514738e-07 | G59: TRUE
A60: 36800 | D60: 2.233555869e-07 | F60: 2.233555869e-07 | G60: TRUE
A61: 36900 | D61: 2.402968577e-07 | F61: 2.402968577e-07 | G61: TRUE
A62: 37000 | D62: 2.584060996e-07 | F62: 2.584060996e-07 | G62: TRUE
A63: 37100 | D63: 2.777543235e-07 | F63: 2.777543235e-07 | G63: TRUE
A64: 37200 | D64: 2.98416129e-07 | F64: 2.98416129e-07 | G64: TRUE
A65: 37300 | D65: 3.204698336e-07 | F65: 3.204698336e-07 | G65: TRUE
A66: 37400 | D66: 3.439976018e-07 | F66: 3.439976018e-07 | G66: TRUE
A67: 37500 | D67: 3.690855755e-07 | F67: 3.690855755e-07 | G67: TRUE
A68: 37600 | D68: 3.958240044e-07 | F68: 3.958240044e-07 | G68: TRUE
A69: 37700 | D69: 4.243073757e-07 | F69: 4.243073757e-07 | G69: TRUE
A70: 37800 | D70: 4.546345449e-07 | F70: 4.546345449e-07 | G70: TRUE
A71: 37900 | D71: 4.869088637e-07 | F71: 4.869088637e-07 | G71: TRUE
A72: 38000 | D72: 5.212383085e-07 | F72: 5.212383085e-07 | G72: TRUE
A73: 38100 | D73: 5.577356058e-07 | F73: 5.577356058e-07 | G73: TRUE
A74: 38200 | D74: 5.965183561e-07 | F74: 5.965183561e-07 | G74: TRUE
A75: 38300 | D75: 6.377091548e-07 | F75: 6.377091548e-07 | G75: TRUE
A76: 38400 | D76: 6.814357101e-07 | F76: 6.814357101e-07 | G76: TRUE
A77: 38500 | D77: 7.278309567e-07 | F77: 7.278309567e-07 | G77: TRUE
A78: 38600 | D78: 7.770331655e-07 | F78: 7.770331655e-07 | G78: TRUE
A79: 38700 | D79: 8.29186048e-07 | F79: 8.29186048e-07 | G79: TRUE
A80: 38800 | D80: 8.844388553e-07 | F80: 8.844388553e-07 | G80: TRUE
A81: 38900 | B81: 38900 | C81: -3 | D81: 9.429464706e-07 | F81: 9.429464706e-07 | G81: TRUE
A82: 39000 | D82: 1.004869495e-06 | F82: 1.004869495e-06 | G82: TRUE
A83: 39100 | D83: 1.070374326e-06 | F83: 1.070374326e-06 | G83: TRUE
A84: 39200 | D84: 1.139633225e-06 | F84: 1.139633225e-06 | G84: TRUE
A85: 39300 | D85: 1.21282438e-06 | F85: 1.21282438e-06 | G85: TRUE
A86: 39400 | D86: 1.290131955e-06 | F86: 1.290131955e-06 | G86: TRUE
A87: 39500 | D87: 1.371746132e-06 | F87: 1.371746132e-06 | G87: TRUE
A88: 39600 | D88: 1.457863133e-06 | F88: 1.457863133e-06 | G88: TRUE
A89: 39700 | D89: 1.548685245e-06 | F89: 1.548685245e-06 | G89: TRUE
A90: 39800 | D90: 1.644420815e-06 | F90: 1.644420815e-06 | G90: TRUE
A91: 39900 | D91: 1.745284244e-06 | F91: 1.745284244e-06 | G91: TRUE
A92: 40000 | D92: 1.851495958e-06 | F92: 1.851495958e-06 | G92: TRUE
A93: 40100 | D93: 1.963282368e-06 | F93: 1.963282368e-06 | G93: TRUE
A94: 40200 | D94: 2.080875811e-06 | F94: 2.080875811e-06 | G94: TRUE
A95: 40300 | D95: 2.204514477e-06 | F95: 2.204514477e-06 | G95: TRUE
A96: 40400 | D96: 2.334442312e-06 | F96: 2.334442312e-06 | G96: TRUE
A97: 40500 | D97: 2.470908907e-06 | F97: 2.470908907e-06 | G97: TRUE
A98: 40600 | C98: =IF(INT((A98-$C$6)/$D$6)=(A98-$C$6)/$D$6,(A98-$C$6)/$D$6,"") ->  | D98: =_xlfn.NORM.DIST(A98,$C$6,$D$6,0) -> 2.614169367e-06 | E98: =IF(AND(A98>=$D$29,A98<=$D$30),D98,"") ->  | F98: 2.614169367e-06 | G98: TRUE
A99: 40700 | B99: =IF(ISNUMBER(C99),A99,"") ->  | D99: 2.764484157e-06 | F99: =1/($D$6*SQRT(2*PI()))*EXP(1)^-((1/2)*((A99-$C$6)/$D$6)^2) -> 2.764484157e-06 | G99: =F99=D99 -> TRUE
A100: =A99+100 -> 40800 | D100: 2.922118927e-06 | F100: 2.922118927e-06 | G100: TRUE
A101: 40900 | D101: 3.087344315e-06 | F101: 3.087344315e-06 | G101: TRUE
A102: 41000 | D102: 3.260435731e-06 | F102: 3.260435731e-06 | G102: TRUE
A103: 41100 | D103: 3.441673112e-06 | F103: 3.441673112e-06 | G103: TRUE
A104: 41200 | D104: 3.631340652e-06 | F104: 3.631340652e-06 | G104: TRUE
A105: 41300 | D105: 3.829726517e-06 | F105: 3.829726517e-06 | G105: TRUE
A106: 41400 | D106: 4.037122521e-06 | F106: 4.037122521e-06 | G106: FALSE
A107: 41500 | D107: 4.253823788e-06 | F107: 4.253823788e-06 | G107: TRUE
A108: 41600 | D108: 4.480128379e-06 | F108: 4.480128379e-06 | G108: TRUE
A109: 41700 | D109: 4.716336897e-06 | F109: 4.716336897e-06 | G109: TRUE
A110: 41800 | D110: 4.962752066e-06 | F110: 4.962752066e-06 | G110: TRUE
A111: 41900 | D111: 5.219678277e-06 | F111: 5.219678277e-06 | G111: TRUE
A112: 42000 | D112: 5.487421109e-06 | F112: 5.487421109e-06 | G112: TRUE
A113: 42100 | D113: 5.76628683e-06 | F113: 5.76628683e-06 | G113: TRUE
A114: 42200 | D114: 6.056581855e-06 | F114: 6.056581855e-06 | G114: TRUE
A115: 42300 | D115: 6.358612192e-06 | F115: 6.358612192e-06 | G115: TRUE
A116: 42400 | D116: 6.672682849e-06 | F116: 6.672682849e-06 | G116: TRUE
A117: 42500 | D117: 6.999097221e-06 | F117: 6.999097221e-06 | G117: TRUE
A118: 42600 | D118: 7.338156447e-06 | F118: 7.338156447e-06 | G118: TRUE
A119: 42700 | D119: 7.690158741e-06 | F119: 7.690158741e-06 | G119: TRUE
A120: 42800 | D120: 8.055398697e-06 | F120: 8.055398697e-06 | G120: TRUE
A121: 42900 | D121: 8.434166572e-06 | F121: 8.434166572e-06 | G121: TRUE
A122: 43000 | D122: 8.826747539e-06 | F122: 8.826747539e-06 | G122: TRUE
A123: 43100 | D123: 9.233420921e-06 | F123: 9.233420921e-06 | G123: TRUE
A124: 43200 | D124: 9.654459403e-06 | F124: 9.654459403e-06 | G124: TRUE
A125: 43300 | D125: 1.009012822e-05 | F125: 1.009012822e-05 | G125: TRUE
A126: 43400 | D126: 1.054068432e-05 | F126: 1.054068432e-05 | G126: TRUE
A127: 43500 | D127: 1.100637553e-05 | F127: 1.100637553e-05 | G127: TRUE
A128: 43600 | B128: 43600 | C128: -2 | D128: 1.148743968e-05 | F128: 1.148743968e-05 | G128: TRUE
A129: 43700 | D129: 1.198410372e-05 | F129: 1.198410372e-05 | G129: TRUE
A130: 43800 | D130: 1.249658283e-05 | F130: 1.249658283e-05 | G130: TRUE
A131: 43900 | D131: 1.302507949e-05 | F131: 1.302507949e-05 | G131: TRUE
A132: 44000 | D132: 1.356978262e-05 | F132: 1.356978262e-05 | G132: TRUE
A133: 44100 | D133: 1.41308666e-05 | F133: 1.41308666e-05 | G133: TRUE
A134: 44200 | D134: 1.470849036e-05 | F134: 1.470849036e-05 | G134: FALSE
A135: 44300 | D135: 1.530279645e-05 | F135: 1.530279645e-05 | G135: TRUE
A136: 44400 | D136: 1.59139101e-05 | F136: 1.59139101e-05 | G136: TRUE
A137: 44500 | D137: 1.654193832e-05 | F137: 1.654193832e-05 | G137: TRUE
A138: 44600 | D138: 1.718696892e-05 | F138: 1.718696892e-05 | G138: TRUE
A139: 44700 | D139: 1.784906963e-05 | F139: 1.784906963e-05 | G139: TRUE
A140: 44800 | D140: 1.852828718e-05 | F140: 1.852828718e-05 | G140: FALSE
A141: 44900 | D141: 1.922464642e-05 | F141: 1.922464642e-05 | G141: TRUE
A142: 45000 | D142: 1.993814941e-05 | F142: 1.993814941e-05 | G142: TRUE
A143: 45100 | D143: 2.066877459e-05 | F143: 2.066877459e-05 | G143: TRUE
A144: 45200 | D144: 2.141647594e-05 | F144: 2.141647594e-05 | G144: TRUE
A145: 45300 | D145: 2.218118213e-05 | F145: 2.218118213e-05 | G145: TRUE
A146: 45400 | D146: 2.296279581e-05 | F146: 2.296279581e-05 | G146: TRUE
A147: 45500 | D147: 2.376119277e-05 | F147: 2.376119277e-05 | G147: FALSE
A148: 45600 | D148: 2.45762213e-05 | F148: 2.45762213e-05 | G148: TRUE
A149: 45700 | D149: 2.540770148e-05 | F149: 2.540770148e-05 | G149: TRUE
A150: 45800 | D150: 2.625542453e-05 | F150: 2.625542453e-05 | G150: TRUE
A151: 45900 | D151: 2.711915226e-05 | F151: 2.711915226e-05 | G151: TRUE
A152: 46000 | D152: 2.799861647e-05 | F152: 2.799861647e-05 | G152: TRUE
A153: 46100 | D153: 2.889351852e-05 | F153: 2.889351852e-05 | G153: TRUE
A154: 46200 | D154: 2.980352884e-05 | F154: 2.980352884e-05 | G154: TRUE
A155: 46300 | D155: 3.072828657e-05 | F155: 3.072828657e-05 | G155: TRUE
A156: 46400 | D156: 3.166739923e-05 | F156: 3.166739923e-05 | G156: TRUE
A157: 46500 | D157: 3.26204425e-05 | F157: 3.26204425e-05 | G157: TRUE
A158: 46600 | D158: 3.358695995e-05 | F158: 3.358695995e-05 | G158: TRUE
A159: 46700 | D159: 3.456646297e-05 | F159: 3.456646297e-05 | G159: TRUE
A160: 46800 | D160: 3.555843072e-05 | F160: 3.555843072e-05 | G160: TRUE
A161: 46900 | D161: 3.65623101e-05 | F161: 3.65623101e-05 | G161: TRUE
A162: 47000 | C162: =IF(INT((A162-$C$6)/$D$6)=(A162-$C$6)/$D$6,(A162-$C$6)/$D$6,"") ->  | D162: =_xlfn.NORM.DIST(A162,$C$6,$D$6,0) -> 3.757751587e-05 | E162: =IF(AND(A162>=$D$29,A162<=$D$30),D162,"") ->  | F162: 3.757751587e-05 | G162: FALSE
A163: 47100 | B163: =IF(ISNUMBER(C163),A163,"") ->  | D163: 3.860343083e-05 | F163: =1/($D$6*SQRT(2*PI()))*EXP(1)^-((1/2)*((A163-$C$6)/$D$6)^2) -> 3.860343083e-05 | G163: =F163=D163 -> TRUE
A164: =A163+100 -> 47200 | D164: 3.963940604e-05 | F164: 3.963940604e-05 | G164: TRUE
A165: 47300 | D165: 4.068476114e-05 | F165: 4.068476114e-05 | G165: TRUE
A166: 47400 | D166: 4.173878479e-05 | F166: 4.173878479e-05 | G166: FALSE
A167: 47500 | D167: 4.280073512e-05 | F167: 4.280073512e-05 | G167: TRUE
A168: 47600 | D168: 4.386984033e-05 | F168: 4.386984033e-05 | G168: TRUE
A169: 47700 | D169: 4.494529929e-05 | F169: 4.494529929e-05 | G169: TRUE
A170: 47800 | D170: 4.602628237e-05 | F170: 4.602628237e-05 | G170: TRUE
A171: 47900 | D171: 4.711193217e-05 | F171: 4.711193217e-05 | G171: TRUE
A172: 48000 | D172: 4.820136446e-05 | F172: 4.820136446e-05 | G172: TRUE
A173: 48100 | D173: 4.929366918e-05 | F173: 4.929366918e-05 | G173: TRUE
A174: 48200 | D174: 5.038791147e-05 | F174: 5.038791147e-05 | G174: TRUE
A175: 48300 | B175: 48300 | C175: -1 | D175: 5.148313288e-05 | F175: 5.148313288e-05 | G175: TRUE
A176: 48400 | D176: 5.257835252e-05 | F176: 5.257835252e-05 | G176: TRUE
A177: 48500 | D177: 5.367256846e-05 | F177: 5.367256846e-05 | G177: TRUE
A178: 48600 | D178: 5.476475902e-05 | F178: 5.476475902e-05 | G178: TRUE
A179: 48700 | D179: 5.58538843e-05 | F179: 5.58538843e-05 | G179: TRUE
A180: 48800 | D180: 5.693888768e-05 | F180: 5.693888768e-05 | G180: TRUE
A181: 48900 | D181: 5.801869743e-05 | F181: 5.801869743e-05 | G181: TRUE
A182: 49000 | D182: 5.909222836e-05 | F182: 5.909222836e-05 | G182: TRUE
A183: 49100 | D183: 6.015838355e-05 | F183: 6.015838355e-05 | G183: TRUE
A184: 49200 | D184: 6.121605618e-05 | F184: 6.121605618e-05 | G184: TRUE
A185: 49300 | D185: 6.226413129e-05 | F185: 6.226413129e-05 | G185: TRUE
A186: 49400 | D186: 6.330148774e-05 | F186: 6.330148774e-05 | G186: TRUE
A187: 49500 | D187: 6.432700015e-05 | F187: 6.432700015e-05 | G187: TRUE
A188: 49600 | D188: 6.533954083e-05 | F188: 6.533954083e-05 | G188: TRUE
A189: 49700 | D189: 6.633798186e-05 | F189: 6.633798186e-05 | G189: TRUE
A190: 49800 | D190: 6.732119711e-05 | F190: 6.732119711e-05 | G190: TRUE
A191: 49900 | D191: 6.828806432e-05 | F191: 6.828806432e-05 | G191: TRUE
A192: 50000 | D192: 6.923746724e-05 | E192: 6.923746724e-05 | F192: 6.923746724e-05 | G192: TRUE
A193: 50100 | D193: 7.016829769e-05 | E193: 7.016829769e-05 | F193: 7.016829769e-05 | G193: TRUE
A194: 50200 | D194: 7.107945776e-05 | E194: 7.107945776e-05 | F194: 7.107945776e-05 | G194: TRUE
A195: 50300 | D195: 7.19698619e-05 | E195: 7.19698619e-05 | F195: 7.19698619e-05 | G195: TRUE
A196: 50400 | D196: 7.283843907e-05 | E196: 7.283843907e-05 | F196: 7.283843907e-05 | G196: TRUE
A197: 50500 | D197: 7.36841349e-05 | E197: 7.36841349e-05 | F197: 7.36841349e-05 | G197: TRUE
A198: 50600 | D198: 7.450591375e-05 | E198: 7.450591375e-05 | F198: 7.450591375e-05 | G198: TRUE
A199: 50700 | D199: 7.530276089e-05 | E199: 7.530276089e-05 | F199: 7.530276089e-05 | G199: TRUE
A200: 50800 | D200: 7.607368451e-05 | E200: 7.607368451e-05 | F200: 7.607368451e-05 | G200: TRUE
A201: 50900 | D201: 7.681771783e-05 | E201: 7.681771783e-05 | F201: 7.681771783e-05 | G201: FALSE
A202: 51000 | D202: 7.753392107e-05 | E202: 7.753392107e-05 | F202: 7.753392107e-05 | G202: TRUE
A203: 51100 | D203: 7.822138343e-05 | E203: 7.822138343e-05 | F203: 7.822138343e-05 | G203: TRUE
A204: 51200 | D204: 7.887922505e-05 | E204: 7.887922505e-05 | F204: 7.887922505e-05 | G204: TRUE
A205: 51300 | D205: 7.950659884e-05 | E205: 7.950659884e-05 | F205: 7.950659884e-05 | G205: FALSE
A206: 51400 | D206: 8.010269233e-05 | E206: 8.010269233e-05 | F206: 8.010269233e-05 | G206: TRUE
A207: 51500 | D207: 8.066672941e-05 | E207: 8.066672941e-05 | F207: 8.066672941e-05 | G207: TRUE
A208: 51600 | D208: 8.1197972e-05 | E208: 8.1197972e-05 | F208: 8.1197972e-05 | G208: TRUE
A209: 51700 | D209: 8.169572166e-05 | E209: 8.169572166e-05 | F209: 8.169572166e-05 | G209: TRUE
A210: 51800 | D210: 8.215932116e-05 | E210: 8.215932116e-05 | F210: 8.215932116e-05 | G210: TRUE
A211: 51900 | D211: 8.258815586e-05 | E211: 8.258815586e-05 | F211: 8.258815586e-05 | G211: TRUE
A212: 52000 | D212: 8.298165512e-05 | E212: 8.298165512e-05 | F212: 8.298165512e-05 | G212: TRUE
A213: 52100 | D213: 8.333929355e-05 | E213: 8.333929355e-05 | F213: 8.333929355e-05 | G213: TRUE
A214: 52200 | D214: 8.366059216e-05 | E214: 8.366059216e-05 | F214: 8.366059216e-05 | G214: TRUE
... 196 more rows

Sheet GasData
A1: A recent Seattle Area Consumer Web Site published this data:
A2: Location | B2: Mean Gas Price per Gallon | C2: Standard Deviation Gas Price per Gallon | K2: -3SD | L2: +3 SD | M2: Normal / Empirical Rule:
A3: Seattle, WA | B3: 2.359 | C3: 0.165 | K3: =B3-C3*3 -> 1.864 | L3: =B3+C3*3 -> 2.854 | M3: 99% of values lie between +/- 3 SD
A4: Burien, WA | B4: 2.393333333 | C4: 0.186 | K4: =B4-C4*3 -> 1.835333333 | L4: =B4+C4*3 -> 2.951333333
A6: What is the probability of finding a gallon of gas in Seattle that is between $2.10 and $2.30?
A7: What is the probability of finding a gallon of gas in Burien that is more than $2.50?
A9: x lower Seattle
A10: x upper Seattle
A11: ="P($"&B9&" <= x <= $"&B10&") =" -> P($ <= x <= $) =
A12: x upper Burien
A13: ="P(x >= $"&B12&")" -> P(x >= $)

Sheet GasData (an)
A1: A recent Seattle Area Consumer Web Site published this data:
A2: Location | B2: Mean Gas Price per Gallon | C2: Standard Deviation Gas Price per Gallon | K2: -3SD | L2: +3 SD | M2: Normal / Empirical Rule:
A3: Seattle, WA | B3: 2.359 | C3: 0.165 | K3: =B3-C3*3 -> 1.864 | L3: =B3+C3*3 -> 2.854 | M3: 99% of values lie between +/- 3 SD
A4: Burien, WA | B4: 2.393333333 | C4: 0.186 | K4: =B4-C4*3 -> 1.835333333 | L4: =B4+C4*3 -> 2.951333333
A6: What is the probability of finding a gallon of gas in Seattle that is between $2.10 and $2.30?
A7: What is the probability of finding a gallon of gas in Burien that is more than $2.50?
A9: x lower Seattle | B9: 2.1
A10: x upper Seattle | B10: 2.3
A11: ="P($"&B9&" <= x <= $"&B10&") =" -> P($2.1 <= x <= $2.3) = | B11: =_xlfn.NORM.DIST(B10,B3,C3,1)-_xlfn.NORM.DIST(B9,B3,C3,1) -> 0.3020875982
A12: x upper Burien | B12: 2.59
A13: ="P(x >= $"&B12&")" -> P(x >= $2.59) | B13: =1-_xlfn.NORM.DIST(B12,B4,C4,1) -> 0.1451764723

Sheet Catsup Filling Machine
A1: Ketchup Bottle lists that it contains 20 oz.
A2: Past Historical Data shows that the machine fills with a standard deviation of .2 oz.
A3: What lower and upper value would you expect for a +/- 2.5 SD range?
A4: What probability is associated with those upper and lower values?
A6: Mew = Pop Mean = | B6: 20 | C6: oz.
A7: Sigma = Pop Standard Deviation = | B7: 0.2 | C7: oz.
A8: z = Number of SD | B8: 2.5
A9: x lower
A10: x upper
A11: ="P("&B9&" <= x <= "&B10&") =" -> P( <= x <= ) =
A12: ="P(-"&B8&" <= z <= "&B8&") =" -> P(-2.5 <= z <= 2.5) =

Sheet Catsup Filling Machine (an)
A1: Ketchup Bottle lists that it contains 20 oz.
A2: Past Historical Data shows that the machine fills with a standard deviation of .2 oz.
A3: What lower and upper value would you expect for a +/- 2.5 SD range?
A4: What probability is associated with those upper and lower values?
A6: Mew = Pop Mean = | B6: 20 | C6: oz.
A7: Sigma = Pop Standard Deviation = | B7: 0.2 | C7: oz.
A8: z = Number of SD | B8: 2.5
A9: x lower | B9: =B6-B7*B8 -> 19.5
A10: x upper | B10: =B6+B7*B8 -> 20.5
A11: ="P("&B9&" <= x <= "&B10&") =" -> P(19.5 <= x <= 20.5) = | B11: =_xlfn.NORM.DIST(B10,B6,B7,1)-_xlfn.NORM.DIST(B9,B6,B7,1) -> 0.9875806693
A12: ="P(-"&B8&" <= z <= "&B8&") =" -> P(-2.5 <= z <= 2.5) = | B12: =_xlfn.NORM.S.DIST(B8,1)-_xlfn.NORM.S.DIST(-B8,1) -> 0.9875806693

Sheet Ex-Dick'sHam
A1: Example 1: | H1: Arrivals to Dick's Hamburgers at 45th Ave in Seattle at Saturday noon lunch during a 1-minute period. 3.88 Arrivals/1 Min. Average Time Between Arrivals = 0.2577 mins or about 15 seconds between arrivals.
A2: From past data we know that the mean number of arrivals at the Dick's Hamburger Restaurant at Sat. Lunch is 3.88 people/minute.
H3: Mean
H4: 3.88 | I4: 3.88 Arrivals/1 Min
A5: X = Arrivals During 1 min | B5: P(X) POISSON Function | H5: Mean time between arrivals | J5: =ROUND(1/$H$4*60,0) -> 15
A6: 0 | B6: =_xlfn.POISSON.DIST(A6,$H$4,0) -> 0.02065082518 | I6: 1 Min/3.88 Arrivals = 0.2577 mins/1 Arrival | M6: Ave wait time between arrivals = 0.2577 mins
A7: 1 | B7: 0.08012520171 | I7: 15 seconds between each new arrival
A8: 2 | B8: 0.1554428913
A9: 3 | B9: 0.2010394728 | H9: ="Probability that time between arrivals will be "&I10&" seconds or less?" -> Probability that time between arrivals will be 10 seconds or less?
A10: 4 | B10: 0.1950082886 | H10: x | I10: 10
A11: 5 | B11: 0.1513264319 | H11: ="P(x <= "&I10&") = " -> P(x <= 10) = | K11: =1-EXP(1)^-(I10/ROUND(1/$H$4*60,0)) -> 0.486582881
A12: 6 | B12: 0.09785775932 | H12: ="Probability that time between arrivals will be "&I13&" seconds or more?" -> Probability that time between arrivals will be 30 seconds or more?
A13: 7 | B13: 0.05424115802 | H13: x | I13: 30
A14: 8 | B14: 0.02630696164 | H14: ="P(x >= "&I13&") = " -> P(x >= 30) = | K14: =EXP(1)^-(I13/ROUND(1/$H$4*60,0)) -> 0.1353352832
A15: 9 | B15: 0.01134122346
A16: 10 | B16: 0.004400394704 | H16: x = seconds between arrivals | I16: f(x) | J16: =H11&ROUND(_xlfn.EXPON.DIST(I10,1/ROUND(1/$H$4*60,0),1),4) -> P(x <= 10) = 0.4866 | K16: =H14&1-ROUND(_xlfn.EXPON.DIST(I13,1/ROUND(1/$H$4*60,0),1),4) -> P(x >= 30) = 0.1353 | W16: f(x)
A17: 11 | B17: 0.001552139223 | H17: 0 | I17: =_xlfn.EXPON.DIST(H17,1/ROUND(1/$H$4*60,0),0) -> 0.06666666667 | J17: =IF(H17<=$I$10,I17,"") -> 0.06666666667 | K17: =IF(H17>=$I$13,I17,"") ->  | W17: =1/ROUND(1/$H$4*60,0)*EXP(1)^-(H17/ROUND(1/$H$4*60,0)) -> 0.06666666667
A18: 12 | B18: 0.0005018583487 | H18: =H17+1 -> 1 | I18: =_xlfn.EXPON.DIST(H18,1/ROUND(1/$H$4*60,0),0) -> 0.06236713234 | J18: =IF(H18<=$I$10,I18,"") -> 0.06236713234 | K18: =IF(H18>=$I$13,I18,"") ->  | W18: =1/ROUND(1/$H$4*60,0)*EXP(1)^-(H18/ROUND(1/$H$4*60,0)) -> 0.06236713234
A19: 13 | B19: 0.0001497854148 | H19: =H18+1 -> 2 | I19: 0.05834488794 | J19: 0.05834488794 | W19: 0.05834488794
A20: 14 | B20: 4.151195783e-05 | H20: 3 | I20: 0.05458205021 | J20: 0.05458205021 | W20: 0.05458205021
A21: 15 | B21: 1.073775976e-05 | H21: 4 | I21: 0.05106188922 | J21: 0.05106188922 | W21: 0.05106188922
A22: 16 | B22: 2.603906741e-06 | H22: 5 | I22: 0.04776875404 | J22: 0.04776875404 | W22: 0.04776875404
A23: 17 | B23: 5.943034209e-07 | H23: 6 | I23: 0.04468800307 | J23: 0.04468800307 | W23: 0.04468800307
A24: 18 | B24: 1.281054041e-07 | H24: 7 | I24: 0.04180593902 | J24: 0.04180593902 | W24: 0.04180593902
A25: 19 | B25: 2.616047199e-08 | H25: 8 | I25: 0.03910974797 | J25: 0.03910974797 | W25: 0.03910974797
A26: 20 | B26: 5.075131566e-09 | H26: 9 | I26: 0.03658744241 | J26: 0.03658744241 | W26: 0.03658744241
A27: 21 | B27: 9.37690975e-10 | H27: 10 | I27: 0.03422780794 | J27: 0.03422780794 | W27: 0.03422780794
A28: 22 | B28: 1.653745901e-10 | H28: 11 | I28: 0.03202035341 | W28: 0.03202035341
A29: 23 | B29: 2.789797434e-11 | H29: 12 | I29: 0.02995526427 | W29: 0.02995526427
A30: 24 | B30: 4.510172518e-12 | H30: 13 | I30: 0.02802335897 | W30: 0.02802335897
A31: 25 | B31: 6.999787748e-13 | H31: 14 | I31: 0.02621604806 | W31: 0.02621604806
A32: 26 | B32: 1.04458371e-13 | H32: 15 | I32: 0.02452529608 | W32: 0.02452529608
A33: 27 | B33: 1.50110548e-14 | H33: 16 | I33: 0.02294358579 | W33: 0.02294358579
A34: 28 | B34: 2.080103307e-15 | H34: 17 | I34: 0.02146388477 | W34: 0.02146388477
A35: 29 | B35: 2.78303477e-16 | H35: 18 | I35: 0.02007961413 | W35: 0.02007961413
A36: Total | B36: =SUM(B6:B35) -> 1 | H36: 19 | I36: 0.01878461927 | W36: 0.01878461927
H37: 20 | I37: 0.01757314254 | W37: 0.01757314254
H38: 21 | I38: 0.0164397976 | W38: 0.0164397976
H39: 22 | I39: 0.01537954548 | W39: 0.01537954548
H40: 23 | I40: 0.01438767223 | W40: 0.01438767223
H41: 24 | I41: 0.01345976787 | W41: 0.01345976787
H42: 25 | I42: 0.01259170686 | W42: 0.01259170686
H43: 26 | I43: 0.01177962972 | W43: 0.01177962972
H44: 27 | I44: 0.01101992588 | W44: 0.01101992588
H45: 28 | I45: 0.01030921764 | W45: 0.01030921764
H46: 29 | I46: 0.009644345109 | W46: 0.009644345109
H47: 30 | I47: 0.009022352216 | K47: 0.009022352216 | W47: 0.009022352216
H48: 31 | I48: 0.008440473519 | K48: 0.008440473519 | W48: 0.008440473519
H49: 32 | I49: 0.007896121934 | K49: 0.007896121934 | W49: 0.007896121934
H50: 33 | I50: 0.007386877224 | K50: 0.007386877224 | W50: 0.007386877224
H51: 34 | I51: 0.006910475241 | K51: 0.006910475241 | W51: 0.006910475241
H52: 35 | I52: 0.006464797858 | K52: 0.006464797858 | W52: 0.006464797858
H53: 36 | I53: 0.006047863553 | K53: 0.006047863553 | W53: 0.006047863553
H54: 37 | I54: 0.005657818598 | K54: 0.005657818598 | W54: 0.005657818598
H55: 38 | I55: 0.005292928818 | K55: 0.005292928818 | W55: 0.005292928818
H56: 39 | I56: 0.004951571881 | K56: 0.004951571881 | W56: 0.004951571881
H57: 40 | I57: 0.004632230082 | K57: 0.004632230082 | W57: 0.004632230082
H58: 41 | I58: 0.004333483598 | K58: 0.004333483598 | W58: 0.004333483598
H59: 42 | I59: 0.004054004175 | K59: 0.004054004175 | W59: 0.004054004175
H60: 43 | I60: 0.003792549223 | K60: 0.003792549223 | W60: 0.003792549223
H61: 44 | I61: 0.003547956289 | K61: 0.003547956289 | W61: 0.003547956289
H62: 45 | I62: 0.003319137891 | K62: 0.003319137891 | W62: 0.003319137891
H63: 46 | I63: 0.003105076681 | K63: 0.003105076681 | W63: 0.003105076681
H64: 47 | I64: 0.002904820925 | K64: 0.002904820925 | W64: 0.002904820925
H65: 48 | I65: 0.002717480265 | K65: 0.002717480265 | W65: 0.002717480265
H66: 49 | I66: 0.00254222177 | K66: 0.00254222177 | W66: 0.00254222177
H67: 50 | I67: 0.002378266223 | K67: 0.002378266223 | W67: 0.002378266223
H68: 51 | I68: 0.002224884664 | K68: 0.002224884664 | W68: 0.002224884664
H69: 52 | I69: 0.002081395144 | K69: 0.002081395144 | W69: 0.002081395144
H70: 53 | I70: 0.001947159696 | K70: 0.001947159696 | W70: 0.001947159696
H71: 54 | I71: 0.001821581496 | K71: 0.001821581496 | W71: 0.001821581496
H72: 55 | I72: 0.001704102214 | K72: 0.001704102214 | W72: 0.001704102214
H73: 56 | I73: 0.001594199524 | K73: 0.001594199524 | W73: 0.001594199524
H74: 57 | I74: 0.00149138479 | K74: 0.00149138479 | W74: 0.00149138479
H75: 58 | I75: 0.001395200889 | K75: 0.001395200889 | W75: 0.001395200889
H76: 59 | I76: 0.001305220177 | K76: 0.001305220177 | W76: 0.001305220177
H77: 60 | I77: 0.001221042593 | K77: 0.001221042593 | W77: 0.001221042593
H78: 61 | I78: 0.001142293874 | K78: 0.001142293874 | W78: 0.001142293874
H79: 62 | I79: 0.001068623898 | K79: 0.001068623898 | W79: 0.001068623898
H80: 63 | I80: 0.0009997051214 | K80: 0.0009997051214 | W80: 0.0009997051214
H81: 64 | I81: 0.000935231124 | K81: 0.000935231124 | W81: 0.000935231124
H82: 65 | I82: =_xlfn.EXPON.DIST(H82,1/ROUND(1/$H$4*60,0),0) -> 0.0008749152491 | J82: =IF(H82<=$I$10,I82,"") ->  | K82: =IF(H82>=$I$13,I82,"") -> 0.0008749152491 | W82: =1/ROUND(1/$H$4*60,0)*EXP(1)^-(H82/ROUND(1/$H$4*60,0)) -> 0.0008749152491
H83: =H82+1 -> 66 | I83: 0.0008184893269 | K83: 0.0008184893269 | W83: 0.0008184893269
H84: 67 | I84: 0.0007657024825 | K84: 0.0007657024825 | W84: 0.0007657024825
H85: 68 | I85: 0.0007163200208 | K85: 0.0007163200208 | W85: 0.0007163200208
H86: 69 | I86: 0.000670122383 | K86: 0.000670122383 | W86: 0.000670122383
H87: 70 | I87: 0.0006269041701 | K87: 0.0006269041701 | W87: 0.0006269041701
H88: 71 | I88: 0.0005864732301 | K88: 0.0005864732301 | W88: 0.0005864732301
H89: 72 | I89: 0.0005486498033 | K89: 0.0005486498033 | W89: 0.0005486498033
H90: 73 | I90: 0.0005132657233 | K90: 0.0005132657233 | W90: 0.0005132657233
H91: 74 | I91: 0.0004801636693 | K91: 0.0004801636693 | W91: 0.0004801636693
H92: 75 | I92: 0.0004491964666 | K92: 0.0004491964666 | W92: 0.0004491964666
H93: 76 | I93: 0.0004202264322 | K93: 0.0004202264322 | W93: 0.0004202264322
H94: 77 | I94: 0.0003931247626 | K94: 0.0003931247626 | W94: 0.0003931247626
H95: 78 | I95: 0.0003677709614 | K95: 0.0003677709614 | W95: 0.0003677709614
H96: 79 | I96: 0.0003440523033 | K96: 0.0003440523033 | W96: 0.0003440523033
H97: 80 | I97: 0.0003218633329 | K97: 0.0003218633329 | W97: 0.0003218633329
H98: 81 | I98: 0.0003011053962 | K98: 0.0003011053962 | W98: 0.0003011053962
H99: 82 | I99: 0.0002816862014 | K99: 0.0002816862014 | W99: 0.0002816862014
H100: 83 | I100: 0.000263519409 | K100: 0.000263519409 | W100: 0.000263519409
H101: 84 | I101: 0.0002465242478 | K101: 0.0002465242478 | W101: 0.0002465242478
H102: 85 | I102: 0.0002306251558 | K102: 0.0002306251558 | W102: 0.0002306251558
H103: 86 | I103: 0.0002157514441 | K103: 0.0002157514441 | W103: 0.0002157514441
H104: 87 | I104: 0.000201836983 | K104: 0.000201836983 | W104: 0.000201836983
H105: 88 | I105: 0.0001888199075 | K105: 0.0001888199075 | W105: 0.0001888199075
H106: 89 | I106: 0.0001766423423 | K106: 0.0001766423423 | W106: 0.0001766423423
H107: 90 | I107: 0.0001652501451 | K107: 0.0001652501451 | W107: 0.0001652501451
H108: 91 | I108: 0.000154592665 | K108: 0.000154592665 | W108: 0.000154592665
H109: 92 | I109: 0.000144622518 | K109: 0.000144622518 | W109: 0.000144622518
H110: 93 | I110: 0.0001352953758 | K110: 0.0001352953758 | W110: 0.0001352953758
H111: 94 | I111: 0.0001265697691 | K111: 0.0001265697691 | W111: 0.0001265697691
H112: 95 | I112: 0.000118406903 | K112: 0.000118406903 | W112: 0.000118406903
H113: 96 | I113: 0.0001107704849 | K113: 0.0001107704849 | W113: 0.0001107704849
H114: 97 | I114: 0.0001036265623 | K114: 0.0001036265623 | W114: 0.0001036265623
H115: 98 | I115: 9.69433729e-05 | K115: 9.69433729e-05 | W115: 9.69433729e-05
H116: 99 | I116: 9.06912025e-05 | K116: 9.06912025e-05 | W116: 9.06912025e-05
H117: 100 | I117: 8.484225342e-05 | K117: 8.484225342e-05 | W117: 8.484225342e-05

Sheet Ex-Dick'sHam (an)
A1: Example 1: | H1: Arrivals to Dick's Hamburgers at 45th Ave in Seattle at Saturday noon lunch during a 1-minute period. 3.88 Arrivals/1 Min. Average Time Between Arrivals = 0.2577 mins or about 15 seconds between arrivals.
A2: From past data we know that the mean number of arrivals at the Dick's Hamburger Restaurant at Sat. Lunch is 3.88 people/minute.
H3: Mean
H4: 3.88 | I4: 3.88 Arrivals/1 Min
A5: X = Arrivals During 1 min | B5: P(X) POISSON Function | H5: Mean time between arrivals | J5: =ROUND(1/$H$4*60,0) -> 15
A6: 0 | B6: =_xlfn.POISSON.DIST(A6,$H$4,0) -> 0.02065082518 | H6: =1/H4 -> 0.2577319588 | I6: 1 Min/3.88 Arrivals = 0.2577 mins/1 Arrival | M6: Ave wait time between arrivals = 0.2577 mins
A7: 1 | B7: 0.08012520171 | H7: =ROUND(H6*60,0) -> 15 | I7: 15 seconds between each new arrival
A8: 2 | B8: 0.1554428913
A9: 3 | B9: 0.2010394728 | H9: ="Probability that time between arrivals will be "&I10&" seconds or less?" -> Probability that time between arrivals will be 10 seconds or less?
A10: 4 | B10: 0.1950082886 | H10: x | I10: 10
A11: 5 | B11: 0.1513264319 | H11: ="P(x <= "&I10&") = " -> P(x <= 10) = | I11: =_xlfn.EXPON.DIST(I10,1/H7,1) -> 0.486582881 | K11: =1-EXP(1)^-(I10/ROUND(1/$H$4*60,0)) -> 0.486582881
A12: 6 | B12: 0.09785775932 | H12: ="Probability that time between arrivals will be "&I13&" seconds or more?" -> Probability that time between arrivals will be 30 seconds or more?
A13: 7 | B13: 0.05424115802 | H13: x | I13: 30
A14: 8 | B14: 0.02630696164 | H14: ="P(x >= "&I13&") = " -> P(x >= 30) = | I14: =1-_xlfn.EXPON.DIST(I13,1/H7,1) -> 0.1353352832 | K14: =EXP(1)^-(I13/ROUND(1/$H$4*60,0)) -> 0.1353352832
A15: 9 | B15: 0.01134122346
A16: 10 | B16: 0.004400394704 | H16: x = seconds between arrivals | I16: f(x) | J16: =H11&ROUND(_xlfn.EXPON.DIST(I10,1/ROUND(1/$H$4*60,0),1),4) -> P(x <= 10) = 0.4866 | K16: =H14&1-ROUND(_xlfn.EXPON.DIST(I13,1/ROUND(1/$H$4*60,0),1),4) -> P(x >= 30) = 0.1353 | W16: f(x)
A17: 11 | B17: 0.001552139223 | H17: 0 | I17: =_xlfn.EXPON.DIST(H17,1/ROUND(1/$H$4*60,0),0) -> 0.06666666667 | J17: =IF(H17<=$I$10,I17,"") -> 0.06666666667 | K17: =IF(H17>=$I$13,I17,"") ->  | W17: =1/ROUND(1/$H$4*60,0)*EXP(1)^-(H17/ROUND(1/$H$4*60,0)) -> 0.06666666667
A18: 12 | B18: 0.0005018583487 | H18: =H17+1 -> 1 | I18: =_xlfn.EXPON.DIST(H18,1/ROUND(1/$H$4*60,0),0) -> 0.06236713234 | J18: =IF(H18<=$I$10,I18,"") -> 0.06236713234 | K18: =IF(H18>=$I$13,I18,"") ->  | W18: =1/ROUND(1/$H$4*60,0)*EXP(1)^-(H18/ROUND(1/$H$4*60,0)) -> 0.06236713234
A19: 13 | B19: 0.0001497854148 | H19: =H18+1 -> 2 | I19: 0.05834488794 | J19: 0.05834488794 | W19: 0.05834488794
A20: 14 | B20: 4.151195783e-05 | H20: 3 | I20: 0.05458205021 | J20: 0.05458205021 | W20: 0.05458205021
A21: 15 | B21: 1.073775976e-05 | H21: 4 | I21: 0.05106188922 | J21: 0.05106188922 | W21: 0.05106188922
A22: 16 | B22: 2.603906741e-06 | H22: 5 | I22: 0.04776875404 | J22: 0.04776875404 | W22: 0.04776875404
A23: 17 | B23: 5.943034209e-07 | H23: 6 | I23: 0.04468800307 | J23: 0.04468800307 | W23: 0.04468800307
A24: 18 | B24: 1.281054041e-07 | H24: 7 | I24: 0.04180593902 | J24: 0.04180593902 | W24: 0.04180593902
A25: 19 | B25: 2.616047199e-08 | H25: 8 | I25: 0.03910974797 | J25: 0.03910974797 | W25: 0.03910974797
A26: 20 | B26: 5.075131566e-09 | H26: 9 | I26: 0.03658744241 | J26: 0.03658744241 | W26: 0.03658744241
A27: 21 | B27: 9.37690975e-10 | H27: 10 | I27: 0.03422780794 | J27: 0.03422780794 | W27: 0.03422780794
A28: 22 | B28: 1.653745901e-10 | H28: 11 | I28: 0.03202035341 | W28: 0.03202035341
A29: 23 | B29: 2.789797434e-11 | H29: 12 | I29: 0.02995526427 | W29: 0.02995526427
A30: 24 | B30: 4.510172518e-12 | H30: 13 | I30: 0.02802335897 | W30: 0.02802335897
A31: 25 | B31: 6.999787748e-13 | H31: 14 | I31: 0.02621604806 | W31: 0.02621604806
A32: 26 | B32: 1.04458371e-13 | H32: 15 | I32: 0.02452529608 | W32: 0.02452529608
A33: 27 | B33: 1.50110548e-14 | H33: 16 | I33: 0.02294358579 | W33: 0.02294358579
A34: 28 | B34: 2.080103307e-15 | H34: 17 | I34: 0.02146388477 | W34: 0.02146388477
A35: 29 | B35: 2.78303477e-16 | H35: 18 | I35: 0.02007961413 | W35: 0.02007961413
A36: Total | B36: =SUM(B6:B35) -> 1 | H36: 19 | I36: 0.01878461927 | W36: 0.01878461927
H37: 20 | I37: 0.01757314254 | W37: 0.01757314254
H38: 21 | I38: 0.0164397976 | W38: 0.0164397976
H39: 22 | I39: 0.01537954548 | W39: 0.01537954548
H40: 23 | I40: 0.01438767223 | W40: 0.01438767223
H41: 24 | I41: 0.01345976787 | W41: 0.01345976787
H42: 25 | I42: 0.01259170686 | W42: 0.01259170686
H43: 26 | I43: 0.01177962972 | W43: 0.01177962972
H44: 27 | I44: 0.01101992588 | W44: 0.01101992588
H45: 28 | I45: 0.01030921764 | W45: 0.01030921764
H46: 29 | I46: 0.009644345109 | W46: 0.009644345109
H47: 30 | I47: 0.009022352216 | K47: 0.009022352216 | W47: 0.009022352216
H48: 31 | I48: 0.008440473519 | K48: 0.008440473519 | W48: 0.008440473519
H49: 32 | I49: 0.007896121934 | K49: 0.007896121934 | W49: 0.007896121934
H50: 33 | I50: 0.007386877224 | K50: 0.007386877224 | W50: 0.007386877224
H51: 34 | I51: 0.006910475241 | K51: 0.006910475241 | W51: 0.006910475241
H52: 35 | I52: 0.006464797858 | K52: 0.006464797858 | W52: 0.006464797858
H53: 36 | I53: 0.006047863553 | K53: 0.006047863553 | W53: 0.006047863553
H54: 37 | I54: 0.005657818598 | K54: 0.005657818598 | W54: 0.005657818598
H55: 38 | I55: 0.005292928818 | K55: 0.005292928818 | W55: 0.005292928818
H56: 39 | I56: 0.004951571881 | K56: 0.004951571881 | W56: 0.004951571881
H57: 40 | I57: 0.004632230082 | K57: 0.004632230082 | W57: 0.004632230082
H58: 41 | I58: 0.004333483598 | K58: 0.004333483598 | W58: 0.004333483598
H59: 42 | I59: 0.004054004175 | K59: 0.004054004175 | W59: 0.004054004175
H60: 43 | I60: 0.003792549223 | K60: 0.003792549223 | W60: 0.003792549223
H61: 44 | I61: 0.003547956289 | K61: 0.003547956289 | W61: 0.003547956289
H62: 45 | I62: 0.003319137891 | K62: 0.003319137891 | W62: 0.003319137891
H63: 46 | I63: 0.003105076681 | K63: 0.003105076681 | W63: 0.003105076681
H64: 47 | I64: 0.002904820925 | K64: 0.002904820925 | W64: 0.002904820925
H65: 48 | I65: 0.002717480265 | K65: 0.002717480265 | W65: 0.002717480265
H66: 49 | I66: 0.00254222177 | K66: 0.00254222177 | W66: 0.00254222177
H67: 50 | I67: 0.002378266223 | K67: 0.002378266223 | W67: 0.002378266223
H68: 51 | I68: 0.002224884664 | K68: 0.002224884664 | W68: 0.002224884664
H69: 52 | I69: 0.002081395144 | K69: 0.002081395144 | W69: 0.002081395144
H70: 53 | I70: 0.001947159696 | K70: 0.001947159696 | W70: 0.001947159696
H71: 54 | I71: 0.001821581496 | K71: 0.001821581496 | W71: 0.001821581496
H72: 55 | I72: 0.001704102214 | K72: 0.001704102214 | W72: 0.001704102214
H73: 56 | I73: 0.001594199524 | K73: 0.001594199524 | W73: 0.001594199524
H74: 57 | I74: 0.00149138479 | K74: 0.00149138479 | W74: 0.00149138479
H75: 58 | I75: 0.001395200889 | K75: 0.001395200889 | W75: 0.001395200889
H76: 59 | I76: 0.001305220177 | K76: 0.001305220177 | W76: 0.001305220177
H77: 60 | I77: 0.001221042593 | K77: 0.001221042593 | W77: 0.001221042593
H78: 61 | I78: 0.001142293874 | K78: 0.001142293874 | W78: 0.001142293874
H79: 62 | I79: 0.001068623898 | K79: 0.001068623898 | W79: 0.001068623898
H80: 63 | I80: 0.0009997051214 | K80: 0.0009997051214 | W80: 0.0009997051214
H81: 64 | I81: 0.000935231124 | K81: 0.000935231124 | W81: 0.000935231124
H82: 65 | I82: =_xlfn.EXPON.DIST(H82,1/ROUND(1/$H$4*60,0),0) -> 0.0008749152491 | J82: =IF(H82<=$I$10,I82,"") ->  | K82: =IF(H82>=$I$13,I82,"") -> 0.0008749152491 | W82: =1/ROUND(1/$H$4*60,0)*EXP(1)^-(H82/ROUND(1/$H$4*60,0)) -> 0.0008749152491
H83: =H82+1 -> 66 | I83: 0.0008184893269 | K83: 0.0008184893269 | W83: 0.0008184893269
H84: 67 | I84: 0.0007657024825 | K84: 0.0007657024825 | W84: 0.0007657024825
H85: 68 | I85: 0.0007163200208 | K85: 0.0007163200208 | W85: 0.0007163200208
H86: 69 | I86: 0.000670122383 | K86: 0.000670122383 | W86: 0.000670122383
H87: 70 | I87: 0.0006269041701 | K87: 0.0006269041701 | W87: 0.0006269041701
H88: 71 | I88: 0.0005864732301 | K88: 0.0005864732301 | W88: 0.0005864732301
H89: 72 | I89: 0.0005486498033 | K89: 0.0005486498033 | W89: 0.0005486498033
H90: 73 | I90: 0.0005132657233 | K90: 0.0005132657233 | W90: 0.0005132657233
H91: 74 | I91: 0.0004801636693 | K91: 0.0004801636693 | W91: 0.0004801636693
H92: 75 | I92: 0.0004491964666 | K92: 0.0004491964666 | W92: 0.0004491964666
H93: 76 | I93: 0.0004202264322 | K93: 0.0004202264322 | W93: 0.0004202264322
H94: 77 | I94: 0.0003931247626 | K94: 0.0003931247626 | W94: 0.0003931247626
H95: 78 | I95: 0.0003677709614 | K95: 0.0003677709614 | W95: 0.0003677709614
H96: 79 | I96: 0.0003440523033 | K96: 0.0003440523033 | W96: 0.0003440523033
H97: 80 | I97: 0.0003218633329 | K97: 0.0003218633329 | W97: 0.0003218633329
H98: 81 | I98: 0.0003011053962 | K98: 0.0003011053962 | W98: 0.0003011053962
H99: 82 | I99: 0.0002816862014 | K99: 0.0002816862014 | W99: 0.0002816862014
H100: 83 | I100: 0.000263519409 | K100: 0.000263519409 | W100: 0.000263519409
H101: 84 | I101: 0.0002465242478 | K101: 0.0002465242478 | W101: 0.0002465242478
H102: 85 | I102: 0.0002306251558 | K102: 0.0002306251558 | W102: 0.0002306251558
H103: 86 | I103: 0.0002157514441 | K103: 0.0002157514441 | W103: 0.0002157514441
H104: 87 | I104: 0.000201836983 | K104: 0.000201836983 | W104: 0.000201836983
H105: 88 | I105: 0.0001888199075 | K105: 0.0001888199075 | W105: 0.0001888199075
H106: 89 | I106: 0.0001766423423 | K106: 0.0001766423423 | W106: 0.0001766423423
H107: 90 | I107: 0.0001652501451 | K107: 0.0001652501451 | W107: 0.0001652501451
H108: 91 | I108: 0.000154592665 | K108: 0.000154592665 | W108: 0.000154592665
H109: 92 | I109: 0.000144622518 | K109: 0.000144622518 | W109: 0.000144622518
H110: 93 | I110: 0.0001352953758 | K110: 0.0001352953758 | W110: 0.0001352953758
H111: 94 | I111: 0.0001265697691 | K111: 0.0001265697691 | W111: 0.0001265697691
H112: 95 | I112: 0.000118406903 | K112: 0.000118406903 | W112: 0.000118406903
H113: 96 | I113: 0.0001107704849 | K113: 0.0001107704849 | W113: 0.0001107704849
H114: 97 | I114: 0.0001036265623 | K114: 0.0001036265623 | W114: 0.0001036265623
H115: 98 | I115: 9.69433729e-05 | K115: 9.69433729e-05 | W115: 9.69433729e-05
H116: 99 | I116: 9.06912025e-05 | K116: 9.06912025e-05 | W116: 9.06912025e-05
H117: 100 | I117: 8.484225342e-05 | K117: 8.484225342e-05 | W117: 8.484225342e-05

Sheet Exponential-DisneyWaitTime
A1: For a particular Disney Ride, the mean time to wait in line is 22 minutes (Distribution follows an Exponential Distribution pattern.
A2: Mean = µ | B2: 22 | C2: time to stand in line
A3: x | B3: 15
A4: ="P(x<="&$B$3&")" -> P(x<=15) | D4: =1-EXP(1)^(-B3/B2)
A5: ="P(x<="&$B$3&")" -> P(x<=15) | D5: =EXPON.DIST(B3,1/B2,1)
A6: x | B6: 25
A7: ="P(x>="&$B$6&")" -> P(x>=25) | D7: =EXP(1)^-(B6/B2)
A8: ="P(x>="&$B$6&")" -> P(x>=25) | D8: =1-EXPON.DIST(B6,1/B2,1)
A9: ="P("&$B$3&"<=x<="&$B$6&")" -> P(15<=x<=25) | D9: =1-B8-B5
A10: ="P("&$B$3&"<=x<="&$B$6&")" -> P(15<=x<=25) | D10: =EXPON.DIST(B6,1/B2,1)-EXPONDIST(B3,1/B2,1)
A26: Exponential Probability Distribution:
A27: Useful for computing probabilities for the time it takes to complete a task
A28: or the distance between similar occurrences (successes)
A29: x = continuous random variable
A30: Mean = Standard Deviation
A31: Examples:
A32: Time between arrivals at carwash
A33: Time to take a test
A34: Distance between potholes on a road
A35: If the arrivals follow a Poisson Distribution, the time between arrivals must follow an Exponential Distribution.
A36: Whereas the Poisson Distribution provides an appropriate description of the number of occurrences (successes) per interval
A37: Exponential Distribution provides an appropriate description of the length of the interval between occurrences (successes)
A43: x | B43: f(x) | C43: =A4 -> P(x<=15) | D43: =A7 -> P(x>=25) | E43: =A10 -> P(15<=x<=25)
A44: 0 | B44: =_xlfn.EXPON.DIST(A44,1/$B$2,0) -> 0.04545454545 | C44: =IF($C$4<>"",IF(A44<=$B$3,B44,""),"") ->  | D44: =IF($C$7<>"",IF(A44>=$B$6,B44,""),"") ->  | E44: =IF($C$9<>"",IF(AND(A44>=$B$3,A44<=$B$6),B44,""),"") -> 
A45: =A44+0.1 -> 0.1 | B45: 0.04524840275
A46: 0.2 | B46: 0.04504319492
A47: 0.3 | B47: 0.04483891775
A48: 0.4 | B48: 0.04463556699
A49: 0.5 | B49: 0.04443313847
A50: 0.6 | B50: 0.04423162798
A51: 0.7 | B51: 0.04403103137
A52: 0.8 | B52: 0.0438313445
A53: 0.9 | B53: 0.04363256323
A54: 1 | B54: 0.04343468347
A55: 1.1 | B55: 0.04323770111
A56: 1.2 | B56: 0.0430416121
A57: 1.3 | B57: 0.04284641238
A58: 1.4 | B58: 0.04265209792
A59: 1.5 | B59: 0.0424586647
A60: 1.6 | B60: 0.04226610873
A61: 1.7 | B61: 0.04207442603
A62: 1.8 | B62: 0.04188361263
A63: 1.9 | B63: 0.0416936646
A64: 2 | B64: 0.04150457801
A65: 2.1 | B65: 0.04131634896
A66: 2.2 | B66: 0.04112897355
A67: 2.3 | B67: 0.04094244791
A68: 2.4 | B68: 0.04075676819
A69: 2.5 | B69: 0.04057193056
A70: 2.6 | B70: 0.04038793119
A71: 2.7 | B71: 0.04020476628
A72: 2.8 | B72: 0.04002243206
A73: 2.9 | B73: 0.03984092474
A74: 3 | B74: 0.03966024058
A75: 3.1 | B75: 0.03948037586
A76: 3.2 | B76: 0.03930132684
A77: 3.3 | B77: 0.03912308984
A78: 3.4 | B78: 0.03894566116
A79: 3.5 | B79: 0.03876903715
A80: 3.6 | B80: 0.03859321416
A81: 3.7 | B81: 0.03841818854
A82: 3.8 | B82: 0.0382439567
A83: 3.9 | B83: 0.03807051501
A84: 4 | B84: 0.03789785991
A85: 4.1 | B85: 0.03772598783
A86: 4.2 | B86: 0.03755489521
A87: 4.3 | B87: 0.03738457851
A88: 4.4 | B88: 0.03721503423
A89: 4.5 | B89: 0.03704625886
A90: 4.6 | B90: 0.0368782489
A91: 4.7 | B91: 0.03671100089
A92: 4.8 | B92: 0.03654451138
A93: 4.9 | B93: 0.03637877692
A94: 5 | B94: 0.03621379409
A95: 5.1 | B95: 0.03604955947
A96: 5.2 | B96: 0.03588606969
A97: 5.3 | B97: 0.03572332135
A98: 5.4 | B98: 0.0355613111
A99: 5.5 | B99: 0.03540003559
A100: 5.6 | B100: 0.03523949149
A101: 5.7 | B101: 0.03507967548
A102: 5.8 | B102: 0.03492058425
A103: 5.9 | B103: 0.03476221453
A104: 6 | B104: 0.03460456303
A105: 6.1 | B105: 0.03444762651
A106: 6.2 | B106: 0.03429140171
A107: 6.3 | B107: 0.03413588542
A108: 6.4 | B108: =_xlfn.EXPON.DIST(A108,1/$B$2,0) -> 0.03398107441 | C108: =IF($C$4<>"",IF(A108<=$B$3,B108,""),"") ->  | D108: =IF($C$7<>"",IF(A108>=$B$6,B108,""),"") ->  | E108: =IF($C$9<>"",IF(AND(A108>=$B$3,A108<=$B$6),B108,""),"") -> 
A109: =A108+0.1 -> 6.5 | B109: 0.0338269655
A110: 6.6 | B110: 0.03367355549
A111: 6.7 | B111: 0.03352084121
A112: 6.8 | B112: 0.03336881952
A113: 6.9 | B113: 0.03321748726
A114: 7 | B114: 0.03306684132
A115: 7.1 | B115: 0.03291687858
A116: 7.2 | B116: 0.03276759594
A117: 7.3 | B117: 0.03261899032
A118: 7.4 | B118: 0.03247105864
A119: 7.5 | B119: 0.03232379786
A120: 7.6 | B120: 0.03217720492
A121: 7.7 | B121: 0.03203127681
A122: 7.8 | B122: 0.03188601049
A123: 7.9 | B123: 0.03174140298
A124: 8 | B124: 0.03159745129
A125: 8.1 | B125: 0.03145415244
A126: 8.2 | B126: 0.03131150347
A127: 8.3 | B127: 0.03116950143
A128: 8.4 | B128: 0.03102814339
A129: 8.5 | B129: 0.03088742642
A130: 8.6 | B130: 0.03074734763
A131: 8.7 | B131: 0.03060790412
A132: 8.8 | B132: 0.030469093
A133: 8.9 | B133: 0.03033091141
A134: 9 | B134: 0.03019335649
A135: 9.1 | B135: 0.03005642541
A136: 9.2 | B136: 0.02992011532
A137: 9.3 | B137: 0.02978442342
A138: 9.4 | B138: 0.0296493469
A139: 9.5 | B139: 0.02951488298
A140: 9.6 | B140: 0.02938102886
A141: 9.7 | B141: 0.02924778179
A142: 9.8 | B142: 0.02911513902
A143: 9.9 | B143: 0.0289830978
A144: 10 | B144: 0.02885165541
A145: 10.1 | B145: 0.02872080912
A146: 10.2 | B146: 0.02859055624
A147: 10.3 | B147: 0.02846089408
A148: 10.4 | B148: 0.02833181995
A149: 10.5 | B149: 0.02820333119
A150: 10.6 | B150: 0.02807542515
A151: 10.7 | B151: 0.02794809918
A152: 10.8 | B152: 0.02782135064
A153: 10.9 | B153: 0.02769517694
A154: 11 | B154: 0.02756957544
A155: 11.1 | B155: 0.02744454357
A156: 11.2 | B156: 0.02732007873
A157: 11.3 | B157: 0.02719617836
A158: 11.4 | B158: 0.0270728399
A159: 11.5 | B159: 0.02695006079
A160: 11.6 | B160: 0.0268278385
A161: 11.7 | B161: 0.02670617051
A162: 11.8 | B162: 0.02658505429
A163: 11.9 | B163: 0.02646448736
A164: 12 | B164: 0.02634446722
A165: 12.1 | B165: 0.02622499138
A166: 12.2 | B166: 0.02610605738
A167: 12.3 | B167: 0.02598766277
A168: 12.4 | B168: 0.02586980509
A169: 12.5 | B169: 0.02575248191
A170: 12.6 | B170: 0.02563569081
A171: 12.7 | B171: 0.02551942938
A172: 12.8 | B172: =_xlfn.EXPON.DIST(A172,1/$B$2,0) -> 0.0254036952 | C172: =IF($C$4<>"",IF(A172<=$B$3,B172,""),"") ->  | D172: =IF($C$7<>"",IF(A172>=$B$6,B172,""),"") ->  | E172: =IF($C$9<>"",IF(AND(A172>=$B$3,A172<=$B$6),B172,""),"") -> 
A173: =A172+0.1 -> 12.9 | B173: 0.0252884859
A174: 13 | B174: 0.02517379908
A175: 13.1 | B175: 0.02505963239
A176: 13.2 | B176: 0.02494598346
A177: 13.3 | B177: 0.02483284994
A178: 13.4 | B178: 0.0247202295
A179: 13.5 | B179: 0.02460811981
A180: 13.6 | B180: 0.02449651855
A181: 13.7 | B181: 0.02438542342
A182: 13.8 | B182: 0.02427483212
A183: 13.9 | B183: 0.02416474237
A184: 14 | B184: 0.02405515189
A185: 14.1 | B185: 0.02394605841
A186: 14.2 | B186: 0.0238374597
A187: 14.3 | B187: 0.02372935349
A188: 14.4 | B188: 0.02362173756
A189: 14.5 | B189: 0.02351460968
A190: 14.6 | B190: 0.02340796764
A191: 14.7 | B191: 0.02330180924
A192: 14.8 | B192: 0.02319613228
A193: 14.9 | B193: 0.02309093459
A194: 15 | B194: 0.02298621397
A195: 15.1 | B195: 0.02288196829
A196: 15.2 | B196: 0.02277819536
A197: 15.3 | B197: 0.02267489307
A198: 15.4 | B198: 0.02257205926
A199: 15.5 | B199: 0.02246969182
A200: 15.6 | B200: 0.02236778863
A201: 15.7 | B201: 0.02226634759
A202: 15.8 | B202: 0.0221653666
A203: 15.9 | B203: 0.02206484356
A204: 16 | B204: 0.02196477642
A205: 16.1 | B205: 0.02186516309
A206: 16.2 | B206: 0.02176600152
A207: 16.3 | B207: 0.02166728967
A208: 16.4 | B208: 0.02156902548
A209: 16.5 | B209: 0.02147120694
A210: 16.6 | B210: 0.02137383202
A211: 16.7 | B211: 0.02127689871
A212: 16.8 | B212: 0.021180405
A213: 16.9 | B213: 0.02108434891
A214: 17 | B214: 0.02098872844
A215: 17.1 | B215: 0.02089354163
A216: 17.2 | B216: 0.0207987865
A217: 17.3 | B217: 0.0207044611
A218: 17.4 | B218: 0.02061056348
A219: 17.5 | B219: 0.0205170917
A220: 17.6 | B220: 0.02042404382
... 506 more rows

Sheet Exponential-DisneyWaitTime
A1: For a particular Disney Ride, the mean time to wait in line is 22 minutes (Distribution follows an Exponential Distribution pattern.
A2: Mean = µ | B2: 22 | C2: time to stand in line
A3: x | B3: 15
A4: ="P(x<="&$B$3&")" -> P(x<=15) | B4: =1-EXP(1)^(-B3/B2) -> 0.4943032926 | C4: . | D4: =" "&_xlfn.FORMULATEXT(B4) -> =1-EXP(1)^(-B3/B2)
A5: ="P(x<="&$B$3&")" -> P(x<=15) | B5: =_xlfn.EXPON.DIST(B3,1/B2,1) -> 0.4943032926 | D5: =" "&_xlfn.FORMULATEXT(B5) -> =EXPON.DIST(B3,1/B2,1)
A6: x | B6: 25
A7: ="P(x>="&$B$6&")" -> P(x>=25) | B7: =EXP(1)^-(B6/B2) -> 0.3209841171 | C7: . | D7: =" "&_xlfn.FORMULATEXT(B7) -> =EXP(1)^-(B6/B2)
A8: ="P(x>="&$B$6&")" -> P(x>=25) | B8: =1-_xlfn.EXPON.DIST(B6,1/B2,1) -> 0.3209841171 | D8: =" "&_xlfn.FORMULATEXT(B8) -> =1-EXPON.DIST(B6,1/B2,1)
A9: ="P("&$B$3&"<=x<="&$B$6&")" -> P(15<=x<=25) | B9: =1-B8-B5 -> 0.1847125903 | C9: . | D9: =" "&_xlfn.FORMULATEXT(B9) -> =1-B8-B5
A10: ="P("&$B$3&"<=x<="&$B$6&")" -> P(15<=x<=25) | B10: =_xlfn.EXPON.DIST(B6,1/B2,1)-EXPONDIST(B3,1/B2,1) -> 0.1847125903 | D10: =" "&_xlfn.FORMULATEXT(B10) -> =EXPON.DIST(B6,1/B2,1)-EXPONDIST(B3,1/B2,1)
A26: Exponential Probability Distribution:
A27: Useful for computing probabilities for the time it takes to complete a task
A28: or the distance between similar occurrences (successes)
A29: x = continuous random variable
A30: Mean = Standard Deviation
A31: Examples:
A32: Time between arrivals at carwash
A33: Time to take a test
A34: Distance between potholes on a road
A35: If the arrivals follow a Poisson Distribution, the time between arrivals must follow an Exponential Distribution.
A36: Whereas the Poisson Distribution provides an appropriate description of the number of occurrences (successes) per interval
A37: Exponential Distribution provides an appropriate description of the length of the interval between occurrences (successes)
A43: x | B43: f(x) | C43: =A4 -> P(x<=15) | D43: =A7 -> P(x>=25) | E43: =A10 -> P(15<=x<=25)
A44: 0 | B44: =_xlfn.EXPON.DIST(A44,1/$B$2,0) -> 0.04545454545 | C44: =IF($C$4<>"",IF(A44<=$B$3,B44,""),"") -> 0.04545454545 | D44: =IF($C$7<>"",IF(A44>=$B$6,B44,""),"") ->  | E44: =IF($C$9<>"",IF(AND(A44>=$B$3,A44<=$B$6),B44,""),"") -> 
A45: =A44+0.1 -> 0.1 | B45: 0.04524840275 | C45: 0.04524840275
A46: 0.2 | B46: 0.04504319492 | C46: 0.04504319492
A47: 0.3 | B47: 0.04483891775 | C47: 0.04483891775
A48: 0.4 | B48: 0.04463556699 | C48: 0.04463556699
A49: 0.5 | B49: 0.04443313847 | C49: 0.04443313847
A50: 0.6 | B50: 0.04423162798 | C50: 0.04423162798
A51: 0.7 | B51: 0.04403103137 | C51: 0.04403103137
A52: 0.8 | B52: 0.0438313445 | C52: 0.0438313445
A53: 0.9 | B53: 0.04363256323 | C53: 0.04363256323
A54: 1 | B54: 0.04343468347 | C54: 0.04343468347
A55: 1.1 | B55: 0.04323770111 | C55: 0.04323770111
A56: 1.2 | B56: 0.0430416121 | C56: 0.0430416121
A57: 1.3 | B57: 0.04284641238 | C57: 0.04284641238
A58: 1.4 | B58: 0.04265209792 | C58: 0.04265209792
A59: 1.5 | B59: 0.0424586647 | C59: 0.0424586647
A60: 1.6 | B60: 0.04226610873 | C60: 0.04226610873
A61: 1.7 | B61: 0.04207442603 | C61: 0.04207442603
A62: 1.8 | B62: 0.04188361263 | C62: 0.04188361263
A63: 1.9 | B63: 0.0416936646 | C63: 0.0416936646
A64: 2 | B64: 0.04150457801 | C64: 0.04150457801
A65: 2.1 | B65: 0.04131634896 | C65: 0.04131634896
A66: 2.2 | B66: 0.04112897355 | C66: 0.04112897355
A67: 2.3 | B67: 0.04094244791 | C67: 0.04094244791
A68: 2.4 | B68: 0.04075676819 | C68: 0.04075676819
A69: 2.5 | B69: 0.04057193056 | C69: 0.04057193056
A70: 2.6 | B70: 0.04038793119 | C70: 0.04038793119
A71: 2.7 | B71: 0.04020476628 | C71: 0.04020476628
A72: 2.8 | B72: 0.04002243206 | C72: 0.04002243206
A73: 2.9 | B73: 0.03984092474 | C73: 0.03984092474
A74: 3 | B74: 0.03966024058 | C74: 0.03966024058
A75: 3.1 | B75: 0.03948037586 | C75: 0.03948037586
A76: 3.2 | B76: 0.03930132684 | C76: 0.03930132684
A77: 3.3 | B77: 0.03912308984 | C77: 0.03912308984
A78: 3.4 | B78: 0.03894566116 | C78: 0.03894566116
A79: 3.5 | B79: 0.03876903715 | C79: 0.03876903715
A80: 3.6 | B80: 0.03859321416 | C80: 0.03859321416
A81: 3.7 | B81: 0.03841818854 | C81: 0.03841818854
A82: 3.8 | B82: 0.0382439567 | C82: 0.0382439567
A83: 3.9 | B83: 0.03807051501 | C83: 0.03807051501
A84: 4 | B84: 0.03789785991 | C84: 0.03789785991
A85: 4.1 | B85: 0.03772598783 | C85: 0.03772598783
A86: 4.2 | B86: 0.03755489521 | C86: 0.03755489521
A87: 4.3 | B87: 0.03738457851 | C87: 0.03738457851
A88: 4.4 | B88: 0.03721503423 | C88: 0.03721503423
A89: 4.5 | B89: 0.03704625886 | C89: 0.03704625886
A90: 4.6 | B90: 0.0368782489 | C90: 0.0368782489
A91: 4.7 | B91: 0.03671100089 | C91: 0.03671100089
A92: 4.8 | B92: 0.03654451138 | C92: 0.03654451138
A93: 4.9 | B93: 0.03637877692 | C93: 0.03637877692
A94: 5 | B94: 0.03621379409 | C94: 0.03621379409
A95: 5.1 | B95: 0.03604955947 | C95: 0.03604955947
A96: 5.2 | B96: 0.03588606969 | C96: 0.03588606969
A97: 5.3 | B97: 0.03572332135 | C97: 0.03572332135
A98: 5.4 | B98: 0.0355613111 | C98: 0.0355613111
A99: 5.5 | B99: 0.03540003559 | C99: 0.03540003559
A100: 5.6 | B100: 0.03523949149 | C100: 0.03523949149
A101: 5.7 | B101: 0.03507967548 | C101: 0.03507967548
A102: 5.8 | B102: 0.03492058425 | C102: 0.03492058425
A103: 5.9 | B103: 0.03476221453 | C103: 0.03476221453
A104: 6 | B104: 0.03460456303 | C104: 0.03460456303
A105: 6.1 | B105: 0.03444762651 | C105: 0.03444762651
A106: 6.2 | B106: 0.03429140171 | C106: 0.03429140171
A107: 6.3 | B107: 0.03413588542 | C107: 0.03413588542
A108: 6.4 | B108: =_xlfn.EXPON.DIST(A108,1/$B$2,0) -> 0.03398107441 | C108: =IF($C$4<>"",IF(A108<=$B$3,B108,""),"") -> 0.03398107441 | D108: =IF($C$7<>"",IF(A108>=$B$6,B108,""),"") ->  | E108: =IF($C$9<>"",IF(AND(A108>=$B$3,A108<=$B$6),B108,""),"") -> 
A109: =A108+0.1 -> 6.5 | B109: 0.0338269655 | C109: 0.0338269655
A110: 6.6 | B110: 0.03367355549 | C110: 0.03367355549
A111: 6.7 | B111: 0.03352084121 | C111: 0.03352084121
A112: 6.8 | B112: 0.03336881952 | C112: 0.03336881952
A113: 6.9 | B113: 0.03321748726 | C113: 0.03321748726
A114: 7 | B114: 0.03306684132 | C114: 0.03306684132
A115: 7.1 | B115: 0.03291687858 | C115: 0.03291687858
A116: 7.2 | B116: 0.03276759594 | C116: 0.03276759594
A117: 7.3 | B117: 0.03261899032 | C117: 0.03261899032
A118: 7.4 | B118: 0.03247105864 | C118: 0.03247105864
A119: 7.5 | B119: 0.03232379786 | C119: 0.03232379786
A120: 7.6 | B120: 0.03217720492 | C120: 0.03217720492
A121: 7.7 | B121: 0.03203127681 | C121: 0.03203127681
A122: 7.8 | B122: 0.03188601049 | C122: 0.03188601049
A123: 7.9 | B123: 0.03174140298 | C123: 0.03174140298
A124: 8 | B124: 0.03159745129 | C124: 0.03159745129
A125: 8.1 | B125: 0.03145415244 | C125: 0.03145415244
A126: 8.2 | B126: 0.03131150347 | C126: 0.03131150347
A127: 8.3 | B127: 0.03116950143 | C127: 0.03116950143
A128: 8.4 | B128: 0.03102814339 | C128: 0.03102814339
A129: 8.5 | B129: 0.03088742642 | C129: 0.03088742642
A130: 8.6 | B130: 0.03074734763 | C130: 0.03074734763
A131: 8.7 | B131: 0.03060790412 | C131: 0.03060790412
A132: 8.8 | B132: 0.030469093 | C132: 0.030469093
A133: 8.9 | B133: 0.03033091141 | C133: 0.03033091141
A134: 9 | B134: 0.03019335649 | C134: 0.03019335649
A135: 9.1 | B135: 0.03005642541 | C135: 0.03005642541
A136: 9.2 | B136: 0.02992011532 | C136: 0.02992011532
A137: 9.3 | B137: 0.02978442342 | C137: 0.02978442342
A138: 9.4 | B138: 0.0296493469 | C138: 0.0296493469
A139: 9.5 | B139: 0.02951488298 | C139: 0.02951488298
A140: 9.6 | B140: 0.02938102886 | C140: 0.02938102886
A141: 9.7 | B141: 0.02924778179 | C141: 0.02924778179
A142: 9.8 | B142: 0.02911513902 | C142: 0.02911513902
A143: 9.9 | B143: 0.0289830978 | C143: 0.0289830978
A144: 10 | B144: 0.02885165541 | C144: 0.02885165541
A145: 10.1 | B145: 0.02872080912 | C145: 0.02872080912
A146: 10.2 | B146: 0.02859055624 | C146: 0.02859055624
A147: 10.3 | B147: 0.02846089408 | C147: 0.02846089408
A148: 10.4 | B148: 0.02833181995 | C148: 0.02833181995
A149: 10.5 | B149: 0.02820333119 | C149: 0.02820333119
A150: 10.6 | B150: 0.02807542515 | C150: 0.02807542515
A151: 10.7 | B151: 0.02794809918 | C151: 0.02794809918
A152: 10.8 | B152: 0.02782135064 | C152: 0.02782135064
A153: 10.9 | B153: 0.02769517694 | C153: 0.02769517694
A154: 11 | B154: 0.02756957544 | C154: 0.02756957544
A155: 11.1 | B155: 0.02744454357 | C155: 0.02744454357
A156: 11.2 | B156: 0.02732007873 | C156: 0.02732007873
A157: 11.3 | B157: 0.02719617836 | C157: 0.02719617836
A158: 11.4 | B158: 0.0270728399 | C158: 0.0270728399
A159: 11.5 | B159: 0.02695006079 | C159: 0.02695006079
A160: 11.6 | B160: 0.0268278385 | C160: 0.0268278385
A161: 11.7 | B161: 0.02670617051 | C161: 0.02670617051
A162: 11.8 | B162: 0.02658505429 | C162: 0.02658505429
A163: 11.9 | B163: 0.02646448736 | C163: 0.02646448736
A164: 12 | B164: 0.02634446722 | C164: 0.02634446722
A165: 12.1 | B165: 0.02622499138 | C165: 0.02622499138
A166: 12.2 | B166: 0.02610605738 | C166: 0.02610605738
A167: 12.3 | B167: 0.02598766277 | C167: 0.02598766277
A168: 12.4 | B168: 0.02586980509 | C168: 0.02586980509
A169: 12.5 | B169: 0.02575248191 | C169: 0.02575248191
A170: 12.6 | B170: 0.02563569081 | C170: 0.02563569081
A171: 12.7 | B171: 0.02551942938 | C171: 0.02551942938
A172: 12.8 | B172: =_xlfn.EXPON.DIST(A172,1/$B$2,0) -> 0.0254036952 | C172: =IF($C$4<>"",IF(A172<=$B$3,B172,""),"") -> 0.0254036952 | D172: =IF($C$7<>"",IF(A172>=$B$6,B172,""),"") ->  | E172: =IF($C$9<>"",IF(AND(A172>=$B$3,A172<=$B$6),B172,""),"") -> 
A173: =A172+0.1 -> 12.9 | B173: 0.0252884859 | C173: 0.0252884859
A174: 13 | B174: 0.02517379908 | C174: 0.02517379908
A175: 13.1 | B175: 0.02505963239 | C175: 0.02505963239
A176: 13.2 | B176: 0.02494598346 | C176: 0.02494598346
A177: 13.3 | B177: 0.02483284994 | C177: 0.02483284994
A178: 13.4 | B178: 0.0247202295 | C178: 0.0247202295
A179: 13.5 | B179: 0.02460811981 | C179: 0.02460811981
A180: 13.6 | B180: 0.02449651855 | C180: 0.02449651855
A181: 13.7 | B181: 0.02438542342 | C181: 0.02438542342
A182: 13.8 | B182: 0.02427483212 | C182: 0.02427483212
A183: 13.9 | B183: 0.02416474237 | C183: 0.02416474237
A184: 14 | B184: 0.02405515189 | C184: 0.02405515189
A185: 14.1 | B185: 0.02394605841 | C185: 0.02394605841
A186: 14.2 | B186: 0.0238374597 | C186: 0.0238374597
A187: 14.3 | B187: 0.02372935349 | C187: 0.02372935349
A188: 14.4 | B188: 0.02362173756 | C188: 0.02362173756
A189: 14.5 | B189: 0.02351460968 | C189: 0.02351460968
A190: 14.6 | B190: 0.02340796764 | C190: 0.02340796764
A191: 14.7 | B191: 0.02330180924 | C191: 0.02330180924
A192: 14.8 | B192: 0.02319613228 | C192: 0.02319613228
A193: 14.9 | B193: 0.02309093459 | C193: 0.02309093459
A194: 15 | B194: 0.02298621397 | C194: 0.02298621397 | E194: 0.02298621397
A195: 15.1 | B195: 0.02288196829 | E195: 0.02288196829
A196: 15.2 | B196: 0.02277819536 | E196: 0.02277819536
A197: 15.3 | B197: 0.02267489307 | E197: 0.02267489307
A198: 15.4 | B198: 0.02257205926 | E198: 0.02257205926
A199: 15.5 | B199: 0.02246969182 | E199: 0.02246969182
A200: 15.6 | B200: 0.02236778863 | E200: 0.02236778863
A201: 15.7 | B201: 0.02226634759 | E201: 0.02226634759
A202: 15.8 | B202: 0.0221653666 | E202: 0.0221653666
A203: 15.9 | B203: 0.02206484356 | E203: 0.02206484356
A204: 16 | B204: 0.02196477642 | E204: 0.02196477642
A205: 16.1 | B205: 0.02186516309 | E205: 0.02186516309
A206: 16.2 | B206: 0.02176600152 | E206: 0.02176600152
A207: 16.3 | B207: 0.02166728967 | E207: 0.02166728967
A208: 16.4 | B208: 0.02156902548 | E208: 0.02156902548
A209: 16.5 | B209: 0.02147120694 | E209: 0.02147120694
A210: 16.6 | B210: 0.02137383202 | E210: 0.02137383202
A211: 16.7 | B211: 0.02127689871 | E211: 0.02127689871
A212: 16.8 | B212: 0.021180405 | E212: 0.021180405
A213: 16.9 | B213: 0.02108434891 | E213: 0.02108434891
A214: 17 | B214: 0.02098872844 | E214: 0.02098872844
A215: 17.1 | B215: 0.02089354163 | E215: 0.02089354163
A216: 17.2 | B216: 0.0207987865 | E216: 0.0207987865
A217: 17.3 | B217: 0.0207044611 | E217: 0.0207044611
A218: 17.4 | B218: 0.02061056348 | E218: 0.02061056348
A219: 17.5 | B219: 0.0205170917 | E219: 0.0205170917
A220: 17.6 | B220: 0.02042404382 | E220: 0.02042404382
... 506 more rows
